Workbook

Sheet 1. Information Sheet
U1: a | AA1: =IF(OR(F16="", F16="(if applicable)"), F14, F14 & " - " & F16) -> Guelph Hydro Electric Systems Inc. - City of Guelph and Township of Rockwood
M12: Version | N12: 1.1
E14: Utility Name | F14: Guelph Hydro Electric Systems Inc.
E16: Service Territory | F16: City of Guelph and Township of Rockwood
E18: Assigned EB Number | F18: EB-2014-0077
E20: Name of Contact and Title | F20: Cristina Birceanu, Director of Regulatory Affairs
E22: Phone Number | F22: 519-837-4735
E24: Email Address | F24: cbirceanu@guelphhydro.com
E26: We are applying for rates effective | F26: 2015-01-01
E28: Rate-Setting Method | F28: Price Cap IR
A30: Please indicate in which Rate Year the Group 1 accounts were last cleared1 | F30: 2014
A32: Please indicate the last Cost of Service Re-Basing Year | F32: 2012
B35: Notes
C37: Pale green cells represent input cells.
C39: Pale blue cells represent drop-down lists. The applicant should select the appropriate item from the drop-down list.
C41: White cells contain fixed values, automatically generated values or formulae.
A44: Note: 1. Rate year of application

Sheet 2. Related Links
A13: ● | B13: Ontario Energy Board's 2015 Electricity Distribution Rates Webpage
A15: ● | B15: An updated version of Chapter 3 of the Filing Requirements for Electricity Distribution Rate Applications for 2015 rates.

Sheet 3. Rate Class Selection
A12: Select the appropriate rate classes as they appear on your most recent Board-Approved Tariff of Rates and Charges, including the MicroFit Class.
A14: How many classes are on your most recent Board-Approved Tariff of Rates and Charges? | J14: 9
A16: Select Your Rate Classes from the Blue Cells below. Please ensure that a rate class is assigned to each shaded cell.
B18: Rate Class Classification | Q18: # of duplicates
A19: 1 | B19: RESIDENTIAL | P19: =COUNTIF($B$19:$J$40, B19) -> 1 | Q19: =COUNTIF(P19:P40, 2)/2 -> 0
A20: 2 | B20: GENERAL SERVICE LESS THAN 50 KW | P20: =COUNTIF($B$19:$J$40, B20) -> 1
A21: 3 | B21: GENERAL SERVICE 50 TO 999 KW | P21: 1
A22: 4 | B22: GENERAL SERVICE 1,000 TO 4,999 KW | P22: 1
A23: 5 | B23: LARGE USE | P23: 1
A24: 6 | B24: UNMETERED SCATTERED LOAD | P24: 1
A25: 7 | B25: SENTINEL LIGHTING | P25: 1
A26: 8 | B26: STREET LIGHTING | P26: 1
A27: 9 | B27: microFIT | P27: 1
P28: 0
P29: 0
P30: 0
P31: 0
P32: 0
P33: 0

Sheet 4. Current Tariff Schedule
Z1: 3 | AA1: January | AB1: ≥
AA2: February
AA3: March
AA4: April
AA5: May
AA6: June
AA7: July
AA8: August
AA9: September
AA10: October
AA11: November
B12: For each class, Applicants are required to copy and paste the class descriptions (located directly under the class name) and the description of the applicability of those rates (description is found under the class name and directly under the word "APPLICATION"). By using the drop-down lists located under the column labeled "Rate Description", please select the descriptions of the rates and charges that BEST MATCHES the descriptions on your most recent Board-Approved Tariff of Rates and Charges. If the description is not found in the drop-down list, please enter the description in the green cells under the correct class exactly as it appears on the tariff. Please do not enter more than one "Service Charge" for each class for which a base monthly fixed charge applies. | AA12: December
B21: =IF(ISBLANK('1. Information Sheet'!F14), "Please Choose Distributor Name on Sheet 1", '1. Information Sheet'!F14) -> Guelph Hydro Electric Systems Inc.
B22: TARIFF OF RATES AND CHARGES
A24: RESIDENTIAL | B24: RESIDENTIAL Service Classification
A25: RESIDENTIAL
A26: RESIDENTIAL | B26: This classification includes accounts taking electricity at 750 volts or less where the electricity is used exclusively in a separately metered living accomodation. Customers shall be residing in single-dwelling units that consist of a detached house or one unit of a semi-detached, duplex, triplex or quadraplex house, with a residential zoning. Separately metered dwellings within a town house complex or apartment building also qualify as residential customers. Further servicing details are available in the distributor's Conditions of Service.
A27: RESIDENTIAL
A28: RESIDENTIAL
A29: RESIDENTIAL
A30: RESIDENTIAL
A31: RESIDENTIAL
A32: RESIDENTIAL | B32: APPLICATION
A33: RESIDENTIAL
A34: RESIDENTIAL | B34: The application of these rates and charges shall be in accordance with the Licence of the Distributor and any Code or Order of the Board, and amendments thereto as approved by the Board, which may be applicable to the administration of this schedule.
A35: RESIDENTIAL
A36: RESIDENTIAL
A37: RESIDENTIAL | B37: No rates and charges for the distribution of electricity and charges to meet the costs of any work or service done or furnished for the purpose of the distribution of electricity shall be made except as permitted by this schedule, unless required by the Distributor's Licence or a Code or Order of the Board, and amendments thereto as approved by the Board, or as specified herein.
A38: RESIDENTIAL
A39: RESIDENTIAL
A40: RESIDENTIAL
A41: RESIDENTIAL | B41: Unless specifically noted, this schedule does not contain any charges for the electricity commodity, be it under the Regulated Price Plan, a contract with a retailer or the wholesale market price, as applicable. In addition, the charges in the MONTHLY RATES AND CHARGES - Regulatory Component of this schedule do not apply to a customer that is an embedded wholesale market participant.
A42: RESIDENTIAL
A43: RESIDENTIAL
A44: RESIDENTIAL | B44: It should be noted that this schedule does not list any charges, assessments or credits that are required by law to be invoiced by a distributor and that are not subject to Board approval, such as the Debt Retirement Charge, the Global Adjustment, the Ontario Clean Energy Benefit and the HST.
A45: RESIDENTIAL
A46: RESIDENTIAL
A47: RESIDENTIAL
A48: RESIDENTIAL | B48: MONTHLY RATES AND CHARGES - Delivery Component (If applicable, Effective Date MUST be included in rate description)
A49: RESIDENTIAL | B49: Service Charge | H49: $ | I49: 14.3 | K49: 1_C_MSC
A50: RESIDENTIAL | B50: Green Energy Act Plan Funding Adder - effective April 1, 2013 until March 31, 2014 | H50: $ | I50: 0.14 | K50: 1_C_MSC_Rate_Rider_1 | L50: 2014-03-31
A51: RESIDENTIAL | B51: Green Energy Act Plan Funding Adder - effective April 1, 2014 until March 31, 2015 | H51: $ | I51: 0.15 | K51: 1_C_MSC_Rate_Rider_2 | L51: 2015-03-31
A52: RESIDENTIAL | B52: Rate Rider for Recovery of Stranded Meter Assets - effective until March 31, 2016 | H52: $ | I52: 0.73 | K52: 1_C_MSC_Rate_Rider_3 | L52: 2016-03-31
A53: RESIDENTIAL | B53: Rate Rider for Disposition of Post Retirement Actuarial Gain - effective until March 31, 2025 | H53: $ | I53: -0.18 | K53: 1_C_MSC_Rate_Rider_4 | L53: 2025-03-31
A54: RESIDENTIAL | B54: Rate Rider for Smart Metering Entity Charge - effective until October 31, 2018 | H54: $ | I54: 0.79 | K54: 1_C_SMEC | L54: 2018-10-31
A55: RESIDENTIAL | B55: Distribution Volumetric Rate | H55: $/kWh | I55: 0.0174 | K55: 1_C_VC_1
A56: RESIDENTIAL | B56: Rate Rider for Recovery of Lost Revenue Adjustment Mechanism (LRAM)/Shared Savings Mechanism (SSM) - effective until March 31, 2016 | H56: $/kWh | I56: 0.0003 | K56: 1_C_VC_Rate_Rider_kWh_1 | L56: 2016-03-31
A57: RESIDENTIAL | B57: Rate Rider for Disposition of Deferred PILs Variance Account 1562 - effective until March 31, 2016 | H57: $/kWh | I57: 0.0007 | K57: 1_C_VC_DEFVAR_kWh_1 | L57: 2016-03-31
A58: RESIDENTIAL | B58: Rate Rider for Deferral/Variance Account Disposition (2014) - effective until December 31, 2014 | H58: $/kWh | I58: -0.0006 | K58: 1_C_VC_DEFVAR_kWh_2 | L58: 2014-12-31
A59: RESIDENTIAL | B59: Rate Rider for Global Adjustment Sub-Account Disposition (2014) - effective until December 31, 2014 Applicable only for Non-RPP Customers | H59: $/kWh | I59: -0.0018 | K59: 1_C_VC_GA_Rate_Rider_kWh_1 | L59: 2014-12-31
A60: RESIDENTIAL | B60: Retail Transmission Rate - Network Service Rate | H60: $/kWh | I60: 0.0072 | K60: 1_C_RTSR_Network
A61: RESIDENTIAL | B61: Retail Transmission Rate - Line and Transformation Connection Service Rate | H61: $/kWh | I61: 0.0053 | K61: 1_C_RTSR_Connection
A62: RESIDENTIAL
A63: RESIDENTIAL
A64: RESIDENTIAL
A65: RESIDENTIAL
A66: RESIDENTIAL
A67: RESIDENTIAL
A68: RESIDENTIAL
A69: RESIDENTIAL
A70: RESIDENTIAL
A71: RESIDENTIAL
A72: RESIDENTIAL
A73: RESIDENTIAL
A74: RESIDENTIAL
A75: RESIDENTIAL
A76: RESIDENTIAL
A77: RESIDENTIAL
A78: RESIDENTIAL
A79: RESIDENTIAL | B79: MONTHLY RATES AND CHARGES - Regulatory Component
A80: RESIDENTIAL
A81: RESIDENTIAL | B81: Wholesale Market Service Rate | H81: $/kWh | I81: 0.0044 | K81: 1_C_WMSR
A82: RESIDENTIAL | B82: Rural or Remote Electricity Rate Protection Charge (RRRP) | H82: $/kWh | I82: 0.0013 | K82: 1_C_RRPC
A83: RESIDENTIAL | B83: Standard Supply Service - Administrative Charge (if applicable) | H83: $ | I83: 0.25 | K83: 1_C_SSS
A84: RESIDENTIAL
A87: GENERAL SERVICE LESS THAN 50 KW | B87: GENERAL SERVICE LESS THAN 50 KW Service Classification
A88: GENERAL SERVICE LESS THAN 50 KW
A89: GENERAL SERVICE LESS THAN 50 KW | B89: This classification includes non-residential accounts taking electricity at 750 volts or less where monthly average peak demand is less than, or is forecast to be less than, 50 kW. Further servicing details are available in the distributor's Conditions of Service.
A90: GENERAL SERVICE LESS THAN 50 KW
A91: GENERAL SERVICE LESS THAN 50 KW
A92: GENERAL SERVICE LESS THAN 50 KW
A93: GENERAL SERVICE LESS THAN 50 KW
A94: GENERAL SERVICE LESS THAN 50 KW
A95: GENERAL SERVICE LESS THAN 50 KW | B95: APPLICATION
A96: GENERAL SERVICE LESS THAN 50 KW
A97: GENERAL SERVICE LESS THAN 50 KW | B97: The application of these rates and charges shall be in accordance with the Licence of the Distributor and any Code or Order of the Board, and amendments thereto as approved by the Board, which may be applicable to the administration of this schedule.
A98: GENERAL SERVICE LESS THAN 50 KW
A99: GENERAL SERVICE LESS THAN 50 KW
A100: GENERAL SERVICE LESS THAN 50 KW | B100: No rates and charges for the distribution of electricity and charges to meet the costs of any work or service done or furnished for the purpose of the distribution of electricity shall be made except as permitted by this schedule, unless required by the Distributor's Licence or a Code or Order of the Board, and amendments thereto as approved by the Board, or as specified herein.
A101: GENERAL SERVICE LESS THAN 50 KW
A102: GENERAL SERVICE LESS THAN 50 KW
A103: GENERAL SERVICE LESS THAN 50 KW
A104: GENERAL SERVICE LESS THAN 50 KW | B104: Unless specifically noted, this schedule does not contain any charges for the electricity commodity, be it under the Regulated Price Plan, a contract with a retailer or the wholesale market price, as applicable. In addition, the charges in the MONTHLY RATES AND CHARGES - Regulatory Component of this schedule do not apply to a customer that is an embedded wholesale market participant.
A105: GENERAL SERVICE LESS THAN 50 KW
A106: GENERAL SERVICE LESS THAN 50 KW
A107: GENERAL SERVICE LESS THAN 50 KW | B107: It should be noted that this schedule does not list any charges, assessments or credits that are required by law to be invoiced by a distributor and that are not subject to Board approval, such as the Debt Retirement Charge, the Global Adjustment, the Ontario Clean Energy Benefit and the HST.
A108: GENERAL SERVICE LESS THAN 50 KW
A109: GENERAL SERVICE LESS THAN 50 KW
A110: GENERAL SERVICE LESS THAN 50 KW
A111: GENERAL SERVICE LESS THAN 50 KW | B111: MONTHLY RATES AND CHARGES - Delivery Component (If applicable, Effective Date MUST be included in rate description)
A112: GENERAL SERVICE LESS THAN 50 KW | B112: Service Charge | H112: $ | I112: 15.37 | K112: 2_C_MSC
A113: GENERAL SERVICE LESS THAN 50 KW | B113: Green Energy Act Plan Funding Adder - effective April 1, 2013 until March 31, 2014 | H113: $ | I113: 0.14 | K113: 2_C_MSC_Rate_Rider_1 | L113: 2014-03-31
A114: GENERAL SERVICE LESS THAN 50 KW | B114: Green Energy Act Plan Funding Adder - effective April 1, 2014 until March 31, 2015 | H114: $ | I114: 0.15 | K114: 2_C_MSC_Rate_Rider_2 | L114: 2015-03-31
A115: GENERAL SERVICE LESS THAN 50 KW | B115: Rate Rider for Recovery of Stranded Meter Assets - effective until March 31, 2016 | H115: $ | I115: 0.73 | K115: 2_C_MSC_Rate_Rider_3 | L115: 2016-03-31
A116: GENERAL SERVICE LESS THAN 50 KW | B116: Rate Rider for Disposition of Post Retirement Actuarial Gain - effective until March 31, 2025 | H116: $ | I116: -0.5 | K116: 2_C_MSC_Rate_Rider_4 | L116: 2025-03-31
A117: GENERAL SERVICE LESS THAN 50 KW | B117: Rate Rider for Smart Metering Entity Charge - effective until October 31, 2018 | H117: $ | I117: 0.79 | K117: 2_C_SMEC | L117: 2018-10-31
A118: GENERAL SERVICE LESS THAN 50 KW | B118: Distribution Volumetric Rate | H118: $/kWh | I118: 0.0129 | K118: 2_C_VC_1
A119: GENERAL SERVICE LESS THAN 50 KW | B119: Rate Rider for Recovery of Lost Revenue Adjustment Mechanism (LRAM)/Shared Savings Mechanism (SSM) - effective until March 31, 2016 | H119: $/kWh | I119: 0.0001 | K119: 2_C_VC_Rate_Rider_kWh_1 | L119: 2016-03-31
A120: GENERAL SERVICE LESS THAN 50 KW | B120: Rate Rider for Disposition of Deferred PILs Variance Account 1562 - effective until March 31, 2016 | H120: $/kWh | I120: 0.0004 | K120: 2_C_VC_DEFVAR_kWh_1 | L120: 2016-03-31
A121: GENERAL SERVICE LESS THAN 50 KW | B121: Rate Rider for Deferral/Variance Account Disposition (2014) - effective until December 31, 2014 | H121: $/kWh | I121: -0.0006 | K121: 2_C_VC_DEFVAR_kWh_2 | L121: 2014-12-31
A122: GENERAL SERVICE LESS THAN 50 KW | B122: Rate Rider for Disposition of Global Adjustment Sub-Account (2014) - effective until December 31, 2014. Applicable only for Non-RPP Customers | H122: $/kWh | I122: -0.0018 | K122: 2_C_VC_GA_Rate_Rider_kWh_1 | L122: 2014-12-31
A123: GENERAL SERVICE LESS THAN 50 KW | B123: Retail Transmission Rate - Network Service Rate | H123: $/kWh | I123: 0.0066 | K123: 2_C_RTSR_Network
A124: GENERAL SERVICE LESS THAN 50 KW | B124: Retail Transmission Rate - Line and Transformation Connection Service Rate | H124: $/kWh | I124: 0.0047 | K124: 2_C_RTSR_Connection
A125: GENERAL SERVICE LESS THAN 50 KW
A126: GENERAL SERVICE LESS THAN 50 KW
A127: GENERAL SERVICE LESS THAN 50 KW
A128: GENERAL SERVICE LESS THAN 50 KW
A129: GENERAL SERVICE LESS THAN 50 KW
A130: GENERAL SERVICE LESS THAN 50 KW
A131: GENERAL SERVICE LESS THAN 50 KW
A132: GENERAL SERVICE LESS THAN 50 KW
A133: GENERAL SERVICE LESS THAN 50 KW
A134: GENERAL SERVICE LESS THAN 50 KW
A135: GENERAL SERVICE LESS THAN 50 KW
A136: GENERAL SERVICE LESS THAN 50 KW
A137: GENERAL SERVICE LESS THAN 50 KW
A138: GENERAL SERVICE LESS THAN 50 KW
A139: GENERAL SERVICE LESS THAN 50 KW
A140: GENERAL SERVICE LESS THAN 50 KW
A141: GENERAL SERVICE LESS THAN 50 KW
A142: GENERAL SERVICE LESS THAN 50 KW | B142: MONTHLY RATES AND CHARGES - Regulatory Component
A143: GENERAL SERVICE LESS THAN 50 KW
A144: GENERAL SERVICE LESS THAN 50 KW | B144: Wholesale Market Service Rate | H144: =H81 -> $/kWh | I144: 0.0044 | K144: 2_C_WMSR
A145: GENERAL SERVICE LESS THAN 50 KW | B145: Rural or Remote Electricity Rate Protection Charge (RRRP) | H145: $/kWh | I145: 0.0013 | K145: 2_C_RRPC
A146: GENERAL SERVICE LESS THAN 50 KW | B146: Standard Supply Service - Administrative Charge (if applicable) | H146: $ | I146: 0.25 | K146: 2_C_SSS
A147: GENERAL SERVICE LESS THAN 50 KW
A150: GENERAL SERVICE 50 TO 999 KW | B150: GENERAL SERVICE 50 TO 999 KW Service Classification
A151: GENERAL SERVICE 50 TO 999 KW
A152: GENERAL SERVICE 50 TO 999 KW | B152: This classification includes non-residential accounts where monthly average peak demand is equal to or greater than, or is forecast to be equal to or greater than, 50 kW but less than 1,000 kW. Note that for the application of the Retail Transmission Rate - Network Service Rate and the Retail Transmission Rate - Line and Transformation Connection Service Rate the following sub-classifications apply: General Service 50 to 999 non-interval metered, General Service 50 to 999 kW interval metered. Further servicing details are avaialble in the distributor's Conditions of Service.
A153: GENERAL SERVICE 50 TO 999 KW
A154: GENERAL SERVICE 50 TO 999 KW
A155: GENERAL SERVICE 50 TO 999 KW
A156: GENERAL SERVICE 50 TO 999 KW
A157: GENERAL SERVICE 50 TO 999 KW
A158: GENERAL SERVICE 50 TO 999 KW | B158: APPLICATION
A159: GENERAL SERVICE 50 TO 999 KW
A160: GENERAL SERVICE 50 TO 999 KW | B160: The application of these rates and charges shall be in accordance with the Licence of the Distributor and any Code or Order of the Board, and amendments thereto as approved by the Board, which may be applicable to the administration of this schedule.
A161: GENERAL SERVICE 50 TO 999 KW
A162: GENERAL SERVICE 50 TO 999 KW
A163: GENERAL SERVICE 50 TO 999 KW | B163: No rates and charges for the distribution of electricity and charges to meet the costs of any work or service done or furnished for the purpose of the distribution of electricity shall be made except as permitted by this schedule, unless required by the Distributor's Licence or a Code or Order of the Board, and amendments thereto as approved by the Board, or as specified herein.
A164: GENERAL SERVICE 50 TO 999 KW
A165: GENERAL SERVICE 50 TO 999 KW
A166: GENERAL SERVICE 50 TO 999 KW
A167: GENERAL SERVICE 50 TO 999 KW | B167: Unless specifically noted, this schedule does not contain any charges for the electricity commodity, be it under the Regulated Price Plan, a contract with a retailer or the wholesale market price, as applicable. In addition, the charges in the MONTHLY RATES AND CHARGES - Regulatory Component of this schedule do not apply to a customer that is an embedded wholesale market participant.
A168: GENERAL SERVICE 50 TO 999 KW
A169: GENERAL SERVICE 50 TO 999 KW
A170: GENERAL SERVICE 50 TO 999 KW | B170: It should be noted that this schedule does not list any charges, assessments or credits that are required by law to be invoiced by a distributor and that are not subject to Board approval, such as the Debt Retirement Charge, the Global Adjustment, the Ontario Clean Energy Benefit and the HST.
A171: GENERAL SERVICE 50 TO 999 KW
A172: GENERAL SERVICE 50 TO 999 KW
A173: GENERAL SERVICE 50 TO 999 KW
A174: GENERAL SERVICE 50 TO 999 KW | B174: MONTHLY RATES AND CHARGES - Delivery Component (If applicable, Effective Date MUST be included in rate description)
A175: GENERAL SERVICE 50 TO 999 KW | B175: Service Charge | H175: $ | I175: 166.66 | K175: 3_C_MSC
A176: GENERAL SERVICE 50 TO 999 KW | B176: Green Energy Act Plan Funding Adder - effective April 1, 2013 until March 31, 2014 | H176: $ | I176: 0.14 | K176: 3_C_MSC_Rate_Rider_1 | L176: 2014-03-31
A177: GENERAL SERVICE 50 TO 999 KW | B177: Green Energy Act Plan Funding Adder - effective April 1, 2014 until March 31, 2015 | H177: $ | I177: 0.15 | K177: 3_C_MSC_Rate_Rider_2 | L177: 2015-03-31
A178: GENERAL SERVICE 50 TO 999 KW | B178: Rate Rider for Disposition of Post Retirement Actuarial Gain - effective until March 31, 2025 | H178: $ | I178: -3.8 | K178: 3_C_MSC_Rate_Rider_3 | L178: 2025-03-31
A179: GENERAL SERVICE 50 TO 999 KW | B179: Distribution Volumetric Rate | H179: $/kW | I179: 2.542 | K179: 3_C_VC_1
A180: GENERAL SERVICE 50 TO 999 KW | B180: Low Voltage Service Rate | H180: $/kW | I180: 0.0151 | K180: 3_C_LVrate
A181: GENERAL SERVICE 50 TO 999 KW | B181: Rate Rider for Recovery of Lost Revenue Adjustment Mechanism (LRAM)/Shared Savings Mechanism (SSM) - effective until March 31, 2016 | H181: $/kW | I181: 0.0065 | K181: 3_C_VC_Rate_Rider_kW_1 | L181: 2016-03-31
A182: GENERAL SERVICE 50 TO 999 KW | B182: Rate Rider for Application of Tax Change - effective until December 31, 2014 | H182: $/kW | I182: -0.0031 | K182: 3_C_VC_Rate_Rider_kW_2 | L182: 2014-12-31
A183: GENERAL SERVICE 50 TO 999 KW | B183: Rate Rider for Disposition of Deferred PILs Variance Account 1562 - effective until March 31, 2016 | H183: $/kW | I183: 0.0614 | K183: 3_C_VC_DEFVAR_kW_1 | L183: 2016-03-31
A184: GENERAL SERVICE 50 TO 999 KW | B184: Rate Rider for Deferral/Variance Account Disposition (2014) - effective until December 31, 2014 | H184: $/kW | I184: -0.2138 | K184: 3_C_VC_DEFVAR_kW_2 | L184: 2014-12-31
A185: GENERAL SERVICE 50 TO 999 KW | B185: Rate Rider for Disposition of Global Adjustment Sub-Account (2014) - effective until December 31, 2014. Applicable only for Non-RPP Customers | H185: $/kW | I185: -0.7082 | K185: 3_C_VC_GA_Rate_Rider_kW_1 | L185: 2014-12-31
A186: GENERAL SERVICE 50 TO 999 KW | B186: Retail Transmission Rate - Network Service Rate | H186: $/kW | I186: 2.7544 | K186: 3_C_RTSR_Network
A187: GENERAL SERVICE 50 TO 999 KW | B187: Retail Transmission Rate - Network Service Rate - Interval Metered | H187: $/kW | I187: 2.8571 | K187: 3_C_RTSR_Network_Interval
A188: GENERAL SERVICE 50 TO 999 KW | B188: Retail Transmission Rate - Line and Transformation Connection Service Rate | H188: $/kW | I188: 1.9662 | K188: 3_C_RTSR_Connection
A189: GENERAL SERVICE 50 TO 999 KW | B189: Retail Transmission Rate - Line and Transformation Connection Service Rate - Interval Metered | H189: $/kW | I189: 2.0399 | K189: 3_C_RTSR_Connection_Interval
A190: GENERAL SERVICE 50 TO 999 KW
A191: GENERAL SERVICE 50 TO 999 KW
A192: GENERAL SERVICE 50 TO 999 KW
A193: GENERAL SERVICE 50 TO 999 KW
A194: GENERAL SERVICE 50 TO 999 KW
A195: GENERAL SERVICE 50 TO 999 KW
A196: GENERAL SERVICE 50 TO 999 KW
A197: GENERAL SERVICE 50 TO 999 KW
A198: GENERAL SERVICE 50 TO 999 KW
A199: GENERAL SERVICE 50 TO 999 KW
A200: GENERAL SERVICE 50 TO 999 KW
A201: GENERAL SERVICE 50 TO 999 KW
A202: GENERAL SERVICE 50 TO 999 KW
A203: GENERAL SERVICE 50 TO 999 KW
A204: GENERAL SERVICE 50 TO 999 KW
A205: GENERAL SERVICE 50 TO 999 KW | B205: MONTHLY RATES AND CHARGES - Regulatory Component
A206: GENERAL SERVICE 50 TO 999 KW
A207: GENERAL SERVICE 50 TO 999 KW | B207: Wholesale Market Service Rate | H207: $/kWh | I207: 0.0044 | K207: 3_C_WMSR
A208: GENERAL SERVICE 50 TO 999 KW | B208: Rural or Remote Electricity Rate Protection Charge (RRRP) | H208: $/kWh | I208: 0.0013 | K208: 3_C_RRPC
A209: GENERAL SERVICE 50 TO 999 KW | B209: Standard Supply Service - Administrative Charge (if applicable) | H209: $ | I209: 0.25 | K209: 3_C_SSS
A210: GENERAL SERVICE 50 TO 999 KW
A213: GENERAL SERVICE 1,000 TO 4,999 KW | B213: GENERAL SERVICE 1,000 TO 4,999 KW Service Classification
A214: GENERAL SERVICE 1,000 TO 4,999 KW
A215: GENERAL SERVICE 1,000 TO 4,999 KW | B215: This classification includes non-residential accounts where monthly average peak demand is equal to or greater than, or is forecast to be equal or greater than 1,000 kW but less than 5,000 kW. Further servicing details are available in the distributor's Conditions of Service.
... 357 more rows

Sheet 4. Hidden (hidden)
M1: Current Rate Classes | N1: Changed to Rate Classes | O1: Values in A that are NOT in B | P1: Values in B that are Not in A | Q1: Count of A | R1: Count of B
M2: RESIDENTIAL | N2: RESIDENTIAL | Q2: 9 | R2: 9
M3: GENERAL SERVICE LESS THAN 50 KW | N3: GENERAL SERVICE LESS THAN 50 KW
M4: GENERAL SERVICE 50 TO 999 KW | N4: GENERAL SERVICE 50 TO 999 KW
M5: GENERAL SERVICE 1,000 TO 4,999 KW | N5: GENERAL SERVICE 1,000 TO 4,999 KW
M6: LARGE USE | N6: LARGE USE
M7: UNMETERED SCATTERED LOAD | N7: UNMETERED SCATTERED LOAD
M8: SENTINEL LIGHTING | N8: SENTINEL LIGHTING
M9: STREET LIGHTING | N9: STREET LIGHTING
M10: microFIT | N10: microFIT
A24: RESIDENTIAL | B24: RESIDENTIAL Service Classification
A25: RESIDENTIAL
A26: RESIDENTIAL
A27: RESIDENTIAL
A28: RESIDENTIAL
A29: RESIDENTIAL
A30: RESIDENTIAL
A31: RESIDENTIAL
A32: RESIDENTIAL | B32: APPLICATION
A33: RESIDENTIAL
A34: RESIDENTIAL
A35: RESIDENTIAL
A36: RESIDENTIAL
A37: RESIDENTIAL
A38: RESIDENTIAL
A39: RESIDENTIAL
A40: RESIDENTIAL
A41: RESIDENTIAL
A42: RESIDENTIAL
A43: RESIDENTIAL
A44: RESIDENTIAL
A45: RESIDENTIAL
A46: RESIDENTIAL
A47: RESIDENTIAL
A48: RESIDENTIAL | B48: MONTHLY RATES AND CHARGES - Delivery Component (If applicable, Effective Date MUST be included in rate description)
A49: RESIDENTIAL
A50: RESIDENTIAL
A51: RESIDENTIAL
A52: RESIDENTIAL
A53: RESIDENTIAL
A54: RESIDENTIAL
A55: RESIDENTIAL
A56: RESIDENTIAL
A57: RESIDENTIAL
A58: RESIDENTIAL
A59: RESIDENTIAL
A60: RESIDENTIAL
A61: RESIDENTIAL
A62: RESIDENTIAL
A63: RESIDENTIAL
A64: RESIDENTIAL
A65: RESIDENTIAL
A66: RESIDENTIAL
A67: RESIDENTIAL
A68: RESIDENTIAL
A69: RESIDENTIAL
A70: RESIDENTIAL
A71: RESIDENTIAL
A72: RESIDENTIAL
A73: RESIDENTIAL
A74: RESIDENTIAL
A75: RESIDENTIAL
A76: RESIDENTIAL
A77: RESIDENTIAL
A78: RESIDENTIAL
A79: RESIDENTIAL | B79: MONTHLY RATES AND CHARGES - Regulatory Component
A80: RESIDENTIAL
A81: RESIDENTIAL | B81: Wholesale Market Service Rate | H81: $/kWh | I81: 0.0044
A82: RESIDENTIAL | B82: Rural or Remote Electricity Rate Protection Charge (RRRP) | H82: $/kWh | I82: 0.0013
A83: RESIDENTIAL | B83: Standard Supply Service - Administrative Charge (if applicable) | H83: $ | I83: 0.25
A84: RESIDENTIAL
A87: GENERAL SERVICE 50 TO 999 KW | B87: GENERAL SERVICE 50 TO 999 KW Service Classification
A88: GENERAL SERVICE 50 TO 999 KW
A89: GENERAL SERVICE 50 TO 999 KW
A90: GENERAL SERVICE 50 TO 999 KW
A91: GENERAL SERVICE 50 TO 999 KW
A92: GENERAL SERVICE 50 TO 999 KW
A93: GENERAL SERVICE 50 TO 999 KW
A94: GENERAL SERVICE 50 TO 999 KW
A95: GENERAL SERVICE 50 TO 999 KW | B95: APPLICATION
A96: GENERAL SERVICE 50 TO 999 KW
A97: GENERAL SERVICE 50 TO 999 KW
A98: GENERAL SERVICE 50 TO 999 KW
A99: GENERAL SERVICE 50 TO 999 KW
A100: GENERAL SERVICE 50 TO 999 KW
A101: GENERAL SERVICE 50 TO 999 KW
A102: GENERAL SERVICE 50 TO 999 KW
A103: GENERAL SERVICE 50 TO 999 KW
A104: GENERAL SERVICE 50 TO 999 KW
A105: GENERAL SERVICE 50 TO 999 KW
A106: GENERAL SERVICE 50 TO 999 KW
A107: GENERAL SERVICE 50 TO 999 KW
A108: GENERAL SERVICE 50 TO 999 KW
A109: GENERAL SERVICE 50 TO 999 KW
A110: GENERAL SERVICE 50 TO 999 KW
A111: GENERAL SERVICE 50 TO 999 KW | B111: MONTHLY RATES AND CHARGES - Delivery Component (If applicable, Effective Date MUST be included in rate description)
A112: GENERAL SERVICE 50 TO 999 KW
A113: GENERAL SERVICE 50 TO 999 KW
A114: GENERAL SERVICE 50 TO 999 KW
A115: GENERAL SERVICE 50 TO 999 KW
A116: GENERAL SERVICE 50 TO 999 KW
A117: GENERAL SERVICE 50 TO 999 KW
A118: GENERAL SERVICE 50 TO 999 KW
A119: GENERAL SERVICE 50 TO 999 KW
A120: GENERAL SERVICE 50 TO 999 KW
A121: GENERAL SERVICE 50 TO 999 KW
A122: GENERAL SERVICE 50 TO 999 KW
A123: GENERAL SERVICE 50 TO 999 KW
A124: GENERAL SERVICE 50 TO 999 KW
A125: GENERAL SERVICE 50 TO 999 KW
A126: GENERAL SERVICE 50 TO 999 KW
A127: GENERAL SERVICE 50 TO 999 KW
A128: GENERAL SERVICE 50 TO 999 KW
A129: GENERAL SERVICE 50 TO 999 KW
A130: GENERAL SERVICE 50 TO 999 KW
A131: GENERAL SERVICE 50 TO 999 KW
A132: GENERAL SERVICE 50 TO 999 KW
A133: GENERAL SERVICE 50 TO 999 KW
A134: GENERAL SERVICE 50 TO 999 KW
A135: GENERAL SERVICE 50 TO 999 KW
A136: GENERAL SERVICE 50 TO 999 KW
A137: GENERAL SERVICE 50 TO 999 KW
A138: GENERAL SERVICE 50 TO 999 KW
A139: GENERAL SERVICE 50 TO 999 KW
A140: GENERAL SERVICE 50 TO 999 KW
A141: GENERAL SERVICE 50 TO 999 KW
A142: GENERAL SERVICE 50 TO 999 KW | B142: MONTHLY RATES AND CHARGES - Regulatory Component
A143: GENERAL SERVICE 50 TO 999 KW
A144: GENERAL SERVICE 50 TO 999 KW | B144: Wholesale Market Service Rate | H144: $/kWh | I144: 0.0044
A145: GENERAL SERVICE 50 TO 999 KW | B145: Rural or Remote Electricity Rate Protection Charge (RRRP) | H145: $/kWh | I145: 0.0013
A146: GENERAL SERVICE 50 TO 999 KW | B146: Standard Supply Service - Administrative Charge (if applicable) | H146: $ | I146: 0.25
A147: GENERAL SERVICE 50 TO 999 KW
A150: STREET LIGHTING | B150: STREET LIGHTING Service Classification
A151: STREET LIGHTING
A152: STREET LIGHTING
A153: STREET LIGHTING
A154: STREET LIGHTING
A155: STREET LIGHTING
A156: STREET LIGHTING
A157: STREET LIGHTING
A158: STREET LIGHTING | B158: APPLICATION
A159: STREET LIGHTING
A160: STREET LIGHTING
A161: STREET LIGHTING
A162: STREET LIGHTING
A163: STREET LIGHTING
A164: STREET LIGHTING
A165: STREET LIGHTING
A166: STREET LIGHTING
A167: STREET LIGHTING
A168: STREET LIGHTING
A169: STREET LIGHTING
A170: STREET LIGHTING
A171: STREET LIGHTING
A172: STREET LIGHTING
A173: STREET LIGHTING
A174: STREET LIGHTING | B174: MONTHLY RATES AND CHARGES - Delivery Component (If applicable, Effective Date MUST be included in rate description)
A175: STREET LIGHTING
A176: STREET LIGHTING
A177: STREET LIGHTING
A178: STREET LIGHTING
A179: STREET LIGHTING
A180: STREET LIGHTING
A181: STREET LIGHTING
A182: STREET LIGHTING
A183: STREET LIGHTING
A184: STREET LIGHTING
A185: STREET LIGHTING
A186: STREET LIGHTING
A187: STREET LIGHTING
A188: STREET LIGHTING
A189: STREET LIGHTING
A190: STREET LIGHTING
A191: STREET LIGHTING
A192: STREET LIGHTING
A193: STREET LIGHTING
A194: STREET LIGHTING
A195: STREET LIGHTING
A196: STREET LIGHTING
A197: STREET LIGHTING
A198: STREET LIGHTING
A199: STREET LIGHTING
A200: STREET LIGHTING
A201: STREET LIGHTING
A202: STREET LIGHTING
A203: STREET LIGHTING
A204: STREET LIGHTING
A205: STREET LIGHTING | B205: MONTHLY RATES AND CHARGES - Regulatory Component
A206: STREET LIGHTING
A207: STREET LIGHTING | B207: Wholesale Market Service Rate | H207: $/kWh | I207: 0.0044
A208: STREET LIGHTING | B208: Rural or Remote Electricity Rate Protection Charge (RRRP) | H208: $/kWh | I208: 0.0013
A209: STREET LIGHTING | B209: Standard Supply Service - Administrative Charge (if applicable) | H209: $ | I209: 0.25
A210: STREET LIGHTING

Sheet 5. 2014 Continuity Schedule
C15: Please complete the following continuity schedule for the following Deferral / Variance Accounts. Enter information into green cells only. If you have received approval to dispose of balances from prior years, the starting point for entries in the 2015 DVA schedule below will be the balance sheet date as per your G/L for which you received approval. For example, if in the 2014 EDR process (CoS or IRM) you received approval for the December 31, 2012 balances, the starting point for your entries below should be the 2011 year. This will allow for the correct starting point for the 2012 opening balance columns for both principal and interest. Please refer to the footnotes for further instructions.
E19: 2010 | O19: 2011 | Y19: 2012 | AL19: 2013 | AY19: 2014 | BC19: Projected Interest on Dec-31-13 Balances | BF19: 2.1.7 RRR
C20: Account Descriptions | D20: Account Number | E20: Opening Principal Amounts as of Jan-1-10 | F20: Transactions Debit / (Credit) during 2010 excluding interest and adjustments 2 | G20: Board-Approved Disposition during 2010 | H20: Adjustments during 2010 - other 1 | I20: Closing Principal Balance as of Dec-31-10 | J20: Opening Interest Amounts as of Jan-1-10 | K20: Interest Jan-1 to Dec-31-10 | L20: Board-Approved Disposition during 2010 | M20: Adjustments during 2010 - other 2 | N20: Closing Interest Amounts as of Dec-31-10 | O20: Opening Principal Amounts as of Jan-1-11 | P20: Transactions Debit / (Credit) during 2011 excluding interest and adjustments 2 | Q20: Board-Approved Disposition during 2011 | R20: Adjustments during 2011 - other 1 | S20: Closing Principal Balance as of Dec-31-11 | T20: Opening Interest Amounts as of Jan-1-11 | U20: Interest Jan-1 to Dec-31-11 | V20: Board-Approved Disposition during 2011 | W20: Adjustments during 2011 - other 2 | X20: Closing Interest Amounts as of Dec-31-11 | Y20: Opening Principal Amounts as of Jan-1-12 | Z20: Transactions Debit / (Credit) during 2012 excluding interest and adjustments 2 | AA20: Board-Approved Disposition during 2012 | AB20: Other 1 Adjustments during Q1 2012 | AC20: Other 1 Adjustments during Q2 2012 | AD20: Other 1 Adjustments during Q3 2012 | AE20: Other 1 Adjustments during Q4 2012 | AF20: Closing Principal Balance as of Dec-31-12 | AG20: Opening Interest Amounts as of Jan-1-12 | AH20: Interest Jan-1 to Dec-31-12 | AI20: Board-Approved Disposition during 2012 | AJ20: Adjustments during 2012 - other 1 | AK20: Closing Interest Amounts as of Dec-31-12 | AL20: Opening Principal Amounts as of Jan-1-13 | AM20: Transactions Debit / (Credit) during 2013 excluding interest and adjustments 2 | AN20: Board-Approved Disposition during 2013 | AO20: Other 1 Adjustments during Q1 2013 | AP20: Other 1 Adjustments during Q2 2013 | AQ20: Other 1 Adjustments during Q3 2013 | AR20: Other 1 Adjustments during Q4 2013 | AS20: Closing Principal Balance as of Dec-31-13 | AT20: Opening Interest Amounts as of Jan-1-13 | AU20: Interest Jan-1 to Dec-31-13 | AV20: Board-Approved Disposition during 2013 | AW20: Adjustments during 2013 - other 1 | AX20: Closing Interest Amounts as of Dec-31-13 | AY20: Principal Disposition during 2014 - instructed by Board | AZ20: Interest Disposition during 2014 - instructed by Board | BA20: Closing Principal Balances as of Dec 31-13 Adjusted for Dispositions during 2014 | BB20: Closing Interest Balances as of Dec 31-13 Adjusted for Dispositions during 2014 | BC20: Projected Interest from Jan 1, 2014 to December 31, 2014 on Dec 31 -13 balance adjusted for disposition during 2014 3 | BD20: Projected Interest from January 1, 2015 to April 30, 2015 on Dec 31 -13 balance adjusted for disposition during 2014 3 | BE20: Total Claim | BF20: As of Dec 31-13 | BG20: Variance RRR vs. 2013 Balance (Principal + Interest)
BE22: Claim before Forecasted Transactions
C23: Group 1 Accounts
A24: 1 | C24: LV Variance Account | D24: 1550 | H24: -115803 | I24: =E24+F24-G24+H24 -> -115803 | M24: -1223 | N24: =J24+K24-L24+M24 -> -1223 | O24: =I24 -> -115803 | P24: -38061 | S24: =O24+P24-Q24+R24 -> -153864 | T24: =N24 -> -1223 | U24: -2058.4 | X24: =T24+U24-V24+W24 -> -3281.4 | Y24: =S24 -> -153864 | Z24: 28168.38 | AA24: -115802 | AF24: =Y24+Z24-AA24+SUM(AB24:AE24) -> -9893.62 | AG24: =X24 -> -3281.4 | AH24: -715.34 | AI24: -2925 | AK24: =AG24+AH24-AI24+AJ24 -> -1071.74 | AL24: =AF24 -> -9893.62 | AM24: 17488.58 | AS24: =AL24+AM24-AN24+SUM(AO24:AR24) -> 7594.96 | AT24: =AK24 -> -1071.74 | AU24: -235 | AX24: =AT24+AU24-AV24+AW24 -> -1306.74 | AY24: -9893.62 | AZ24: -1217.176214 | BA24: =AS24-AY24 -> 17488.58 | BB24: =AX24-AZ24 -> -89.563786 | BC24: =BA24*1.47% -> 257.082126 | BE24: =SUM(BA24:BD24) -> 17656.09834 | BF24: 9627.33 | BG24: =BF24-SUM(AS24,AX24) -> 3339.11
C25: Smart Metering Entity Charge Variance | D25: 1551 | AK25: 0 | AL25: =AK25 -> 0 | AM25: 62203.42 | AS25: =AL25+AM25-AN25+SUM(AO25:AR25) -> 62203.42 | AT25: =AK25 -> 0 | AU25: 701.9653393 | AX25: 701.9653393 | BA25: =AS25-AY25 -> 62203.42 | BB25: =AX25-AZ25 -> 701.9653393 | BC25: =BA25*1.47% -> 914.390274 | BE25: =SUM(BA25:BD25) -> 63819.77561 | BF25: 62905.33 | BG25: =BF25-SUM(AS25,AX25) -> -0.05533925001
A26: 2 | C26: RSVA - Wholesale Market Service Charge | D26: 1580 | H26: -1922324 | I26: =E26+F26-G26+SUM(H26:H26) -> -1922324 | M26: -10605 | N26: =J26+K26-L26+M26 -> -10605 | O26: =I26 -> -1922324 | P26: -1724383 | S26: =O26+P26-Q26+SUM(R26:R26) -> -3646707 | T26: -10605 | U26: -41196 | X26: =T26+U26-V26+W26 -> -51801 | Y26: =S26 -> -3646707 | Z26: -2265180 | AA26: -1922324 | AF26: -3989563 | AG26: =X26 -> -51801 | AH26: -56200 | AI26: -38863 | AK26: -69138 | AL26: =AF26 -> -3989563 | AM26: -961981 | AS26: -4951544 | AT26: =AK26 -> -69138 | AU26: -37890 | AX26: -107028 | AY26: -3989563 | AZ26: -127784.5761 | BA26: -961981 | BB26: 20756.5761 | BC26: -14141.1207 | BE26: =SUM(BA26:BD26) -> -955365.5446 | BF26: -5058571.53 | BG26: 0.4699999997
A27: 3 | C27: RSVA - Retail Transmission Network Charge | D27: 1584 | H27: 667902 | I27: 667902 | M27: 4822 | N27: 4822 | O27: 667902 | P27: 550443 | S27: 1218345 | T27: 4822 | U27: 14033 | X27: 18855 | Y27: 1218345 | Z27: 794806 | AA27: 667902 | AF27: 1345249 | AG27: 18855 | AH27: 3637 | AI27: 14641 | AK27: 7851 | AL27: 1345249 | AM27: 517305 | AS27: 1862554 | AT27: 7851 | AU27: 655 | AX27: 8506 | AY27: 1345249 | AZ27: 27626.1603 | BA27: 517305 | BB27: -19120.1603 | BC27: 7604.3835 | BE27: 505789.2232 | BF27: 1871060.45 | BG27: 0.45
A28: 4 | C28: RSVA - Retail Transmission Connection Charge | D28: 1586 | H28: -373043 | I28: -373043 | M28: -3576 | N28: -3576 | O28: -373043 | P28: 994173 | S28: 621130 | T28: -3576 | U28: -3950 | X28: -7526 | Y28: 621130 | Z28: -478226 | AA28: -373043 | AF28: 515947 | AG28: -7526 | AH28: -4188 | AI28: -9060 | AK28: -2654 | AL28: 515947 | AM28: -112262 | AS28: 403685 | AT28: -2654 | AU28: 601 | AX28: -2053 | AY28: 515947 | AZ28: 4930.4209 | BA28: -112262 | BB28: -6983.4209 | BC28: -1650.2514 | BE28: -120895.6723 | BF28: 401631.73 | BG28: -0.27
A29: 5 | C29: RSVA - Power (excluding Global Adjustment) | D29: 1588 | H29: -739604 | I29: -739604 | M29: -6967 | N29: -6967 | O29: -739604 | P29: -729327 | S29: -1468931 | T29: -6967 | U29: -19575 | W29: -91149.41 | X29: -117691.41 | Y29: -1468931 | Z29: 2308626 | AA29: -739604 | AF29: 1579299 | AG29: -117691.41 | AH29: -83220 | AI29: -17838 | AK29: -183073.41 | AL29: 1579299 | AM29: 1992667 | AR29: -1131481 | AS29: 2440485 | AT29: -183073.41 | AU29: 9093 | AX29: -173980.41 | AY29: 1579299 | AZ29: -159857.7147 | BA29: 861186 | BB29: -14122.6953 | BC29: 12659.4342 | BE29: 859722.7389 | BF29: 3397986.02 | BG29: 1131481.43
A30: 6 | C30: RSVA - Global Adjustment | D30: 1589 | H30: -1146068 | I30: -1146068 | M30: -7617 | N30: -7617 | O30: -1146068 | P30: 586626 | S30: -559442 | T30: -7617 | U30: -14118 | W30: 105733.42 | X30: 83998.42 | Y30: -559442 | Z30: -2872449 | AA30: -1146068 | AF30: -2285823 | AG30: 83998.42 | AH30: -41189 | AI30: -24464 | AK30: 67273.42 | AL30: -2285823 | AM30: 4829630 | AS30: 2543807 | AT30: 67273.42 | AU30: -16899 | AX30: 50374.42 | AY30: -2285823 | AZ30: 33671.8219 | BA30: 4829630 | BB30: 16702.5981 | BC30: 70995.561 | BE30: 4917328.159 | BF30: 2594180.93 | BG30: -0.4899999998
A31: 7 | C31: Recovery of Regulatory Asset Balances | D31: 1590 | I31: 0 | N31: 0 | O31: 0 | S31: 0 | T31: 0 | X31: 0 | Y31: 0 | AF31: 0 | AG31: 0 | AK31: 0 | AL31: 0 | AS31: 0 | AT31: 0 | AX31: 0 | AY31: 0 | AZ31: 0 | BA31: 0 | BB31: 0 | BC31: 0 | BE31: 0 | BG31: 0
A32: 8 | C32: Disposition and Recovery/Refund of Regulatory Balances (2008)4 | D32: 1595 | H32: 14174 | I32: 14174 | M32: 10340 | N32: 10340 | O32: =I32 -> 14174 | P32: -2780 | S32: 11394 | T32: 10340 | U32: -987 | X32: 9353 | Y32: 11394 | Z32: -224 | AA32: 14174.16 | AF32: -3004.16 | AG32: 9353 | AH32: -1203.78 | AI32: 10548.5 | AK32: -2399.28 | AL32: -3004.16 | AM32: 13 | AS32: -2991.16 | AT32: -2399.28 | AU32: -1221 | AX32: -3620.28 | AY32: -3004.16 | AZ32: -2443.441152 | BA32: 13 | BB32: -1176.838848 | BC32: 0.1911 | BE32: -1163.647748 | BF32: -6611 | BG32: 0.44
A33: 9 | C33: Disposition and Recovery/Refund of Regulatory Balances (2009)4 | D33: 1595 | I33: 0 | N33: 0 | O33: =I33 -> 0 | S33: 0 | T33: 0 | X33: 0 | Y33: 0 | AF33: 0 | AG33: 0 | AK33: 0 | AL33: 0 | AS33: 0 | AT33: 0 | AX33: 0 | AY33: 0 | AZ33: 0 | BA33: 0 | BB33: 0 | BC33: 0 | BE33: 0 | BG33: 0
A34: 9 | C34: Disposition and Recovery/Refund of Regulatory Balances (2010)4 | D34: 1595 | H34: -2331418 | I34: -2331418 | M34: -102888 | N34: -102888 | O34: =I34 -> -2331418 | P34: 1728425 | S34: -602993 | T34: -102888 | U34: -22697 | X34: -125585 | Y34: -602993 | Z34: 628679 | AF34: 25686 | AG34: -125585 | AH34: -629 | AK34: -126214 | AL34: 25686 | AM34: -1175 | AS34: 24511 | AT34: -126214 | AU34: 460 | AX34: -125754 | AY34: 25686 | AZ34: -126025.2079 | BA34: -1175 | BB34: 271.2079 | BC34: -17.2725 | BE34: -921.0646 | BF34: -101243 | BG34: 0
A35: 9 | C35: Disposition and Recovery/Refund of Regulatory Balances (2011)4 | D35: 1595 | I35: 0 | N35: 0 | O35: =I35 -> 0 | S35: 0 | T35: 0 | X35: 0 | Y35: 0 | AF35: 0 | AG35: 0 | AK35: 0 | AL35: 0 | AS35: 0 | AT35: 0 | AX35: 0 | AY35: 0 | AZ35: 0 | BA35: 0 | BB35: 0 | BC35: 0 | BE35: =SUM(BA35:BD35) -> 0 | BF35: 0 | BG35: 0
A36: 9 | C36: Disposition and Recovery/Refund of Regulatory Balances (2012)4 | D36: 1595 | I36: 0 | N36: 0 | O36: =I36 -> 0 | S36: 0 | T36: =N36 -> 0 | X36: 0 | Y36: =S36 -> 0 | Z36: 2966924 | AA36: 2922377 | AF36: =Y36+Z36-AA36+SUM(AB36:AE36) -> 44547 | AG36: =X36 -> 0 | AH36: -28413 | AI36: -541550 | AK36: =AG36+AH36-AI36+AJ36 -> 513137 | AL36: =AF36 -> 44547 | AM36: -40742 | AR36: 1131481 | AS36: =AL36+AM36-AN36+SUM(AO36:AR36) -> 1135286 | AT36: =AK36 -> 513137 | AU36: 14798 | AX36: =AT36+AU36-AV36+AW36 -> 527935 | BA36: 1135286 | BB36: 527935 | BC36: 16688.7042 | BE36: =SUM(BA36:BD36) -> 1679909.704 | BF36: 560153 | BG36: -1103068
C38: RSVA - Global Adjustment | D38: 1589 | E38: =E30 -> 0 | F38: 0 | G38: 0 | H38: -1146068 | I38: -1146068 | J38: 0 | K38: 0 | L38: 0 | M38: -7617 | N38: -7617 | O38: -1146068 | P38: =P30 -> 586626 | Q38: 0 | R38: 0 | S38: -559442 | T38: -7617 | U38: -14118 | V38: 0 | W38: 105733.42 | X38: 83998.42 | Y38: =Y30 -> -559442 | Z38: =Z30 -> -2872449 | AA38: -1146068 | AB38: 0 | AC38: 0 | AD38: 0 | AE38: 0 | AF38: =AF30 -> -2285823 | AG38: 83998.42 | AH38: -41189 | AI38: -24464 | AJ38: 0 | AK38: 67273.42 | AL38: -2285823 | AM38: =AM30 -> 4829630 | AN38: 0 | AO38: 0 | AP38: 0 | AQ38: 0 | AR38: 0 | AS38: 2543807 | AT38: 67273.42 | AU38: -16899 | AV38: 0 | AW38: 0 | AX38: 50374.42 | AY38: =AY30 -> -2285823 | AZ38: =AZ30 -> 33671.8219 | BA38: 4829630 | BB38: 16702.5981 | BC38: 70995.561 | BD38: 0 | BE38: 4917328.159 | BF38: 2594180.93 | BG38: -0.4899999998
C39: Total Group 1 Balance excluding Account 1589 - Global Adjustment | E39: =SUM(E24:E29,E31:E36) -> 0 | F39: 0 | G39: 0 | H39: -4800116 | I39: -4800116 | J39: 0 | K39: 0 | L39: 0 | M39: -110097 | N39: -110097 | O39: -4800116 | P39: =SUM(P24:P29,P31:P36) -> 778490 | Q39: 0 | R39: 0 | S39: -4021626 | T39: -110097 | U39: -76430.4 | V39: 0 | W39: -91149.41 | X39: -277676.81 | Y39: =SUM(Y24:Y29,Y31:Y36) -> -4021626 | Z39: =SUM(Z24:Z29,Z31:Z36) -> 3983573.38 | AA39: 453680.16 | AB39: 0 | AC39: 0 | AD39: 0 | AE39: 0 | AF39: =SUM(AF24:AF29,AF31:AF36) -> -491732.78 | AG39: -277676.81 | AH39: -170932.12 | AI39: -585046.5 | AJ39: 0 | AK39: 136437.57 | AL39: -491732.78 | AM39: =SUM(AM24:AM29,AM31:AM36) -> 1473517 | AN39: 0 | AO39: 0 | AP39: 0 | AQ39: 0 | AR39: 0 | AS39: 981784.22 | AT39: 136437.57 | AU39: -13037.03466 | AV39: 0 | AW39: 0 | AX39: 123400.5353 | AY39: =SUM(AY24:AY29,AY31:AY36) -> -536279.78 | AZ39: =SUM(AZ24:AZ29,AZ31:AZ36) -> -384771.5349 | BA39: 1518064 | BB39: 508172.0702 | BC39: 22315.5408 | BD39: 0 | BE39: 2048551.611 | BF39: 1136938.33 | BG39: 31753.57466
C40: Total Group 1 Balance | E40: =SUM(E24:E36) -> 0 | F40: 0 | G40: 0 | H40: -5946184 | I40: -5946184 | J40: 0 | K40: 0 | L40: 0 | M40: -117714 | N40: -117714 | O40: -5946184 | P40: =SUM(P24:P36) -> 1365116 | Q40: 0 | R40: 0 | S40: -4581068 | T40: -117714 | U40: -90548.4 | V40: 0 | W40: 14584.01 | X40: -193678.39 | Y40: =SUM(Y24:Y36) -> -4581068 | Z40: =SUM(Z24:Z36) -> 1111124.38 | AA40: -692387.84 | AB40: 0 | AC40: 0 | AD40: 0 | AE40: 0 | AF40: =SUM(AF24:AF36) -> -2777555.78 | AG40: -193678.39 | AH40: -212121.12 | AI40: -609510.5 | AJ40: 0 | AK40: 203710.99 | AL40: -2777555.78 | AM40: =SUM(AM24:AM36) -> 6303147 | AN40: 0 | AO40: 0 | AP40: 0 | AQ40: 0 | AR40: 0 | AS40: 3525591.22 | AT40: 203710.99 | AU40: -29936.03466 | AV40: 0 | AW40: 0 | AX40: 173774.9553 | AY40: =SUM(AY24:AY36) -> -2822102.78 | AZ40: =SUM(AZ24:AZ36) -> -351099.713 | BA40: 6347694 | BB40: 524874.6683 | BC40: 93311.1018 | BD40: 0 | BE40: 6965879.77 | BF40: 3731119.26 | BG40: 31753.08466
C42: LRAM Variance Account | D42: 1568 | I42: =E42+F42-G42+SUM(H42:H42) -> 0 | N42: =J42+K42-L42+M42 -> 0 | S42: =O42+P42-Q42+SUM(R42:R42) -> 0 | X42: =T42+U42-V42+W42 -> 0 | Y42: =S42 -> 0 | AF42: =Y42+Z42-AA42+SUM(AB42:AE42) -> 0 | AG42: =X42 -> 0 | AK42: =AG42+AH42-AI42+AJ42 -> 0 | AL42: =AF42 -> 0 | AS42: =AL42+AM42-AN42+SUM(AO42:AR42) -> 0 | AT42: =AK42 -> 0 | AX42: =AT42+AU42-AV42+AW42 -> 0 | BA42: =AS42-AY42 -> 0 | BB42: =AX42-AZ42 -> 0 | BE42: =SUM(BA42:BD42) -> 0 | BF42: 0 | BG42: =BF42-SUM(AS42,AX42) -> 0
C44: Total including Account 1568 | E44: =E42+E40 -> 0 | F44: =F42+F40 -> 0 | G44: 0 | H44: -5946184 | I44: -5946184 | J44: 0 | K44: 0 | L44: 0 | M44: -117714 | N44: -117714 | O44: -5946184 | P44: 1365116 | Q44: 0 | R44: 0 | S44: -4581068 | T44: -117714 | U44: -90548.4 | V44: 0 | W44: 14584.01 | X44: -193678.39 | Y44: -4581068 | Z44: 1111124.38 | AA44: -692387.84 | AB44: 0 | AC44: 0 | AD44: 0 | AE44: 0 | AF44: -2777555.78 | AG44: -193678.39 | AH44: -212121.12 | AI44: -609510.5 | AJ44: 0 | AK44: 203710.99 | AL44: -2777555.78 | AM44: 6303147 | AN44: 0 | AO44: 0 | AP44: 0 | AQ44: 0 | AR44: 0 | AS44: 3525591.22 | AT44: 203710.99 | AU44: -29936.03466 | AV44: 0 | AW44: 0 | AX44: 173774.9553 | AY44: -2822102.78 | AZ44: -351099.713 | BA44: 6347694 | BB44: 524874.6683 | BC44: 93311.1018 | BD44: 0 | BE44: 6965879.77 | BF44: 3731119.26 | BG44: 31753.08466
C47: For all Board-Approved dispositions, please ensure that the disposition amount has the same sign (e.g: debit balances are to have a positive figure and credit balance are to have a negative figure) as per the related Board decision.
B50: 1 | C50: Please provide explanations for the nature of the adjustments. If the adjustment relates to previously Board Approved disposed balances, please provide amounts for adjustments and include supporting documentations.
B51: 2 | C51: For RSVA accounts only, report the net variance to the account during the year. For all other accounts, record the transactions during the year.
B52: 3 | C52: If the LDC’s rate year begins on January 1, 2015, the projected interest is recorded from January 1, 2014 to December 31, 2014 on the December 31, 2013 balances adjusted for the disposed balances approved by the Board in the 2014 rate decision. If the LDC’s rate year begins on May 1, 2015, the projected interest is recorded from January 1, 2014 to April 30, 2015 on the December 31, 2013 balances adjusted for the disposed interest balances approved by the Board in the 2014 rate decision.
B53: 4 | C53: Include Account 1595 as part of Group 1 accounts (lines 31, 32, 33 and 34) for review and disposition if the recovery (or refund) period has been completed. If the recovery (or refund) period has not been completed, do not include the respective balance in Account 1595 for disposition at this time.

Sheet 6. Billing Det. for Def-Var
AS1: As per Section 3.2.3 of the 2015 Filing Requirements for Electricity Distribution Rate Applications, an applicant may elect to dispose of the Group 1 account balances below the threshold. If doing so, please select YES from the adjacent drop-down cell and also indicate so in the Manager's Summary. If not, please select NO.
A13: In the green shaded cells, enter the most recent Board Approved volumetric forecast. If there is a material difference between the latest Board-approved volumetric forecast and the most recent 12-month actual volumetric data, use the most recent 12-month actual data. Do not enter data for the MicroFit class.
E15: Billed kWh for Non-RPP Customers | F15: Estimated kW for Non-RPP Customers | H15: 1590 Recovery Share Proportion* | I15: 1595 Recovery Share Proportion (2008) 1 | J15: 1595 Recovery Share Proportion (2009) 1 | K15: 1595 Recovery Share Proportion (2010) 1 | L15: 1595 Recovery Share Proportion (2011) 1 | M15: 1595 Recovery Share Proportion (2012) 1 | N15: 1568 LRAM Variance Account Class Allocation ($ amounts) | O15: Number of Customers for Residential and GS<50 classes3
A16: Rate Class | B16: Unit | C16: Metered kWh | D16: Metered kW
A17: RESIDENTIAL | B17: $/kWh | C17: 378871008.5 | E17: 49400334.05 | F17: =IF(ISERROR(D17/C17*E17), 0, D17/C17*E17) -> 0 | I17: 0.380761258 | K17: 0.380761258 | M17: 0.380761258 | O17: 47157
A18: GENERAL SERVICE LESS THAN 50 KW | B18: $/kWh | C18: 148787703 | E18: 22271949.7 | F18: 0 | I18: 0.1014824616 | K18: 0.1014824616 | M18: 0.1014824616 | O18: 3788
A19: GENERAL SERVICE 50 TO 999 KW | B19: $/kW | C19: 399661949.8 | D19: 1041991.876 | E19: 399661949.8 | F19: 1041991.876 | I19: 0.2681916025 | K19: 0.2681916025 | M19: 0.2681916025
A20: GENERAL SERVICE 1,000 TO 4,999 KW | B20: $/kW | C20: 465120498.3 | D20: 1015195.897 | E20: 465120498.3 | F20: 1015195.897 | I20: 0.1434968765 | K20: 0.1434968765 | M20: 0.1434968765
A21: LARGE USE | B21: $/kW | C21: 271481475 | D21: 490511.9761 | E21: 271481475 | F21: 490511.9761 | I21: 0.1000966407 | K21: 0.1000966407 | M21: 0.1000966407
A22: UNMETERED SCATTERED LOAD | B22: $/kWh | C22: 2229301.05 | E22: 2229301.05 | F22: 0 | I22: 0.002093934267 | K22: 0.002093934267 | M22: 0.002093934267
A23: SENTINEL LIGHTING | B23: $/kW | C23: 88740.01882 | D23: 250.6914272 | E23: 335.6921414 | F23: 0.9483336058 | I23: 0.0001636277975 | K23: 0.0001636277975 | M23: 0.0001636277975
A24: STREET LIGHTING | B24: $/kW | C24: 9777748.298 | D24: 27446.70869 | E24: 9503966.748 | F24: 26678.18794 | I24: 0.003713598692 | K24: 0.003713598692 | M24: 0.003713598692
A25: microFIT
B27: Total | C27: =SUM(C17:C25) -> 1676018424 | D27: =SUM(D17:D25) -> 2575397.149 | E27: 1219669810 | F27: 2574378.885 | H27: 0 | I27: 1 | J27: 0 | K27: 1 | L27: 0 | M27: 1 | N27: 0 | O27: 50945
M28: Balance as per Sheet 5 | N28: =ROUND('5. 2014 Continuity Schedule'!BE42, 0) -> 0
M29: Variance | N29: =N27-N28 -> 0
A31: Threshold Test
A32: Total Claim (including Account 1568) | B32: ='5. 2014 Continuity Schedule'!BE44 -> 6965879.77
A33: Total Claim for Threshold Test (All Group 1 Accounts) | B33: ='5. 2014 Continuity Schedule'!BE40 -> 6965879.77
A34: Threshold Test (Total claim per kWh) 2 | B34: =IF(ISERROR(B33/C27), 0, B33/C27) -> 0.004156207158 | D34: =IF(AND(B34>-0.001,B34<0.001),"Claim does not meet the threshold test.","") -> 
A36: =IF(AND(B34>-0.001, B34<0.001), AS1, "") -> 
A40: 1 Residual Account balance to be allocated to rate classes in proportion to the recovery share as established when rate riders were implemented.
A41: 2 The Threshold Test does not include the amount in 1568.
A42: 3 The proportion of customers for the Residential and GS<50 Classes will be used to allocate Account 1551.

Sheet 6. hidden (hidden)
E1: Billed kWh for Non-RPP Customers | F1: Estimated kW for Non-RPP Customers | G1: Distribution Revenue 1 | H1: 1590 Recovery Share Proportion* | I1: 1595 Recovery Share Proportion (2008) 2 | J1: 1595 Recovery Share Proportion (2009) 2 | K1: 1595 Recovery Share Proportion (2010) 2 | L1: 1595 Recovery Share Proportion (2011) 2 | M1: 1568 LRAM Variance Account Class Allocation
A2: Rate Class | B2: Unit | C2: Metered kWh | D2: Metered kW
A3: RESIDENTIAL | B3: $/kWh | C3: 378871008.5 | D3: 0 | E3: 49400334.05 | G3: 0 | H3: 0 | I3: 0.380761258 | J3: 0 | K3: 0.380761258 | L3: 0 | M3: 0.380761258 | N3: 0 | O3: 47157
A4: GENERAL SERVICE LESS THAN 50 KW | B4: $/kWh | C4: 148787703 | D4: 0 | E4: 22271949.7 | G4: 0 | H4: 0 | I4: 0.1014824616 | J4: 0 | K4: 0.1014824616 | L4: 0 | M4: 0.1014824616 | N4: 0 | O4: 3788
A5: GENERAL SERVICE 50 TO 999 KW | B5: $/kW | C5: 399661949.8 | D5: 1041991.876 | E5: 399661949.8 | G5: 0 | H5: 0 | I5: 0.2681916025 | J5: 0 | K5: 0.2681916025 | L5: 0 | M5: 0.2681916025 | N5: 0 | O5: 0
A6: GENERAL SERVICE 1,000 TO 4,999 KW | B6: $/kW | C6: 465120498.3 | D6: 1015195.897 | E6: 465120498.3 | G6: 0 | H6: 0 | I6: 0.1434968765 | J6: 0 | K6: 0.1434968765 | L6: 0 | M6: 0.1434968765 | N6: 0 | O6: 0
A7: LARGE USE | B7: $/kW | C7: 271481475 | D7: 490511.9761 | E7: 271481475 | G7: 0 | H7: 0 | I7: 0.1000966407 | J7: 0 | K7: 0.1000966407 | L7: 0 | M7: 0.1000966407 | N7: 0 | O7: 0
A8: UNMETERED SCATTERED LOAD | B8: $/kWh | C8: 2229301.05 | D8: 0 | E8: 2229301.05 | G8: 0 | H8: 0 | I8: 0.002093934267 | J8: 0 | K8: 0.002093934267 | L8: 0 | M8: 0.002093934267 | N8: 0 | O8: 0
A9: SENTINEL LIGHTING | B9: $/kW | C9: 88740.01882 | D9: 250.6914272 | E9: 335.6921414 | G9: 0 | H9: 0 | I9: 0.0001636277975 | J9: 0 | K9: 0.0001636277975 | L9: 0 | M9: 0.0001636277975 | N9: 0 | O9: 0
A10: STREET LIGHTING | B10: $/kW | C10: 9777748.298 | D10: 27446.70869 | E10: 9503966.748 | G10: 0 | H10: 0 | I10: 0.003713598692 | J10: 0 | K10: 0.003713598692 | L10: 0 | M10: 0.003713598692 | N10: 0 | O10: 0
A11: microFIT | B11: 0 | C11: 0 | D11: 0 | E11: 0 | G11: 0 | H11: 0 | I11: 0 | J11: 0 | K11: 0 | L11: 0 | M11: 0 | N11: 0 | O11: 0

Sheet 7. Allocating Def-Var Balances
A13: No input required. This workshseet allocates the deferral/variance account balances (Group 1, 1589, and 1568) to the appropriate classes as per the EDDVAR Report dated July 31, 2009
A15: Allocation of Group 1 Accounts (including Account 1568)
C16: % of Total kWh | D16: % of Total non-RPP kWh | E16: % of Customer Numbers ** | N16: 1595 (2008) | O16: 1595 (2009) | P16: 1595 (2010) | Q16: 1595 (2011) | R16: 1595 (2012) | S16: 1568
A17: Rate Class | F17: 1550 | G17: 1551 | H17: 1580 | I17: 1584 | J17: 1586 | K17: 1588 | L17: 1589 | M17: 1590
A19: RESIDENTIAL | C19: =VLOOKUP(A19, '6. Billing Det. for Def-Var'!A17:D25, 3,0)/'6. Billing Det. for Def-Var'!C27 -> 0.2260542027 | D19: =VLOOKUP(A19, '6. Billing Det. for Def-Var'!A17:E25, 5,0)/'6. Billing Det. for Def-Var'!E27 -> 0.04050303912 | E19: =VLOOKUP(A19, '6. Billing Det. for Def-Var'!A17:O25, 15,0)/'6. Billing Det. for Def-Var'!O27 -> 0.9256453038 | F19: =C19* '5. 2014 Continuity Schedule'!BE24 -> 3991.235232 | G19: =E19* '5. 2014 Continuity Schedule'!BE25 -> 59074.47558 | H19: =C19* '5. 2014 Continuity Schedule'!BE26 -> -215964.3964 | I19: =C19* '5. 2014 Continuity Schedule'!BE27 -> 114335.7796 | J19: =C19* '5. 2014 Continuity Schedule'!BE28 -> -27328.97481 | K19: =C19* '5. 2014 Continuity Schedule'!BE29 -> 194343.9383 | L19: =D19* '5. 2014 Continuity Schedule'!BE30 -> 199166.7348 | M19: ='6. Billing Det. for Def-Var'!H17* '5. 2014 Continuity Schedule'!BE31 -> 0 | N19: ='6. Billing Det. for Def-Var'!I17* '5. 2014 Continuity Schedule'!BE32 -> -443.0719803 | O19: ='6. Billing Det. for Def-Var'!J17* '5. 2014 Continuity Schedule'!BE33 -> 0 | P19: ='6. Billing Det. for Def-Var'!K17* '5. 2014 Continuity Schedule'!BE34 -> -350.7057158 | Q19: ='6. Billing Det. for Def-Var'!L17* '5. 2014 Continuity Schedule'!BE35 -> 0 | R19: ='6. Billing Det. for Def-Var'!M17* '5. 2014 Continuity Schedule'!BE36 -> 639644.5322 | S19: ='6. Billing Det. for Def-Var'!N17 -> 0
A20: GENERAL SERVICE LESS THAN 50 KW | C20: =VLOOKUP(A20, '6. Billing Det. for Def-Var'!A17:D25, 3,0)/'6. Billing Det. for Def-Var'!C27 -> 0.08877450321 | D20: =VLOOKUP(A20, '6. Billing Det. for Def-Var'!A17:E25, 5,0)/'6. Billing Det. for Def-Var'!E27 -> 0.01826063867 | E20: =VLOOKUP(A20, '6. Billing Det. for Def-Var'!A17:O25, 15,0)/'6. Billing Det. for Def-Var'!O27 -> 0.07435469624 | F20: =C20* '5. 2014 Continuity Schedule'!BE24 -> 1567.411359 | G20: =E20* '5. 2014 Continuity Schedule'!BE25 -> 4745.30003 | H20: =C20* '5. 2014 Continuity Schedule'!BE26 -> -84812.10161 | I20: =C20* '5. 2014 Continuity Schedule'!BE27 -> 44901.18702 | J20: =C20* '5. 2014 Continuity Schedule'!BE28 -> -10732.45325 | K20: =C20* '5. 2014 Continuity Schedule'!BE29 -> 76321.45904 | L20: =D20* '5. 2014 Continuity Schedule'!BE30 -> 89793.55274 | M20: ='6. Billing Det. for Def-Var'!H18* '5. 2014 Continuity Schedule'!BE31 -> 0 | N20: ='6. Billing Det. for Def-Var'!I18* '5. 2014 Continuity Schedule'!BE32 -> -118.0898379 | O20: ='6. Billing Det. for Def-Var'!J18* '5. 2014 Continuity Schedule'!BE33 -> 0 | P20: ='6. Billing Det. for Def-Var'!K18* '5. 2014 Continuity Schedule'!BE34 -> -93.47190288 | Q20: ='6. Billing Det. for Def-Var'!L18* '5. 2014 Continuity Schedule'!BE35 -> 0 | R20: ='6. Billing Det. for Def-Var'!M18* '5. 2014 Continuity Schedule'!BE36 -> 170481.372 | S20: ='6. Billing Det. for Def-Var'!N18 -> 0
A21: GENERAL SERVICE 50 TO 999 KW | C21: =VLOOKUP(A21, '6. Billing Det. for Def-Var'!A17:D25, 3,0)/'6. Billing Det. for Def-Var'!C27 -> 0.2384591626 | D21: =VLOOKUP(A21, '6. Billing Det. for Def-Var'!A17:E25, 5,0)/'6. Billing Det. for Def-Var'!E27 -> 0.327680448 | F21: =C21* '5. 2014 Continuity Schedule'!BE24 -> 4210.258425 | G21: =E21* '5. 2014 Continuity Schedule'!BE25 -> 0 | H21: =C21* '5. 2014 Continuity Schedule'!BE26 -> -227815.6677 | I21: =C21* '5. 2014 Continuity Schedule'!BE27 -> 120610.0746 | J21: =C21* '5. 2014 Continuity Schedule'!BE28 -> -28828.68078 | K21: =C21* '5. 2014 Continuity Schedule'!BE29 -> 205008.7644 | L21: =D21* '5. 2014 Continuity Schedule'!BE30 -> 1611312.294 | M21: ='6. Billing Det. for Def-Var'!H19* '5. 2014 Continuity Schedule'!BE31 -> 0 | N21: ='6. Billing Det. for Def-Var'!I19* '5. 2014 Continuity Schedule'!BE32 -> -312.0805543 | O21: ='6. Billing Det. for Def-Var'!J19* '5. 2014 Continuity Schedule'!BE33 -> 0 | P21: ='6. Billing Det. for Def-Var'!K19* '5. 2014 Continuity Schedule'!BE34 -> -247.0217911 | Q21: ='6. Billing Det. for Def-Var'!L19* '5. 2014 Continuity Schedule'!BE35 -> 0 | R21: ='6. Billing Det. for Def-Var'!M19* '5. 2014 Continuity Schedule'!BE36 -> 450537.6756 | S21: ='6. Billing Det. for Def-Var'!N19 -> 0
A22: GENERAL SERVICE 1,000 TO 4,999 KW | C22: =VLOOKUP(A22, '6. Billing Det. for Def-Var'!A17:D25, 3,0)/'6. Billing Det. for Def-Var'!C27 -> 0.2775151464 | D22: =VLOOKUP(A22, '6. Billing Det. for Def-Var'!A17:E25, 5,0)/'6. Billing Det. for Def-Var'!E27 -> 0.3813495213 | F22: =C22* '5. 2014 Continuity Schedule'!BE24 -> 4899.834716 | G22: =E22* '5. 2014 Continuity Schedule'!BE25 -> 0 | H22: =C22* '5. 2014 Continuity Schedule'!BE26 -> -265128.409 | I22: =C22* '5. 2014 Continuity Schedule'!BE27 -> 140364.1703 | J22: =C22* '5. 2014 Continuity Schedule'!BE28 -> -33550.3802 | K22: =C22* '5. 2014 Continuity Schedule'!BE29 -> 238586.0818 | L22: =D22* '5. 2014 Continuity Schedule'!BE30 -> 1875220.739 | M22: ='6. Billing Det. for Def-Var'!H20* '5. 2014 Continuity Schedule'!BE31 -> 0 | N22: ='6. Billing Det. for Def-Var'!I20* '5. 2014 Continuity Schedule'!BE32 -> -166.9798172 | O22: ='6. Billing Det. for Def-Var'!J20* '5. 2014 Continuity Schedule'!BE33 -> 0 | P22: ='6. Billing Det. for Def-Var'!K20* '5. 2014 Continuity Schedule'!BE34 -> -132.1698932 | Q22: ='6. Billing Det. for Def-Var'!L20* '5. 2014 Continuity Schedule'!BE35 -> 0 | R22: ='6. Billing Det. for Def-Var'!M20* '5. 2014 Continuity Schedule'!BE36 -> 241061.7953 | S22: ='6. Billing Det. for Def-Var'!N20 -> 0
A23: LARGE USE | C23: =VLOOKUP(A23, '6. Billing Det. for Def-Var'!A17:D25, 3,0)/'6. Billing Det. for Def-Var'!C27 -> 0.1619800064 | D23: =VLOOKUP(A23, '6. Billing Det. for Def-Var'!A17:E25, 5,0)/'6. Billing Det. for Def-Var'!E27 -> 0.2225860415 | F23: =C23* '5. 2014 Continuity Schedule'!BE24 -> 2859.934922 | G23: =E23* '5. 2014 Continuity Schedule'!BE25 -> 0 | H23: =C23* '5. 2014 Continuity Schedule'!BE26 -> -154750.117 | I23: =C23* '5. 2014 Continuity Schedule'!BE27 -> 81927.7416 | J23: =C23* '5. 2014 Continuity Schedule'!BE28 -> -19582.68177 | K23: =C23* '5. 2014 Continuity Schedule'!BE29 -> 139257.8947 | L23: =D23* '5. 2014 Continuity Schedule'!BE30 -> 1094528.61 | M23: ='6. Billing Det. for Def-Var'!H21* '5. 2014 Continuity Schedule'!BE31 -> 0 | N23: ='6. Billing Det. for Def-Var'!I21* '5. 2014 Continuity Schedule'!BE32 -> -116.4772305 | O23: ='6. Billing Det. for Def-Var'!J21* '5. 2014 Continuity Schedule'!BE33 -> 0 | P23: ='6. Billing Det. for Def-Var'!K21* '5. 2014 Continuity Schedule'!BE34 -> -92.19547234 | Q23: ='6. Billing Det. for Def-Var'!L21* '5. 2014 Continuity Schedule'!BE35 -> 0 | R23: ='6. Billing Det. for Def-Var'!M21* '5. 2014 Continuity Schedule'!BE36 -> 168153.3181 | S23: ='6. Billing Det. for Def-Var'!N21 -> 0
A24: UNMETERED SCATTERED LOAD | C24: =VLOOKUP(A24, '6. Billing Det. for Def-Var'!A17:D25, 3,0)/'6. Billing Det. for Def-Var'!C27 -> 0.00133011727 | D24: =VLOOKUP(A24, '6. Billing Det. for Def-Var'!A17:E25, 5,0)/'6. Billing Det. for Def-Var'!E27 -> 0.001827790629 | F24: =C24* '5. 2014 Continuity Schedule'!BE24 -> 23.48468132 | G24: =E24* '5. 2014 Continuity Schedule'!BE25 -> 0 | H24: =C24* '5. 2014 Continuity Schedule'!BE26 -> -1270.74821 | I24: =C24* '5. 2014 Continuity Schedule'!BE27 -> 672.7589806 | J24: =C24* '5. 2014 Continuity Schedule'!BE28 -> -160.8054216 | K24: =C24* '5. 2014 Continuity Schedule'!BE29 -> 1143.532062 | L24: =D24* '5. 2014 Continuity Schedule'!BE30 -> 8987.846329 | M24: ='6. Billing Det. for Def-Var'!H22* '5. 2014 Continuity Schedule'!BE31 -> 0 | N24: ='6. Billing Det. for Def-Var'!I22* '5. 2014 Continuity Schedule'!BE32 -> -2.436601895 | O24: ='6. Billing Det. for Def-Var'!J22* '5. 2014 Continuity Schedule'!BE33 -> 0 | P24: ='6. Billing Det. for Def-Var'!K22* '5. 2014 Continuity Schedule'!BE34 -> -1.928648728 | Q24: ='6. Billing Det. for Def-Var'!L22* '5. 2014 Continuity Schedule'!BE35 -> 0 | R24: ='6. Billing Det. for Def-Var'!M22* '5. 2014 Continuity Schedule'!BE36 -> 3517.620496 | S24: ='6. Billing Det. for Def-Var'!N22 -> 0
A25: SENTINEL LIGHTING | C25: =VLOOKUP(A25, '6. Billing Det. for Def-Var'!A17:D25, 3,0)/'6. Billing Det. for Def-Var'!C27 -> 5.294692323e-05 | D25: =VLOOKUP(A25, '6. Billing Det. for Def-Var'!A17:E25, 5,0)/'6. Billing Det. for Def-Var'!E27 -> 2.752319837e-07 | F25: =C25* '5. 2014 Continuity Schedule'!BE24 -> 0.9348360833 | G25: =E25* '5. 2014 Continuity Schedule'!BE25 -> 0 | H25: =C25* '5. 2014 Continuity Schedule'!BE26 -> -50.58366614 | I25: =C25* '5. 2014 Continuity Schedule'!BE27 -> 26.77998317 | J25: =C25* '5. 2014 Continuity Schedule'!BE28 -> -6.40105388 | K25: =C25* '5. 2014 Continuity Schedule'!BE29 -> 45.51967385 | L25: =D25* '5. 2014 Continuity Schedule'!BE30 -> 1.353405984 | M25: ='6. Billing Det. for Def-Var'!H23* '5. 2014 Continuity Schedule'!BE31 -> 0 | N25: ='6. Billing Det. for Def-Var'!I23* '5. 2014 Continuity Schedule'!BE32 -> -0.1904051181 | O25: ='6. Billing Det. for Def-Var'!J23* '5. 2014 Continuity Schedule'!BE33 -> 0 | P25: ='6. Billing Det. for Def-Var'!K23* '5. 2014 Continuity Schedule'!BE34 -> -0.1507117719 | Q25: ='6. Billing Det. for Def-Var'!L23* '5. 2014 Continuity Schedule'!BE35 -> 0 | R25: ='6. Billing Det. for Def-Var'!M23* '5. 2014 Continuity Schedule'!BE36 -> 274.879925 | S25: ='6. Billing Det. for Def-Var'!N23 -> 0
A26: STREET LIGHTING | C26: =VLOOKUP(A26, '6. Billing Det. for Def-Var'!A17:D25, 3,0)/'6. Billing Det. for Def-Var'!C27 -> 0.005833914567 | D26: =VLOOKUP(A26, '6. Billing Det. for Def-Var'!A17:E25, 5,0)/'6. Billing Det. for Def-Var'!E27 -> 0.007792245629 | F26: =C26* '5. 2014 Continuity Schedule'!BE24 -> 103.0041693 | G26: =E26* '5. 2014 Continuity Schedule'!BE25 -> 0 | H26: =C26* '5. 2014 Continuity Schedule'!BE26 -> -5573.520968 | I26: =C26* '5. 2014 Continuity Schedule'!BE27 -> 2950.731117 | J26: =C26* '5. 2014 Continuity Schedule'!BE28 -> -705.2950238 | K26: =C26* '5. 2014 Continuity Schedule'!BE29 -> 5015.54901 | L26: =D26* '5. 2014 Continuity Schedule'!BE30 -> 38317.02885 | M26: ='6. Billing Det. for Def-Var'!H24* '5. 2014 Continuity Schedule'!BE31 -> 0 | N26: ='6. Billing Det. for Def-Var'!I24* '5. 2014 Continuity Schedule'!BE32 -> -4.321320755 | O26: ='6. Billing Det. for Def-Var'!J24* '5. 2014 Continuity Schedule'!BE33 -> 0 | P26: ='6. Billing Det. for Def-Var'!K24* '5. 2014 Continuity Schedule'!BE34 -> -3.420464294 | Q26: ='6. Billing Det. for Def-Var'!L24* '5. 2014 Continuity Schedule'!BE35 -> 0 | R26: ='6. Billing Det. for Def-Var'!M24* '5. 2014 Continuity Schedule'!BE36 -> 6238.510481 | S26: ='6. Billing Det. for Def-Var'!N24 -> 0
A27: microFIT | C27: 0 | D27: 0 | E27: 0 | F27: =C27* '5. 2014 Continuity Schedule'!BE24 -> 0 | G27: =E27* '5. 2014 Continuity Schedule'!BE25 -> 0 | H27: =C27* '5. 2014 Continuity Schedule'!BE26 -> 0 | I27: =C27* '5. 2014 Continuity Schedule'!BE27 -> 0 | J27: =C27* '5. 2014 Continuity Schedule'!BE28 -> 0 | K27: =C27* '5. 2014 Continuity Schedule'!BE29 -> 0 | L27: =D27* '5. 2014 Continuity Schedule'!BE30 -> 0 | M27: ='6. Billing Det. for Def-Var'!H25* '5. 2014 Continuity Schedule'!BE31 -> 0 | N27: ='6. Billing Det. for Def-Var'!I25* '5. 2014 Continuity Schedule'!BE32 -> 0 | O27: ='6. Billing Det. for Def-Var'!J25* '5. 2014 Continuity Schedule'!BE33 -> 0 | P27: ='6. Billing Det. for Def-Var'!K25* '5. 2014 Continuity Schedule'!BE34 -> 0 | Q27: ='6. Billing Det. for Def-Var'!L25* '5. 2014 Continuity Schedule'!BE35 -> 0 | R27: ='6. Billing Det. for Def-Var'!M25* '5. 2014 Continuity Schedule'!BE36 -> 0 | S27: ='6. Billing Det. for Def-Var'!N25 -> 0
A29: Total | C29: =SUM(C19:C27) -> 1 | D29: 1 | E29: 1 | F29: 17656.09834 | G29: 63819.77561 | H29: -955365.5446 | I29: 505789.2232 | J29: -120895.6723 | K29: 859722.7389 | L29: 4917328.159 | M29: 0 | N29: -1163.647748 | O29: 0 | P29: -921.0646 | Q29: 0 | R29: 1679909.704 | S29: 0
A32: * RSVA - Power (Excluding Global Adjustment)
A33: ** Used to allocate Account 1551 as this account records the variances arising from the Smart Metering Entity Charges to Residential and GS<50 customers.

Sheet 8. Calculation of Def-Var RR
A12: Input required at cell C15 only. This workshseet calculates rate riders related to the Deferral/Variance Account Disposition (if applicable), associated rate riders for the global adjustment account (1589) and Account 1568. Rate Riders will not be generated for the microFIT class.
A15: Please indicate the Rate Rider Recovery Period (in years) | C15: 1
E17: Balance of Accounts Allocated by kWh/kW (RPP) or Distribution Revenue | F17: Deferral/Variance Account Rate Rider | G17: Allocation of Balance in Account 1589 | H17: Billed kWh or Estimated kW for Non-RPP Customers | I17: Global Adjustment Rate Rider | J17: Allocation of Account 1568 | K17: Account 1568 Rate Rider
A18: Rate Class | B18: Unit | C18: Billed kWh | D18: Billed kW or kVA
A20: RESIDENTIAL | B20: $/kWh | C20: 378871008.5 | E20: =SUM('7. Allocating Def-Var Balances'!#REF!)+SUM('7. Allocating Def-Var Balances'!#REF!) ->  | F20: 0.002 | G20: 199166.7348 | H20: 49400334.05 | I20: 0.004031688017
A21: GENERAL SERVICE LESS THAN 50 KW | B21: $/kWh | C21: 148787703 | E21: =SUM('7. Allocating Def-Var Balances'!#REF!)+SUM('7. Allocating Def-Var Balances'!#REF!) ->  | F21: 0.0014 | G21: 89793.55274 | H21: 22271949.7 | I21: 0.004031688017
A22: GENERAL SERVICE 50 TO 999 KW | B22: $/kW | C22: 399661949.8 | D22: 1041991.876 | E22: =SUM('7. Allocating Def-Var Balances'!#REF!)+SUM('7. Allocating Def-Var Balances'!#REF!) ->  | F22: 0.5021 | G22: 1611312.294 | H22: 1041991.876 | I22: 1.546377022
A23: GENERAL SERVICE 1,000 TO 4,999 KW | B23: $/kW | C23: 465120498.3 | D23: 1015195.897 | E23: =SUM('7. Allocating Def-Var Balances'!#REF!)+SUM('7. Allocating Def-Var Balances'!#REF!) ->  | F23: 0.3211 | G23: 1875220.739 | H23: 1015195.897 | I23: 1.847151614
A24: LARGE USE | B24: $/kW | C24: 271481475 | D24: 490511.9761 | E24: =SUM('7. Allocating Def-Var Balances'!#REF!)+SUM('7. Allocating Def-Var Balances'!#REF!) ->  | F24: 0.4437 | G24: 1094528.61 | H24: 490511.9761 | I24: 2.23140038
A25: UNMETERED SCATTERED LOAD | B25: $/kWh | C25: 2229301.05 | E25: =SUM('7. Allocating Def-Var Balances'!#REF!)+SUM('7. Allocating Def-Var Balances'!#REF!) ->  | F25: 0.0018 | G25: 8987.846329 | H25: 2229301.05 | I25: 0.004031688017
A26: SENTINEL LIGHTING | B26: $/kW | C26: 88740.01882 | D26: 250.6914272 | E26: =SUM('7. Allocating Def-Var Balances'!#REF!)+SUM('7. Allocating Def-Var Balances'!#REF!) ->  | F26: 1.1599 | G26: 1.353405984 | H26: 0.9483336058 | I26: 1.427141225
A27: STREET LIGHTING | B27: $/kW | C27: 9777748.298 | D27: 27446.70869 | E27: =SUM('7. Allocating Def-Var Balances'!#REF!)+SUM('7. Allocating Def-Var Balances'!#REF!) ->  | F27: 0.2922 | G27: 38317.02885 | H27: 26678.18794 | I27: 1.436268046
A28: microFIT
A29: Total | C29: =SUM(C20:C28) -> 1676018424 | D29: =SUM(D20:D28) -> 2575397.149 | E29: =SUM(E20:E28) ->  | G29: =SUM(G20:G28) -> 4917328.159 | H29: =SUM(H20:H28) -> 76475963.68 | J29: =SUM(J20:J28) -> 0

Sheet 9. STS - Billing Det & Rates
A11: Shared Tax Savings
A13: ="Enter your " & '1. Information Sheet'!F32 & " Board-Approved Billing Determinents into columns B, C and D." -> Enter your 2012 Board-Approved Billing Determinents into columns B, C and D.
A14: ="Enter your " & '1. Information Sheet'!F32 & " Board-Approved Base monthly service and volumetric charges into columns G, H and I." -> Enter your 2012 Board-Approved Base monthly service and volumetric charges into columns G, H and I.
A16: Rate Class | B16: Units | C16: Re-based Billed Customers or Connections | D16: Re-based Billed kWh | E16: Re-based Billed kW (if applicable) | G16: ='1. Information Sheet'!F32 &" Base Monthly Service Charge" -> 2012 Base Monthly Service Charge | H16: ='1. Information Sheet'!F32 &" Base Distribution Volumetric Rate kWh" -> 2012 Base Distribution Volumetric Rate kWh | I16: ='1. Information Sheet'!F32 &" Base Distribution Volumetric Rate kW" -> 2012 Base Distribution Volumetric Rate kW
A17: RESIDENTIAL | B17: $/kWh | C17: 47848.11766 | D17: 378871008.5 | E17: 0 | G17: 13.95 | H17: 0.017 | I17: 0
A18: GENERAL SERVICE LESS THAN 50 KW | B18: $/kWh | C18: 3787.813776 | D18: 148787703 | E18: 0 | G18: 15 | H18: 0.0126 | I18: 0
A19: GENERAL SERVICE 50 TO 999 KW | B19: $/kW | C19: 569.226569 | D19: 399661949.8 | E19: 1041991.876 | G19: 162.6 | H19: 0 | I19: 2.4801
A20: GENERAL SERVICE 1,000 TO 4,999 KW | B20: $/kW | C20: 43.60510802 | D20: 465120498.3 | E20: 1015195.897 | G20: 620.07 | H20: 0 | I20: 3.3153
A21: LARGE USE | B21: $/kW | C21: 4 | D21: 271481475 | E21: 490511.9761 | G21: 907.62 | H21: 0 | I21: 2.268
A22: UNMETERED SCATTERED LOAD | B22: $/kWh | C22: 582.84964 | D22: 2229301.05 | E22: 0 | G22: 5.7 | H22: 0.026 | I22: 0
A23: SENTINEL LIGHTING | B23: $/kW | C23: 25.76276606 | D23: 88740.01882 | E23: 250.6914272 | G23: 6.79 | H23: 0 | I23: 7.5162
A24: STREET LIGHTING | B24: $/kW | C24: 13608.78236 | D24: 9777748.298 | E24: 27446.70869 | G24: 0.38 | H24: 0 | I24: 9.2151
A25: microFIT

Sheet 10. STS - Rebased Rev
A12: Calculation of Rebased Revenue Requirement. No input required.
A15: Rate Class | C15: Re-based Billed Customers or Connections | D15: Re-based Billed kWh | E15: Re-based Billed kW | G15: Rate ReBal Base Service Charge | H15: Rate ReBal Base Distribution Volumetric Rate kWh | I15: Rate ReBal Base Distribution Volumetric Rate kW | K15: Service Charge Revenue | L15: Distribution Volumetric Rate Revenue kWh | M15: Distribution Volumetric Rate Revenue kW | N15: Revenue Requirement from Rates | P15: Service Charge % Revenue | Q15: Distribution Volumetric Rate % Revenue kWh | R15: Distribution Volumetric Rate % Revenue kW | S15: Total % Revenue
C16: A | D16: B | E16: C | G16: D | H16: E | I16: F | K16: G = A * D *12 | L16: H = B * E | M16: I = C * F | N16: J = G + H + I | P16: K = G / J | Q16: L = H / J | R16: M = I / J | S16: N = J / R
A17: RESIDENTIAL | C17: 47848.11766 | D17: 378871008.5 | E17: 0 | G17: 13.95 | H17: 0.017 | I17: 0 | K17: =G17*C17*12 -> 8009774.897 | L17: =H17*D17 -> 6440807.144 | M17: 0 | N17: =SUM(K17,L17,M17) -> 14450582.04 | P17: =IF(ISERROR(K17/N17),0,K17/N17) -> 0.5542873549 | Q17: =IF(ISERROR(L17/N17),0,L17/N17) -> 0.4457126451 | R17: =IF(ISERROR(M17/N17),0,M17/N17) -> 0 | S17: =N17/N26 -> 0.5565406056
A18: GENERAL SERVICE LESS THAN 50 KW | C18: 3787.813776 | D18: 148787703 | E18: 0 | G18: 15 | H18: 0.0126 | I18: 0 | K18: 681806.4797 | L18: =H18*D18 -> 1874725.057 | M18: 0 | N18: 2556531.537 | P18: 0.2666919887 | Q18: 0.7333080113 | R18: 0 | S18: =N18/N26 -> 0.09846064372
A19: GENERAL SERVICE 50 TO 999 KW | C19: 569.226569 | D19: 399661949.8 | E19: 1041991.876 | G19: 162.6 | H19: 0 | I19: 2.4801 | K19: 1110674.881 | L19: 0 | M19: =I19*E19 -> 2584244.051 | N19: 3694918.932 | P19: 0.3005951962 | Q19: 0 | R19: 0.6994048038 | S19: =N19/N26 -> 0.1423037781
A20: GENERAL SERVICE 1,000 TO 4,999 KW | C20: 43.60510802 | D20: 465120498.3 | E20: 1015195.897 | G20: 620.07 | H20: 0 | I20: 3.3153 | K20: 324458.632 | L20: 0 | M20: =I20*E20 -> 3365678.957 | N20: 3690137.589 | P20: 0.08792589008 | Q20: 0 | R20: 0.9120741099 | S20: =N20/N26 -> 0.1421196324
A21: LARGE USE | C21: 4 | D21: 271481475 | E21: 490511.9761 | G21: 907.62 | H21: 0 | I21: 2.268 | K21: 43565.76 | L21: 0 | M21: =I21*E21 -> 1112481.162 | N21: 1156046.922 | P21: 0.03768511397 | Q21: 0 | R21: 0.962314886 | S21: =N21/N26 -> 0.04452326225
A22: UNMETERED SCATTERED LOAD | C22: 582.84964 | D22: 2229301.05 | E22: 0 | G22: 5.7 | H22: 0.026 | I22: 0 | K22: 39866.91537 | L22: =H22*D22 -> 57961.8273 | M22: 0 | N22: 97828.74267 | P22: 0.4075174053 | Q22: 0.5924825947 | R22: 0 | S22: =N22/N26 -> 0.003767714514
A23: SENTINEL LIGHTING | C23: 25.76276606 | D23: 88740.01882 | E23: 250.6914272 | G23: 6.79 | H23: 0 | I23: 7.5162 | K23: 2099.150179 | L23: 0 | M23: =I23*E23 -> 1884.246905 | N23: 3983.397084 | P23: 0.5269748746 | Q23: 0 | R23: 0.4730251254 | S23: =N23/N26 -> 0.0001534140437
A24: STREET LIGHTING | C24: 13608.78236 | D24: 9777748.298 | E24: 27446.70869 | G24: 0.38 | H24: 0 | I24: 9.2151 | K24: 62056.04754 | L24: 0 | M24: =I24*E24 -> 252924.1652 | N24: 314980.2128 | P24: 0.1970157014 | Q24: 0 | R24: 0.8029842986 | S24: =N24/N26 -> 0.01213094932
A25: microFIT | K25: 0 | L25: 0 | M25: 0 | N25: 0 | P25: 0 | Q25: 0 | R25: 0 | S25: =N25/N26 -> 0
A26: Total | C26: =SUM(C17:C25) -> 66470.15788 | D26: =SUM(D17:D25) -> 1676018424 | E26: =SUM(E17:E25) -> 2575397.149 | K26: =SUM(K17:K25) -> 10274302.76 | L26: =SUM(L17:L25) -> 8373494.029 | M26: =SUM(M17:M25) -> 7317212.581 | N26: =SUM(N17:N25) -> 25965009.37 | S26: =SUM(S17:S25) -> 1

Sheet 9. STS - Billing Det & Rate HID (hidden)
A11: Shared Tax Savings
A12: ="Enter your " & '1. Information Sheet'!F32 & " Board-Approved Billing Determinents into columns B, C and D." -> Enter your 2012 Board-Approved Billing Determinents into columns B, C and D.
A16: Rate Class | B16: Units | C16: Re-based Billed Customers or Connections | D16: Re-based Billed kWh | E16: Re-based Billed kW (if applicable) | G16: ='1. Information Sheet'!F32 &" Base Monthly Service Charge" -> 2012 Base Monthly Service Charge | H16: ='1. Information Sheet'!F32 &" Base Distribution Volumetric Rate kWh" -> 2012 Base Distribution Volumetric Rate kWh | I16: ='1. Information Sheet'!F32 &" Base Distribution Volumetric Rate kW" -> 2012 Base Distribution Volumetric Rate kW
A17: RESIDENTIAL | B17: $/kWh | C17: 47848.11766 | D17: 378871008.5 | E17: 0 | G17: 13.95 | H17: 0.017 | I17: 0
A18: GENERAL SERVICE LESS THAN 50 KW | B18: $/kWh | C18: 3787.813776 | D18: 148787703 | E18: 0 | G18: 15 | H18: 0.0126 | I18: 0
A19: GENERAL SERVICE 50 TO 999 KW | B19: $/kW | C19: 569.226569 | D19: 399661949.8 | E19: 1041991.876 | G19: 162.6 | H19: 0 | I19: 2.4801
A20: GENERAL SERVICE 1,000 TO 4,999 KW | B20: $/kW | C20: 43.60510802 | D20: 465120498.3 | E20: 1015195.897 | G20: 620.07 | H20: 0 | I20: 3.3153
A21: LARGE USE | B21: $/kW | C21: 4 | D21: 271481475 | E21: 490511.9761 | G21: 907.62 | H21: 0 | I21: 2.268
A22: UNMETERED SCATTERED LOAD | B22: $/kWh | C22: 582.84964 | D22: 2229301.05 | E22: 0 | G22: 5.7 | H22: 0.026 | I22: 0
A23: SENTINEL LIGHTING | B23: $/kW | C23: 25.76276606 | D23: 88740.01882 | E23: 250.6914272 | G23: 6.79 | H23: 0 | I23: 7.5162
A24: STREET LIGHTING | B24: $/kW | C24: 13608.78236 | D24: 9777748.298 | E24: 27446.70869 | G24: 0.38 | H24: 0 | I24: 9.2151
A25: microFIT | B25: 0 | C25: 0 | D25: 0 | E25: 0 | G25: 0 | H25: 0 | I25: 0

Sheet 11. STS - Tax Change
T1: Rate Base | U1: Federal Tax Rate
T2: 500000 | U2: 0.11
T3: 10000000 | U3: 0.11
T4: =T3+100000 -> 10100000 | U4: 0.11
T5: =T4+100000 -> 10200000 | U5: 0.11
T6: 10300000 | U6: 0.11
T7: 10400000 | U7: 0.11
T8: 10500000 | U8: 0.11
T9: 10600000 | U9: 0.11
T10: 10700000 | U10: 0.11
T11: 10800000 | U11: 0.11
T12: 10900000 | U12: 0.11
A13: Summary - Sharing of Tax Change Forecast Amounts | T13: 11000000 | U13: 0.11
T14: 11100000 | U14: 0.111
A15: ="For the " & '1. Information Sheet'!F32 & " year, enter any Tax Credits from the Cost of Service Tax Calculation (Positive #)" -> For the 2012 year, enter any Tax Credits from the Cost of Service Tax Calculation (Positive #) | L15: 128750 | T15: 11200000 | U15: =U14+0.13% -> 0.1123 | V15: =U15-U14 -> 0.0013
T16: 11300000 | U16: =U15+0.13% -> 0.1136 | V16: =U16-U15 -> 0.0013
T17: 11400000 | U17: =U16+0.13% -> 0.1149 | V17: 0.0013
A18: 1. Tax Related Amounts Forecast from Capital Tax Rate Changes | L18: ='1. Information Sheet'!F32 -> 2012 | N18: 2015 | T18: 11500000 | U18: =U17+0.13% -> 0.1162 | V18: 0.0013
A19: Taxable Capital (if you are not claiming capital tax, please enter your Board-Approved Rate Base) | L19: 139676719 | N19: =L19 -> 139676719 | T19: 11600000 | U19: =U18+0.12% -> 0.1174 | V19: 0.0012
T20: 11700000 | U20: =U19+0.12% -> 0.1186 | V20: 0.0012
A21: Deduction from taxable capital up to $15,000,000 | L21: 15000000 | N21: =L21 -> 15000000 | T21: 11800000 | U21: =U20+0.12% -> 0.1198 | V21: 0.0012
T22: 11900000 | U22: =U21+0.12% -> 0.121 | V22: 0.0012
A23: Net Taxable Capital | L23: =L19-L21 -> 124676719 | N23: =N19-N21 -> 124676719 | T23: 12000000 | U23: =U22+0.112% -> 0.12212 | V23: 0.00112
T24: 12100000 | U24: 0.12324 | V24: 0.00112
A25: Rate | L25: 0 | N25: 0 | T25: 12200000 | U25: 0.12436 | V25: 0.00112
T26: 12300000 | U26: 0.12548 | V26: 0.00112
A27: Ontario Capital Tax (Deductible, not grossed-up) | L27: =IF(L23>0, L23*L25, 0)*181/365 -> 0 | N27: 0 | T27: 12400000 | U27: 0.1266 | V27: 0.00112
T28: 12500000 | U28: 0.12772 | V28: 0.00112
A29: 2. Tax Related Amounts Forecast from lncome Tax Rate Changes | T29: 12600000 | U29: =U28+0.102% -> 0.12874 | V29: 0.00102
A30: Regulatory Taxable Income | L30: 651545.96 | N30: =L30 -> 651545.96 | T30: 12700000 | U30: =U29+0.102% -> 0.12976 | V30: 0.00102
T31: 12800000 | U31: =U30+0.102% -> 0.13078 | V31: 0.00102
A32: Corporate Tax Rate | L32: 0.2625 | N32: =IF(N30=0,0,IF(N30<=500000,4.5%+11%,IF(N30>500000,(11.5%*N30-35000)/N30+VLOOKUP(N19,T:U,2,TRUE),""))) -> 0.21128161 | T32: 12900000 | U32: =U31+0.102% -> 0.1318 | V32: 0.00102
T33: 13000000 | U33: =U32+0.102% -> 0.13282 | V33: 0.00102
A34: Tax Impact | L34: 42280.82 | N34: =N30*N32-L15 -> 8909.6794 | T34: 13100000 | U34: =U33+0.096% -> 0.13378 | V34: 0.00096
T35: 13200000 | U35: =U34+0.096% -> 0.13474 | V35: 0.00096
A36: Grossed-up Tax Amount | L36: 57329.92 | N36: =N34/(1-N32) -> 11296.40124 | T36: 13300000 | U36: =U35+0.096% -> 0.1357 | V36: 0.00096
T37: 13400000 | U37: =U36+0.096% -> 0.13666 | V37: 0.00096
A38: Tax Related Amounts Forecast from Capital Tax Rate Changes | L38: =L27 -> 0 | N38: =N27 -> 0 | T38: 13500000 | U38: =U37+0.096% -> 0.13762 | V38: 0.00096
T39: 13600000 | U39: =U38+0.088% -> 0.1385 | V39: 0.00088
A40: Tax Related Amounts Forecast from lncome Tax Rate Changes | L40: =L36 -> 57329.92 | N40: =N36 -> 11296.40124 | T40: 13700000 | U40: =U39+0.088% -> 0.13938 | V40: 0.00088
T41: 13800000 | U41: =U40+0.088% -> 0.14026 | V41: 0.00088
A42: Total Tax Related Amounts | L42: =SUM(L40,L38) -> 57329.92 | N42: =SUM(N40,N38) -> 11296.40124 | T42: 13900000 | U42: =U41+0.088% -> 0.14114 | V42: 0.00088
T43: 14000000 | U43: =U42+0.088% -> 0.14202 | V43: 0.00088
A44: Incremental Tax Savings | N44: =N42-L42 -> -46033.51876 | T44: 14100000 | U44: =U43+0.082% -> 0.14284 | V44: 0.00082
T45: 14200000 | U45: =U44+0.082% -> 0.14366 | V45: 0.00082
A46: Sharing of Tax Savings (50%) | N46: =0.5*N44 -> -23016.75938 | T46: 14300000 | U46: =U45+0.082% -> 0.14448 | V46: 0.00082
T47: 14400000 | U47: =U46+0.082% -> 0.1453 | V47: 0.00082
T48: 14500000 | U48: =U47+0.082% -> 0.14612 | V48: 0.00082
T49: 14600000 | U49: =U48+0.076% -> 0.14688 | V49: 0.00076
T50: 14700000 | U50: =U49+0.076% -> 0.14764 | V50: 0.00076
T51: 14800000 | U51: =U50+0.076% -> 0.1484 | V51: 0.00076
T52: 14900000 | U52: =U51+0.076% -> 0.14916 | V52: 0.00076
T53: 15000000 | U53: 0.15 | V53: 0.00084

Sheet 12. STS - Tax Change Rate Rider
A11: This worksheet calculates a tax change volumetric rate rider. If the rate riders are material (round to 4 decimal places), then the outputs in columns M and O will appear on Sheet 27 - Final Tariff Schedule.
A15: Rate Class | C15: Total Revenue $ by Rate Class | E15: Total Revenue % by Rate Class | G15: Allocation of Tax Savings by Rate Class | I15: Billed kWh | K15: Billed kW | M15: Distribution Volumetric Rate kWh Rate Rider | O15: Distribution Volumetric Rate kW Rate Rider
A17: RESIDENTIAL | C17: 14450582.04 | E17: =C17/C26 -> 0.5565406056 | G17: =E17*G26 -> -12809.76155 | I17: 378871008.5 | K17: 0 | M17: =ROUND(G17/I17,4) -> 0
A18: GENERAL SERVICE LESS THAN 50 KW | C18: 2556531.537 | E18: =C18/C26 -> 0.09846064372 | G18: =E18*G26 -> -2266.245006 | I18: 148787703 | K18: 0 | M18: =ROUND(G18/I18,4) -> 0
A19: GENERAL SERVICE 50 TO 999 KW | C19: 3694918.932 | E19: =C19/C26 -> 0.1423037781 | G19: =E19*G26 -> -3275.371908 | I19: 399661949.8 | K19: 1041991.876 | O19: =ROUND(G19/K19,4) -> -0.0031
A20: GENERAL SERVICE 1,000 TO 4,999 KW | C20: 3690137.589 | E20: =C20/C26 -> 0.1421196324 | G20: =E20*G26 -> -3271.133471 | I20: 465120498.3 | K20: 1015195.897 | O20: =ROUND(G20/K20,4) -> -0.0032
A21: LARGE USE | C21: 1156046.922 | E21: =C21/C26 -> 0.04452326225 | G21: =E21*G26 -> -1024.781242 | I21: 271481475 | K21: 490511.9761 | O21: =ROUND(G21/K21,4) -> -0.0021
A22: UNMETERED SCATTERED LOAD | C22: 97828.74267 | E22: =C22/C26 -> 0.003767714514 | G22: =E22*G26 -> -86.72058072 | I22: 2229301.05 | K22: 0 | M22: =ROUND(G22/I22,4) -> 0
A23: SENTINEL LIGHTING | C23: 3983.397084 | E23: =C23/C26 -> 0.0001534140437 | G23: =E23*G26 -> -3.531094225 | I23: 88740.01882 | K23: 250.6914272 | O23: =ROUND(G23/K23,4) -> -0.0141
A24: STREET LIGHTING | C24: 314980.2128 | E24: =C24/C26 -> 0.01213094932 | G24: =E24*G26 -> -279.215149 | I24: 9777748.298 | K24: 27446.70869 | O24: =ROUND(G24/K24,4) -> -0.0102
A25: microFIT | C25: 0 | E25: =C25/C26 -> 0 | G25: =E25*G26 -> 0
A26: Total | C26: =SUM(C17:C25) -> 25965009.37 | E26: =SUM(E17:E25) -> 1 | G26: -23016.76 | I26: =SUM(I17:I25) -> 1676018424 | K26: =SUM(K17:K25) -> 2575397.149
A28: One or more rate classes appear to have negligible rate riders in columns M and/or O. As per Appendix B of the Filing Requirements, please provide details of the Applicant's proposal in the Manager's Summary.

Sheet 13. RTSR Rate Sheet
A13: No input required. This sheet consolidates all Current Retail Transmission Rates entered on Sheet 4.
A15: Rate Class | B15: Rate Description | C15: Unit | D15: RTSR-Network | E15: RTSR-Connection
A17: RESIDENTIAL | B17: Retail Transmission Rate - Network Service Rate | C17: $/kWh | D17: 0.0072
A18: RESIDENTIAL | B18: Retail Transmission Rate - Line and Transformation Connection Service Rate | C18: $/kWh | E18: 0.0053
A19: GENERAL SERVICE LESS THAN 50 KW | B19: Retail Transmission Rate - Network Service Rate | C19: $/kWh | D19: 0.0066
A20: GENERAL SERVICE LESS THAN 50 KW | B20: Retail Transmission Rate - Line and Transformation Connection Service Rate | C20: $/kWh | E20: 0.0047
A21: GENERAL SERVICE 50 TO 999 KW | B21: Retail Transmission Rate - Network Service Rate | C21: $/kW | D21: 2.7544
A22: GENERAL SERVICE 50 TO 999 KW | B22: Retail Transmission Rate - Network Service Rate - Interval Metered | C22: $/kW | D22: 2.8571
A23: GENERAL SERVICE 50 TO 999 KW | B23: Retail Transmission Rate - Line and Transformation Connection Service Rate | C23: $/kW | E23: 1.9662
A24: GENERAL SERVICE 50 TO 999 KW | B24: Retail Transmission Rate - Line and Transformation Connection Service Rate - Interval Metered | C24: $/kW | E24: 2.0399
A25: GENERAL SERVICE 1,000 TO 4,999 KW | B25: Retail Transmission Rate - Network Service Rate - Interval Metered | C25: $/kW | D25: 2.8571
A26: GENERAL SERVICE 1,000 TO 4,999 KW | B26: Retail Transmission Rate - Line and Transformation Connection Service Rate - Interval Metered | C26: $/kW | E26: 2.0399
A27: LARGE USE | B27: Retail Transmission Rate - Network Service Rate - Interval Metered | C27: $/kW | D27: 3.4502
A28: LARGE USE | B28: Retail Transmission Rate - Line and Transformation Connection Service Rate - Interval Metered | C28: $/kW | E28: 2.4632
A29: UNMETERED SCATTERED LOAD | B29: Retail Transmission Rate - Network Service Rate | C29: $/kWh | D29: 0.0066
A30: UNMETERED SCATTERED LOAD | B30: Retail Transmission Rate - Line and Transformation Connection Service Rate | C30: $/kWh | E30: 0.0047
A31: SENTINEL LIGHTING | B31: Retail Transmission Rate - Network Service Rate | C31: $/kW | D31: 2.1089
A32: SENTINEL LIGHTING | B32: Retail Transmission Rate - Line and Transformation Connection Service Rate | C32: $/kW | E32: 1.5055
A33: STREET LIGHTING | B33: Retail Transmission Rate - Network Service Rate | C33: $/kW | D33: 2.5374
A34: STREET LIGHTING | B34: Retail Transmission Rate - Line and Transformation Connection Service Rate | C34: $/kW | E34: 1.8114

Sheet 14. RTSR RRR Data
A12: In the green shaded cells, enter the most recent reported RRR billing determinants. Please ensure that billing determinants are non-loss adjusted.
A14: Rate Class | B14: Rate Description | C14: Unit | D14: Non-Loss Adjusted Metered kWh | E14: Non-Loss Adjusted Metered kW | F14: Applicable Loss Factor | H14: Load Factor | I14: Loss Adjusted Billed kWh | J14: Billed kW
A15: RESIDENTIAL | B15: Retail Transmission Rate - Network Service Rate | C15: $/kWh | D15: 370660140.3 | E15: 0 | F15: 1.0209 | H15: =IF(C15="$/kW", D15/(E15* 30.4 * 24), "" ) ->  | I15: =IF(OR(F15=0, OR(ISBLANK(F15), TRIM(F15)="")), F15, F15 * D15) -> 378406937.2 | J15: =IF(OR(F15=0, OR(ISBLANK(F15), TRIM(F15)="")), E15, E15) -> 0
A16: RESIDENTIAL | B16: Retail Transmission Rate - Line and Transformation Connection Service Rate | C16: $/kWh | D16: 370660140.3 | E16: 0 | F16: 1.0209 | H16: =IF(C16="$/kW", D16/(E16* 30.4 * 24), "" ) ->  | I16: 378406937.2 | J16: 0
A17: GENERAL SERVICE LESS THAN 50 KW | B17: Retail Transmission Rate - Network Service Rate | C17: $/kWh | D17: 142654551.5 | E17: 0 | F17: 1.0209 | H17: =IF(C17="$/kW", D17/(E17* 30.4 * 24), "" ) ->  | I17: 145636031.6 | J17: 0
A18: GENERAL SERVICE LESS THAN 50 KW | B18: Retail Transmission Rate - Line and Transformation Connection Service Rate | C18: $/kWh | D18: 142654551.5 | E18: 0 | F18: 1.0209 | H18: =IF(C18="$/kW", D18/(E18* 30.4 * 24), "" ) ->  | I18: 145636031.6 | J18: 0
A19: GENERAL SERVICE 50 TO 999 KW | B19: Retail Transmission Rate - Network Service Rate | C19: $/kW | D19: 240703698.8 | E19: 624151.9987 | F19: 0 | H19: 0 | I19: 0 | J19: 624151.9987
A20: GENERAL SERVICE 50 TO 999 KW | B20: Retail Transmission Rate - Network Service Rate - Interval Metered | C20: $/kW | D20: 156980673.1 | E20: 407055.6513 | F20: 0 | H20: 0 | I20: 0 | J20: 407055.6513
A21: GENERAL SERVICE 50 TO 999 KW | B21: Retail Transmission Rate - Line and Transformation Connection Service Rate | C21: $/kW | D21: 240703698.8 | E21: 624151.9987 | F21: 0 | H21: 0 | I21: 0 | J21: 624151.9987
A22: GENERAL SERVICE 50 TO 999 KW | B22: Retail Transmission Rate - Line and Transformation Connection Service Rate - Interval Metered | C22: $/kW | D22: 156980673.1 | E22: 407055.6513 | F22: 0 | H22: 0 | I22: 0 | J22: 407055.6513
A23: GENERAL SERVICE 1,000 TO 4,999 KW | B23: Retail Transmission Rate - Network Service Rate - Interval Metered | C23: $/kW | D23: 483283608.8 | E23: 944735.43 | F23: 0 | H23: 0 | I23: 0 | J23: 944735.43
A24: GENERAL SERVICE 1,000 TO 4,999 KW | B24: Retail Transmission Rate - Line and Transformation Connection Service Rate - Interval Metered | C24: $/kW | D24: 483283608.8 | E24: 944735.43 | F24: 0 | H24: 0 | I24: 0 | J24: 944735.43
A25: LARGE USE | B25: Retail Transmission Rate - Network Service Rate - Interval Metered | C25: $/kW | D25: 304078674.7 | E25: 526805.69 | F25: 0 | H25: 0 | I25: 0 | J25: 526805.69
A26: LARGE USE | B26: Retail Transmission Rate - Line and Transformation Connection Service Rate - Interval Metered | C26: $/kW | D26: 304078674.7 | E26: 526805.69 | F26: 0 | H26: 0 | I26: 0 | J26: 526805.69
A27: UNMETERED SCATTERED LOAD | B27: Retail Transmission Rate - Network Service Rate | C27: $/kWh | D27: 1914008 | E27: 0 | F27: 1.0209 | H27: =IF(C27="$/kW", D27/(E27* 30.4 * 24), "" ) ->  | I27: 1954010.767 | J27: 0
A28: UNMETERED SCATTERED LOAD | B28: Retail Transmission Rate - Line and Transformation Connection Service Rate | C28: $/kWh | D28: 1914008 | E28: 0 | F28: 1.0209 | H28: =IF(C28="$/kW", D28/(E28* 30.4 * 24), "" ) ->  | I28: 1954010.767 | J28: 0
A29: SENTINEL LIGHTING | B29: Retail Transmission Rate - Network Service Rate | C29: $/kW | D29: 53141.38 | E29: 147.17 | F29: 0 | H29: 0 | I29: 0 | J29: 147.17
A30: SENTINEL LIGHTING | B30: Retail Transmission Rate - Line and Transformation Connection Service Rate | C30: $/kW | D30: 53141.38 | E30: 147.17 | F30: 0 | H30: 0 | I30: 0 | J30: 147.17
A31: STREET LIGHTING | B31: Retail Transmission Rate - Network Service Rate | C31: $/kW | D31: 9801148.62 | E31: 27364.36 | F31: 0 | H31: 0 | I31: 0 | J31: 27364.36
A32: STREET LIGHTING | B32: Retail Transmission Rate - Line and Transformation Connection Service Rate | C32: $/kW | D32: 9801148.62 | E32: 27364.36 | F32: 0 | H32: 0 | I32: 0 | J32: 27364.36

Sheet 14. RTSR RRR Data Copy (hidden)
A12: In the green shaded cells, enter the most recent reported RRR billing determinants. Please ensure that billing determinants are non-loss adjusted.
A14: Rate Class | B14: Rate Description | C14: Unit | D14: Non-Loss Adjusted Metered kWh | E14: Non-Loss Adjusted Metered kW | F14: Applicable Loss Factor | H14: Load Factor | I14: Loss Adjusted Billed kWh | J14: Billed kW
A15: RESIDENTIAL | B15: Retail Transmission Rate - Network Service Rate | C15: $/kWh | D15: 370660140.3 | E15: 0 | F15: 1.0209
A16: RESIDENTIAL | B16: Retail Transmission Rate - Line and Transformation Connection Service Rate | C16: $/kWh | D16: 370660140.3 | E16: 0 | F16: 1.0209
A17: GENERAL SERVICE LESS THAN 50 KW | B17: Retail Transmission Rate - Network Service Rate | C17: $/kWh | D17: 142654551.5 | E17: 0 | F17: 1.0209
A18: GENERAL SERVICE LESS THAN 50 KW | B18: Retail Transmission Rate - Line and Transformation Connection Service Rate | C18: $/kWh | D18: 142654551.5 | E18: 0 | F18: 1.0209
A19: GENERAL SERVICE 50 TO 999 KW | B19: Retail Transmission Rate - Network Service Rate | C19: $/kW | D19: 240703698.8 | E19: 624151.9987 | F19: 0
A20: GENERAL SERVICE 50 TO 999 KW | B20: Retail Transmission Rate - Network Service Rate - Interval Metered | C20: $/kW | D20: 156980673.1 | E20: 407055.6513 | F20: 0
A21: GENERAL SERVICE 50 TO 999 KW | B21: Retail Transmission Rate - Line and Transformation Connection Service Rate | C21: $/kW | D21: 240703698.8 | E21: 624151.9987 | F21: 0
A22: GENERAL SERVICE 50 TO 999 KW | B22: Retail Transmission Rate - Line and Transformation Connection Service Rate - Interval Metered | C22: $/kW | D22: 156980673.1 | E22: 407055.6513 | F22: 0
A23: GENERAL SERVICE 1,000 TO 4,999 KW | B23: Retail Transmission Rate - Network Service Rate - Interval Metered | C23: $/kW | D23: 483283608.8 | E23: 944735.43 | F23: 0
A24: GENERAL SERVICE 1,000 TO 4,999 KW | B24: Retail Transmission Rate - Line and Transformation Connection Service Rate - Interval Metered | C24: $/kW | D24: 483283608.8 | E24: 944735.43 | F24: 0
A25: LARGE USE | B25: Retail Transmission Rate - Network Service Rate - Interval Metered | C25: $/kW | D25: 304078674.7 | E25: 526805.69 | F25: 0
A26: LARGE USE | B26: Retail Transmission Rate - Line and Transformation Connection Service Rate - Interval Metered | C26: $/kW | D26: 304078674.7 | E26: 526805.69 | F26: 0
A27: UNMETERED SCATTERED LOAD | B27: Retail Transmission Rate - Network Service Rate | C27: $/kWh | D27: 1914008 | E27: 0 | F27: 1.0209
A28: UNMETERED SCATTERED LOAD | B28: Retail Transmission Rate - Line and Transformation Connection Service Rate | C28: $/kWh | D28: 1914008 | E28: 0 | F28: 1.0209
A29: SENTINEL LIGHTING | B29: Retail Transmission Rate - Network Service Rate | C29: $/kW | D29: 53141.38 | E29: 147.17 | F29: 0
A30: SENTINEL LIGHTING | B30: Retail Transmission Rate - Line and Transformation Connection Service Rate | C30: $/kW | D30: 53141.38 | E30: 147.17 | F30: 0
A31: STREET LIGHTING | B31: Retail Transmission Rate - Network Service Rate | C31: $/kW | D31: 9801148.62 | E31: 27364.36 | F31: 0
A32: STREET LIGHTING | B32: Retail Transmission Rate - Line and Transformation Connection Service Rate | C32: $/kW | D32: 9801148.62 | E32: 27364.36 | F32: 0

Sheet 15. RTSR - UTRs & Sub-Tx
B18: Uniform Transmission Rates | C18: Unit | E18: Effective January 1, 2013 | G18: Effective January 1, 2014 | I18: Effective January 1, 2015
B20: Rate Description | E20: Rate | G20: Rate | I20: Rate
B22: Network Service Rate | C22: kW | E22: 3.63 | G22: 3.82 | I22: 3.82
B24: Line Connection Service Rate | C24: kW | E24: 0.75 | G24: 0.82 | I24: 0.82
B26: Transformation Connection Service Rate | C26: kW | E26: 1.85 | G26: 1.98 | I26: 1.98
B29: Hydro One Sub-Transmission Rates | C29: Unit | E29: Effective January 1, 2013 | G29: Effective January 1, 2014 | I29: Effective January 1, 2015
B33: Rate Description | E33: Rate | G33: Rate | I33: Rate
B35: Network Service Rate | C35: kW | E35: 3.18 | G35: 3.23 | I35: 3.23
B37: Line Connection Service Rate | C37: kW | E37: 0.7 | G37: 0.65 | I37: 0.65
B39: Transformation Connection Service Rate | C39: kW | E39: 1.63 | G39: 1.62 | I39: 1.62
B41: Both Line and Transformation Connection Service Rate | C41: kW | E41: =E39+E37 -> 2.33 | G41: =G39+G37 -> 2.27 | I41: =I39+I37 -> 2.27
B44: If needed , add extra host here (I) | C44: Unit | E44: Effective January 1, 2013 | G44: Effective January 1, 2014 | I44: Effective January 1, 2015
B48: Rate Description | E48: Rate | G48: Rate | I48: Rate
B50: Network Service Rate | C50: kW
B52: Line Connection Service Rate | C52: kW
B54: Transformation Connection Service Rate | C54: kW
B56: Both Line and Transformation Connection Service Rate | C56: kW | E56: =E54+E52 -> 0 | G56: =G54+G52 -> 0 | I56: =I54+I52 -> 0
B59: If needed , add extra host here (II) | C59: Unit | E59: Effective January 1, 2013 | G59: Effective January 1, 2014 | I59: Effective January 1, 2015
B63: Rate Description | E63: Rate | G63: Rate | I63: Rate
B65: Network Service Rate | C65: kW
B67: Line Connection Service Rate | C67: kW
B69: Transformation Connection Service Rate | C69: kW
B71: Both Line and Transformation Connection Service Rate | C71: kW | E71: =E69+E67 -> 0 | G71: =G69+G67 -> 0 | I71: =I69+I67 -> 0
B75: Hydro One Sub-Transmission Rate Rider 9A | C75: Unit | E75: Effective January 1, 2013 | G75: Effective January 1, 2014 | I75: Effective January 1, 2015
B77: Rate Description | E77: Rate | G77: Rate | I77: Rate
B79: RSVA Transmission network – 4714 – which affects 1584 | C79: kW | E79: 0 | G79: 0.1465
B81: RSVA Transmission connection – 4716 – which affects 1586 | C81: kW | E81: 0 | G81: 0.0667
B83: RSVA LV – 4750 – which affects 1550 | C83: kW | E83: 0 | G83: 0.0475
B85: RARA 1 – 2252 – which affects 1590 | C85: kW | E85: 0 | G85: 0.0419
B87: RARA 1 – 2252 – which affects 1590 (2008) | C87: kW | E87: 0 | G87: -0.027
B89: RARA 1 – 2252 – which affects 1590 (2009) | C89: kW | E89: 0 | G89: -0.0006
B91: Hydro One Sub-Transmission Rate Rider 9A | C91: kW | E91: =SUM(E79:E89) -> 0 | G91: =SUM(G79:G89) -> 0.275 | I91: =SUM(I79:I89) -> 0
E94: Historical 2013 | G94: Current 2014 | I94: Forecast 2015
B95: Low Voltage Switchgear Credit (if applicable, enter as a negative value) | C95: $

Sheet 16. RTSR - Historical Wholesale
B13: In the green shaded cells, enter billing detail for wholesale transmission for the same reporting period as the billing determinants on Sheet "14. RTSR RRR Data". For Hydro One Sub-transmission Rates, if you are charged a combined Line and Transformer connection rate, please ensure that both the line connection and transformer connection columns are completed.
B16: IESO | D16: Network | H16: Line Connection | L16: Transformation Connection | P16: Total Line
B17: Month | D17: Units Billed | E17: Rate | F17: Amount | H17: Units Billed | I17: Rate | J17: Amount | L17: Units Billed | M17: Rate | N17: Amount | P17: Amount
B19: January | D19: 256451 | E19: =IF(D19<>0,F19/D19,0) -> 3.63 | F19: 930917.13 | H19: 262072 | I19: =IF(H19<>0,J19/H19,0) -> 0.75 | J19: 196554 | L19: 247964 | M19: =IF(L19<>0,N19/L19,0) -> 1.85 | N19: 458733.4 | P19: =J19+N19 -> 655287.4
B20: February | D20: 250129 | E20: 3.63 | F20: 907968.27 | H20: 254119 | I20: 0.75 | J20: 190589.25 | L20: 241993 | M20: 1.85 | N20: 447687.05 | P20: 638276.3
B21: March | D21: 244789 | E21: 3.63 | F21: 888584.07 | H21: 247116 | I21: 0.75 | J21: 185337 | L21: 235012 | M21: 1.85 | N21: 434772.2 | P21: 620109.2
B22: April | D22: 231789 | E22: 3.63 | F22: 841394.07 | H22: 245192 | I22: 0.75 | J22: 183894 | L22: 232070 | M22: 1.85 | N22: 429329.5 | P22: 613223.5
B23: May | D23: 251227 | E23: 3.63 | F23: 911954.01 | H23: 254053 | I23: 0.75 | J23: 190539.75 | L23: 243333 | M23: 1.85 | N23: 450166.05 | P23: 640705.8
B24: June | D24: 284520 | E24: 3.63 | F24: 1032807.6 | H24: 288778 | I24: 0.75 | J24: 216583.5 | L24: 275652 | M24: 1.85 | N24: 509956.2 | P24: 726539.7
B25: July | D25: 303036 | E25: 3.63 | F25: 1100020.68 | H25: 309033 | I25: 0.75 | J25: 231774.75 | L25: 296099 | M25: 1.85 | N25: 547783.15 | P25: 779557.9
B26: August | D26: 273299 | E26: 3.63 | F26: 992075.37 | H26: 276602 | I26: 0.75 | J26: 207451.5 | L26: 264892 | M26: 1.85 | N26: 490050.2 | P26: 697501.7
B27: September | D27: 288931 | E27: 3.63 | F27: 1048819.53 | H27: 292187 | I27: 0.75 | J27: 219140.25 | L27: 280632 | M27: 1.85 | N27: 519169.2 | P27: 738309.45
B28: October | D28: 231090 | E28: 3.63 | F28: 838856.7 | H28: 243591 | I28: 0.75 | J28: 182693.25 | L28: 232403 | M28: 1.85 | N28: 429945.55 | P28: 612638.8
B29: November | D29: 251688 | E29: 3.63 | F29: 913627.44 | H29: 256693 | I29: 0.75 | J29: 192519.75 | L29: 245983 | M29: 1.85 | N29: 455068.55 | P29: 647588.3
B30: December | D30: 254134 | E30: 3.63 | F30: 922506.42 | H30: 272752 | I30: 0.75 | J30: 204564 | L30: 261567 | M30: 1.85 | N30: 483898.95 | P30: 688462.95
B32: Total | D32: =SUM(D19:D30) -> 3121083 | E32: =IF(D32<>0,F32/D32,0) -> 3.63 | F32: =SUM(F19:F30) -> 11329531.29 | H32: =SUM(H19:H30) -> 3202188 | I32: =IF(H32<>0,J32/H32,0) -> 0.75 | J32: =SUM(J19:J30) -> 2401641 | L32: =SUM(L19:L30) -> 3057600 | M32: =IF(L32<>0,N32/L32,0) -> 1.85 | N32: =SUM(N19:N30) -> 5656560 | P32: =SUM(P19:P30) -> 8058201
B34: Hydro One | D34: Network | H34: Line Connection | L34: Transformation Connection | P34: Total Line
B36: Month | D36: Units Billed | E36: Rate | F36: Amount | H36: Units Billed | I36: Rate | J36: Amount | L36: Units Billed | M36: Rate | N36: Amount | P36: Amount
B38: January | D38: 3951 | E38: =IF(D38<>0,F38/D38,0) -> 3.18 | F38: 12564.18 | H38: 4023 | I38: =IF(H38<>0,J38/H38,0) -> 0.7 | J38: 2816.1 | L38: 4023 | M38: =IF(L38<>0,N38/L38,0) -> 1.63 | N38: 6557.49 | P38: =J38+N38 -> 9373.59
B39: February | D39: 3720 | E39: 3.18 | F39: 11829.6 | H39: 3798 | I39: 0.7 | J39: 2658.6 | L39: 3798 | M39: 1.63 | N39: 6190.74 | P39: 8849.34
B40: March | D40: 3267 | E40: 3.18 | F40: 10389.06 | H40: 3461 | I40: 0.7 | J40: 2422.7 | L40: 3461 | M40: 1.63 | N40: 5641.43 | P40: 8064.13
B41: April | D41: 3251 | E41: 3.179944632 | F41: 10338 | H41: 3251 | I41: 0.7000922793 | J41: 2276 | L41: 3251 | M41: 1.629960012 | N41: 5299 | P41: 7575
B42: May | D42: 3606 | E42: 3.179977815 | F42: 11467 | H42: 3606 | I42: 0.6999445369 | J42: 2524 | L42: 3606 | M42: 1.630061009 | N42: 5878 | P42: 8402
B43: June | D43: 4755 | E43: 3.18002103 | F43: 15121 | H43: 4775 | I43: 0.700104712 | J43: 3343 | L43: 4775 | M43: 1.629947644 | N43: 7783 | P43: 11126
B44: July | D44: 5159 | E44: 3.179879822 | F44: 16405 | H44: 5159 | I44: 0.6999418492 | J44: 3611 | L44: 5159 | M44: 1.629967048 | N44: 8409 | P44: 12020
B45: August | D45: 4691 | E45: 3.17970582 | F45: 14916 | H45: 4906 | I45: 0.6999592336 | J45: 3434 | L45: 4906 | M45: 1.630044843 | N45: 7997 | P45: 11431
B46: September | D46: 2990 | E46: 3.180267559 | F46: 9509 | H46: 3239 | I46: 0.6999073788 | J46: 2267 | L46: 3239 | M46: 1.62982402 | N46: 5279 | P46: 7546
B47: October | D47: 3507 | E47: 3.179925863 | F47: 11152 | H47: 3684 | I47: 0.7000542888 | J47: 2579 | L47: 3684 | M47: 1.63029316 | N47: 6006 | P47: 8585
B48: November | D48: 3909.4 | E48: 3.17999693 | F48: 12431.88 | H48: 4138.05 | I48: 0.7000012083 | J48: 2896.64 | L48: 4138.05 | M48: 1.629999638 | N48: 6745.02 | P48: 9641.66
B49: December | D49: 3059.69 | E49: 3.180005164 | F49: 9729.83 | H49: 3075.77 | I49: 0.7000003251 | J49: 2153.04 | L49: 3075.77 | M49: 1.630001593 | N49: 5013.51 | P49: 7166.55
B51: Total | D51: =SUM(D38:D49) -> 45866.09 | E51: =IF(D51<>0,F51/D51,0) -> 3.179964763 | F51: =SUM(F38:F49) -> 145852.55 | H51: =SUM(H38:H49) -> 47115.82 | I51: =IF(H51<>0,J51/H51,0) -> 0.7000001273 | J51: =SUM(J38:J49) -> 32981.08 | L51: =SUM(L38:L49) -> 47115.82 | M51: =IF(L51<>0,N51/L51,0) -> 1.630008562 | N51: =SUM(N38:N49) -> 76799.19 | P51: =SUM(P38:P49) -> 109780.27
B53: Add Extra Host Here (I) | D53: Network | H53: Line Connection | L53: Transformation Connection | P53: Total Line
B54: (if needed)
B55: Month | D55: Units Billed | E55: Rate | F55: Amount | H55: Units Billed | I55: Rate | J55: Amount | L55: Units Billed | M55: Rate | N55: Amount | P55: Amount
B57: January | E57: =IF(D57<>0,F57/D57,0) -> 0 | I57: =IF(H57<>0,J57/H57,0) -> 0 | M57: =IF(L57<>0,N57/L57,0) -> 0 | P57: =J57+N57 -> 0
B58: February | E58: 0 | I58: 0 | M58: 0 | P58: 0
B59: March | E59: 0 | I59: 0 | M59: 0 | P59: 0
B60: April | E60: 0 | I60: 0 | M60: 0 | P60: 0
B61: May | E61: 0 | I61: 0 | M61: 0 | P61: 0
B62: June | E62: 0 | I62: 0 | M62: 0 | P62: 0
B63: July | E63: 0 | I63: 0 | M63: 0 | P63: 0
B64: August | E64: 0 | I64: 0 | M64: 0 | P64: 0
B65: September | E65: 0 | I65: 0 | M65: 0 | P65: 0
B66: October | E66: 0 | I66: 0 | M66: 0 | P66: 0
B67: November | E67: 0 | I67: 0 | M67: 0 | P67: 0
B68: December | E68: 0 | I68: 0 | M68: 0 | P68: 0
B70: Total | D70: =SUM(D57:D68) -> 0 | E70: =IF(D70<>0,F70/D70,0) -> 0 | F70: =SUM(F57:F68) -> 0 | H70: =SUM(H57:H68) -> 0 | I70: =IF(H70<>0,J70/H70,0) -> 0 | J70: =SUM(J57:J68) -> 0 | L70: =SUM(L57:L68) -> 0 | M70: =IF(L70<>0,N70/L70,0) -> 0 | N70: =SUM(N57:N68) -> 0 | P70: =SUM(P57:P68) -> 0
B72: Add Extra Host Here (II) | D72: Network | H72: Line Connection | L72: Transformation Connection | P72: Total Line
B73: (if needed)
B74: Month | D74: Units Billed | E74: Rate | F74: Amount | H74: Units Billed | I74: Rate | J74: Amount | L74: Units Billed | M74: Rate | N74: Amount | P74: Amount
B76: January | E76: =IF(D76<>0,F76/D76,0) -> 0 | I76: =IF(H76<>0,J76/H76,0) -> 0 | M76: =IF(L76<>0,N76/L76,0) -> 0 | P76: =J76+N76 -> 0
B77: February | E77: 0 | I77: 0 | M77: 0 | P77: 0
B78: March | E78: 0 | I78: 0 | M78: 0 | P78: 0
B79: April | E79: 0 | I79: 0 | M79: 0 | P79: 0
B80: May | E80: 0 | I80: 0 | M80: 0 | P80: 0
B81: June | E81: 0 | I81: 0 | M81: 0 | P81: 0
B82: July | E82: 0 | I82: 0 | M82: 0 | P82: 0
B83: August | E83: 0 | I83: 0 | M83: 0 | P83: 0
B84: September | E84: 0 | I84: 0 | M84: 0 | P84: 0
B85: October | E85: 0 | I85: 0 | M85: 0 | P85: 0
B86: November | E86: 0 | I86: 0 | M86: 0 | P86: 0
B87: December | E87: 0 | I87: 0 | M87: 0 | P87: 0
B89: Total | D89: =SUM(D76:D87) -> 0 | E89: =IF(D89<>0,F89/D89,0) -> 0 | F89: =SUM(F76:F87) -> 0 | H89: =SUM(H76:H87) -> 0 | I89: =IF(H89<>0,J89/H89,0) -> 0 | J89: =SUM(J76:J87) -> 0 | L89: =SUM(L76:L87) -> 0 | M89: =IF(L89<>0,N89/L89,0) -> 0 | N89: =SUM(N76:N87) -> 0 | P89: =SUM(P76:P87) -> 0
B91: Total | D91: Network | H91: Line Connection | L91: Transformation Connection | P91: Total Line
B93: Month | D93: Units Billed | E93: Rate | F93: Amount | H93: Units Billed | I93: Rate | J93: Amount | L93: Units Billed | M93: Rate | N93: Amount | P93: Amount
B95: January | D95: =D19+D38+D57+D76 -> 260402 | E95: =IF(D95<>0,F95/D95,0) -> 3.623172287 | F95: =F19+F38+F57+F76 -> 943481.31 | H95: =H19+H38+H57+H76 -> 266095 | I95: =IF(H95<>0,J95/H95,0) -> 0.749244067 | J95: =J19+J38+J57+J76 -> 199370.1 | L95: =L19+L38+L57+L76 -> 251987 | M95: =IF(L95<>0,N95/L95,0) -> 1.846487676 | N95: =N19+N38+N57+N76 -> 465290.89 | P95: =J95+N95 -> 664660.99
B96: February | D96: =D20+D39+D58+D77 -> 253849 | E96: 3.623405528 | F96: =F20+F39+F58+F77 -> 919797.87 | H96: =H20+H39+H58+H77 -> 257917 | I96: 0.7492637166 | J96: =J20+J39+J58+J77 -> 193247.85 | L96: =L20+L39+L58+L77 -> 245791 | M96: 1.846600526 | N96: =N20+N39+N58+N77 -> 453877.79 | P96: 647125.64
B97: March | D97: 248056 | E97: 3.624073314 | F97: 898973.13 | H97: 250577 | I97: 0.7493093939 | J97: 187759.7 | L97: 238473 | M97: 1.846807102 | N97: 440413.63 | P97: 628173.33
B98: April | D98: 235040 | E98: 3.623774974 | F98: 851732.07 | H98: 248443 | I98: 0.7493469327 | J98: 186170 | L98: 235321 | M98: 1.84696011 | N98: 434628.5 | P98: 620798.5
B99: May | D99: 254833 | E99: 3.623631986 | F99: 923421.01 | H99: 257659 | I99: 0.7492994617 | J99: 193063.75 | L99: 246939 | M99: 1.846788276 | N99: 456044.05 | P99: 649107.8
B100: June | D100: 289275 | E100: 3.622603405 | F100: 1047928.6 | H100: 293553 | I100: 0.7491883919 | J100: 219926.5 | L100: 280427 | M100: 1.846253036 | N100: 517739.2 | P100: 737665.7
B101: July | D101: 308195 | E101: 3.622465257 | F101: 1116425.68 | H101: 314192 | I101: 0.7491780504 | J101: 235385.75 | L101: 301258 | M101: 1.846231967 | N101: 556192.15 | P101: 791577.9
B102: August | D102: 277990 | E102: 3.622401417 | F102: 1006991.37 | H102: 281508 | I102: 0.7491279111 | J102: 210885.5 | L102: 269798 | M102: 1.846000341 | N102: 498047.2 | P102: 708932.7
B103: September | D103: 291921 | E103: 3.625393617 | F103: 1058328.53 | H103: 295426 | I103: 0.7494507931 | J103: 221407.25 | L103: 283871 | M103: 1.847487767 | N103: 524448.2 | P103: 745855.45
B104: October | D104: 234597 | E104: 3.623271824 | F104: 850008.7 | H104: 247275 | I104: 0.7492558892 | J104: 185272.25 | L104: 236087 | M104: 1.846571603 | N104: 435951.55 | P104: 621223.8
B105: November | D105: 255597.4 | E105: 3.623117137 | F105: 926059.32 | H105: 260831.05 | I105: 0.7492067758 | J105: 195416.39 | L105: 250121.05 | M105: 1.846360272 | N105: 461813.57 | P105: 657229.96
B106: December | D106: 257193.69 | E106: 3.624646662 | F106: 932236.25 | H106: 275827.77 | I106: 0.749442451 | J106: 206717.04 | L106: 264642.77 | M106: 1.847443102 | N106: 488912.46 | P106: 695629.5
B108: Total | D108: =SUM(D95:D106) -> 3166949.09 | E108: =IF(D108<>0,F108/D108,0) -> 3.623482258 | F108: =SUM(F95:F106) -> 11475383.84 | H108: =SUM(H95:H106) -> 3249303.82 | I108: =IF(H108<>0,J108/H108,0) -> 0.7492749878 | J108: =SUM(J95:J106) -> 2434622.08 | L108: =SUM(L95:L106) -> 3104715.82 | M108: =IF(L108<>0,N108/L108,0) -> 1.846661505 | N108: =SUM(N95:N106) -> 5733359.19 | P108: =SUM(P95:P106) -> 8167981.27
N110: Transformer Allowance Credit (if applicable) | P110: ='15. RTSR - UTRs & Sub-Tx'!E95 -> 0
N112: Total including deduction for Transformer Allowance Credit | P112: =P108+P110 -> 8167981.27

Sheet 17. RTSR - Current Wholesale
B13: The purpose of this sheet is to calculate the expected billing when current 2014 Uniform Transmission Rates are applied against historical 2013 transmission units.
B16: IESO | D16: Network | H16: Line Connection | L16: Transformation Connection | P16: Total Line
B18: Month | D18: Units Billed | E18: Rate | F18: Amount | H18: Units Billed | I18: Rate | J18: Amount | L18: Units Billed | M18: Rate | N18: Amount | P18: Amount
B20: January | D20: ='16. RTSR - Historical Wholesale'!D19 -> 256451 | E20: ='15. RTSR - UTRs & Sub-Tx'!G22 -> 3.82 | F20: =D20*E20 -> 979642.82 | H20: ='16. RTSR - Historical Wholesale'!H19 -> 262072 | I20: ='15. RTSR - UTRs & Sub-Tx'!G24 -> 0.82 | J20: =H20*I20 -> 214899.04 | L20: ='16. RTSR - Historical Wholesale'!L19 -> 247964 | M20: ='15. RTSR - UTRs & Sub-Tx'!G26 -> 1.98 | N20: =L20*M20 -> 490968.72 | P20: =J20+N20 -> 705867.76
B21: February | D21: ='16. RTSR - Historical Wholesale'!D20 -> 250129 | E21: =E20 -> 3.82 | F21: =D21*E21 -> 955492.78 | H21: ='16. RTSR - Historical Wholesale'!H20 -> 254119 | I21: =I20 -> 0.82 | J21: =H21*I21 -> 208377.58 | L21: ='16. RTSR - Historical Wholesale'!L20 -> 241993 | M21: =M20 -> 1.98 | N21: =L21*M21 -> 479146.14 | P21: 687523.72
B22: March | D22: ='16. RTSR - Historical Wholesale'!D21 -> 244789 | E22: =E21 -> 3.82 | F22: 935093.98 | H22: ='16. RTSR - Historical Wholesale'!H21 -> 247116 | I22: =I21 -> 0.82 | J22: 202635.12 | L22: ='16. RTSR - Historical Wholesale'!L21 -> 235012 | M22: =M21 -> 1.98 | N22: 465323.76 | P22: 667958.88
B23: April | D23: ='16. RTSR - Historical Wholesale'!D22 -> 231789 | E23: 3.82 | F23: 885433.98 | H23: ='16. RTSR - Historical Wholesale'!H22 -> 245192 | I23: 0.82 | J23: 201057.44 | L23: ='16. RTSR - Historical Wholesale'!L22 -> 232070 | M23: 1.98 | N23: 459498.6 | P23: 660556.04
B24: May | D24: ='16. RTSR - Historical Wholesale'!D23 -> 251227 | E24: 3.82 | F24: 959687.14 | H24: ='16. RTSR - Historical Wholesale'!H23 -> 254053 | I24: 0.82 | J24: 208323.46 | L24: ='16. RTSR - Historical Wholesale'!L23 -> 243333 | M24: 1.98 | N24: 481799.34 | P24: 690122.8
B25: June | D25: ='16. RTSR - Historical Wholesale'!D24 -> 284520 | E25: 3.82 | F25: 1086866.4 | H25: ='16. RTSR - Historical Wholesale'!H24 -> 288778 | I25: 0.82 | J25: 236797.96 | L25: ='16. RTSR - Historical Wholesale'!L24 -> 275652 | M25: 1.98 | N25: 545790.96 | P25: 782588.92
B26: July | D26: ='16. RTSR - Historical Wholesale'!D25 -> 303036 | E26: 3.82 | F26: 1157597.52 | H26: ='16. RTSR - Historical Wholesale'!H25 -> 309033 | I26: 0.82 | J26: 253407.06 | L26: ='16. RTSR - Historical Wholesale'!L25 -> 296099 | M26: 1.98 | N26: 586276.02 | P26: 839683.08
B27: August | D27: ='16. RTSR - Historical Wholesale'!D26 -> 273299 | E27: 3.82 | F27: 1044002.18 | H27: ='16. RTSR - Historical Wholesale'!H26 -> 276602 | I27: 0.82 | J27: 226813.64 | L27: ='16. RTSR - Historical Wholesale'!L26 -> 264892 | M27: 1.98 | N27: 524486.16 | P27: 751299.8
B28: September | D28: ='16. RTSR - Historical Wholesale'!D27 -> 288931 | E28: 3.82 | F28: 1103716.42 | H28: ='16. RTSR - Historical Wholesale'!H27 -> 292187 | I28: 0.82 | J28: 239593.34 | L28: ='16. RTSR - Historical Wholesale'!L27 -> 280632 | M28: 1.98 | N28: 555651.36 | P28: 795244.7
B29: October | D29: ='16. RTSR - Historical Wholesale'!D28 -> 231090 | E29: 3.82 | F29: 882763.8 | H29: ='16. RTSR - Historical Wholesale'!H28 -> 243591 | I29: 0.82 | J29: 199744.62 | L29: ='16. RTSR - Historical Wholesale'!L28 -> 232403 | M29: 1.98 | N29: 460157.94 | P29: 659902.56
B30: November | D30: ='16. RTSR - Historical Wholesale'!D29 -> 251688 | E30: 3.82 | F30: 961448.16 | H30: ='16. RTSR - Historical Wholesale'!H29 -> 256693 | I30: 0.82 | J30: 210488.26 | L30: ='16. RTSR - Historical Wholesale'!L29 -> 245983 | M30: 1.98 | N30: 487046.34 | P30: 697534.6
B31: December | D31: ='16. RTSR - Historical Wholesale'!D30 -> 254134 | E31: 3.82 | F31: 970791.88 | H31: ='16. RTSR - Historical Wholesale'!H30 -> 272752 | I31: 0.82 | J31: 223656.64 | L31: ='16. RTSR - Historical Wholesale'!L30 -> 261567 | M31: 1.98 | N31: 517902.66 | P31: 741559.3
B33: Total | D33: =SUM(D20:D31) -> 3121083 | E33: =IF(D33<>0,F33/D33,0) -> 3.82 | F33: =SUM(F20:F31) -> 11922537.06 | H33: =SUM(H20:H31) -> 3202188 | I33: =IF(H33<>0,J33/H33,0) -> 0.82 | J33: =SUM(J20:J31) -> 2625794.16 | L33: =SUM(L20:L31) -> 3057600 | M33: =IF(L33<>0,N33/L33,0) -> 1.98 | N33: =SUM(N20:N31) -> 6054048 | P33: =SUM(P20:P31) -> 8679842.16
B35: Hydro One | D35: Network | H35: Line Connection | L35: Transformation Connection | P35: Total Line
B37: Month | D37: Units Billed | E37: Rate | F37: Amount | H37: Units Billed | I37: Rate | J37: Amount | L37: Units Billed | M37: Rate | N37: Amount | P37: Amount
B39: January | D39: ='16. RTSR - Historical Wholesale'!D38 -> 3951 | E39: ='15. RTSR - UTRs & Sub-Tx'!G35+'15. RTSR - UTRs & Sub-Tx'!G79 -> 3.3765 | F39: =D39*E39 -> 13340.5515 | H39: ='16. RTSR - Historical Wholesale'!H38 -> 4023 | I39: ='15. RTSR - UTRs & Sub-Tx'!G37+'15. RTSR - UTRs & Sub-Tx'!G81 -> 0.7167 | J39: =H39*I39 -> 2883.2841 | L39: ='16. RTSR - Historical Wholesale'!L38 -> 4023 | M39: ='15. RTSR - UTRs & Sub-Tx'!G39 -> 1.62 | N39: =L39*M39 -> 6517.26 | P39: =J39+N39 -> 9400.5441
B40: February | D40: ='16. RTSR - Historical Wholesale'!D39 -> 3720 | E40: =E39 -> 3.3765 | F40: =D40*E40 -> 12560.58 | H40: ='16. RTSR - Historical Wholesale'!H39 -> 3798 | I40: =I39 -> 0.7167 | J40: =H40*I40 -> 2722.0266 | L40: ='16. RTSR - Historical Wholesale'!L39 -> 3798 | M40: =M39 -> 1.62 | N40: =L40*M40 -> 6152.76 | P40: 8874.7866
B41: March | D41: ='16. RTSR - Historical Wholesale'!D40 -> 3267 | E41: =E40 -> 3.3765 | F41: 11031.0255 | H41: ='16. RTSR - Historical Wholesale'!H40 -> 3461 | I41: =I40 -> 0.7167 | J41: 2480.4987 | L41: ='16. RTSR - Historical Wholesale'!L40 -> 3461 | M41: =M40 -> 1.62 | N41: 5606.82 | P41: 8087.3187
B42: April | D42: ='16. RTSR - Historical Wholesale'!D41 -> 3251 | E42: 3.3765 | F42: 10977.0015 | H42: ='16. RTSR - Historical Wholesale'!H41 -> 3251 | I42: 0.7167 | J42: 2329.9917 | L42: ='16. RTSR - Historical Wholesale'!L41 -> 3251 | M42: =M41 -> 1.62 | N42: 5266.62 | P42: 7596.6117
B43: May | D43: ='16. RTSR - Historical Wholesale'!D42 -> 3606 | E43: 3.3765 | F43: 12175.659 | H43: ='16. RTSR - Historical Wholesale'!H42 -> 3606 | I43: 0.7167 | J43: 2584.4202 | L43: ='16. RTSR - Historical Wholesale'!L42 -> 3606 | M43: 1.62 | N43: 5841.72 | P43: 8426.1402
B44: June | D44: ='16. RTSR - Historical Wholesale'!D43 -> 4755 | E44: 3.3765 | F44: 16055.2575 | H44: ='16. RTSR - Historical Wholesale'!H43 -> 4775 | I44: 0.7167 | J44: 3422.2425 | L44: ='16. RTSR - Historical Wholesale'!L43 -> 4775 | M44: 1.62 | N44: 7735.5 | P44: 11157.7425
B45: July | D45: ='16. RTSR - Historical Wholesale'!D44 -> 5159 | E45: 3.3765 | F45: 17419.3635 | H45: ='16. RTSR - Historical Wholesale'!H44 -> 5159 | I45: 0.7167 | J45: 3697.4553 | L45: ='16. RTSR - Historical Wholesale'!L44 -> 5159 | M45: 1.62 | N45: 8357.58 | P45: 12055.0353
B46: August | D46: ='16. RTSR - Historical Wholesale'!D45 -> 4691 | E46: 3.3765 | F46: 15839.1615 | H46: ='16. RTSR - Historical Wholesale'!H45 -> 4906 | I46: 0.7167 | J46: 3516.1302 | L46: ='16. RTSR - Historical Wholesale'!L45 -> 4906 | M46: 1.62 | N46: 7947.72 | P46: 11463.8502
B47: September | D47: ='16. RTSR - Historical Wholesale'!D46 -> 2990 | E47: 3.3765 | F47: 10095.735 | H47: ='16. RTSR - Historical Wholesale'!H46 -> 3239 | I47: 0.7167 | J47: 2321.3913 | L47: ='16. RTSR - Historical Wholesale'!L46 -> 3239 | M47: 1.62 | N47: 5247.18 | P47: 7568.5713
B48: October | D48: ='16. RTSR - Historical Wholesale'!D47 -> 3507 | E48: 3.3765 | F48: 11841.3855 | H48: ='16. RTSR - Historical Wholesale'!H47 -> 3684 | I48: 0.7167 | J48: 2640.3228 | L48: ='16. RTSR - Historical Wholesale'!L47 -> 3684 | M48: 1.62 | N48: 5968.08 | P48: 8608.4028
B49: November | D49: ='16. RTSR - Historical Wholesale'!D48 -> 3909.4 | E49: 3.3765 | F49: 13200.0891 | H49: ='16. RTSR - Historical Wholesale'!H48 -> 4138.05 | I49: 0.7167 | J49: 2965.740435 | L49: ='16. RTSR - Historical Wholesale'!L48 -> 4138.05 | M49: 1.62 | N49: 6703.641 | P49: 9669.381435
B50: December | D50: ='16. RTSR - Historical Wholesale'!D49 -> 3059.69 | E50: 3.3765 | F50: 10331.04328 | H50: ='16. RTSR - Historical Wholesale'!H49 -> 3075.77 | I50: 0.7167 | J50: 2204.404359 | L50: ='16. RTSR - Historical Wholesale'!L49 -> 3075.77 | M50: 1.62 | N50: 4982.7474 | P50: 7187.151759
B52: Total | D52: =SUM(D39:D50) -> 45866.09 | E52: =IF(D52<>0,F52/D52,0) -> 3.3765 | F52: =SUM(F39:F50) -> 154866.8529 | H52: =SUM(H39:H50) -> 47115.82 | I52: =IF(H52<>0,J52/H52,0) -> 0.7167 | J52: =SUM(J39:J50) -> 33767.90819 | L52: =SUM(L39:L50) -> 47115.82 | M52: =IF(L52<>0,N52/L52,0) -> 1.62 | N52: =SUM(N39:N50) -> 76327.6284 | P52: =SUM(P39:P50) -> 110095.5366
B54: ='16. RTSR - Historical Wholesale'!B53 -> Add Extra Host Here (I) | D54: Network | H54: Line Connection | L54: Transformation Connection | P54: Total Line
B56: Month | D56: Units Billed | E56: Rate | F56: Amount | H56: Units Billed | I56: Rate | J56: Amount | L56: Units Billed | M56: Rate | N56: Amount | P56: Amount
B58: January | D58: ='16. RTSR - Historical Wholesale'!D57 -> 0 | E58: ='15. RTSR - UTRs & Sub-Tx'!G50 -> 0 | F58: =D58*E58 -> 0 | H58: ='16. RTSR - Historical Wholesale'!H57 -> 0 | I58: ='15. RTSR - UTRs & Sub-Tx'!G52 -> 0 | J58: =H58*I58 -> 0 | L58: ='16. RTSR - Historical Wholesale'!L57 -> 0 | M58: ='15. RTSR - UTRs & Sub-Tx'!G54 -> 0 | N58: =L58*M58 -> 0 | P58: =J58+N58 -> 0
B59: February | D59: ='16. RTSR - Historical Wholesale'!D58 -> 0 | E59: =E58 -> 0 | F59: =D59*E59 -> 0 | H59: ='16. RTSR - Historical Wholesale'!H58 -> 0 | I59: =I58 -> 0 | J59: =H59*I59 -> 0 | L59: ='16. RTSR - Historical Wholesale'!L58 -> 0 | M59: =M58 -> 0 | N59: =L59*M59 -> 0 | P59: 0
B60: March | D60: ='16. RTSR - Historical Wholesale'!D59 -> 0 | E60: =E59 -> 0 | F60: 0 | H60: ='16. RTSR - Historical Wholesale'!H59 -> 0 | I60: =I59 -> 0 | J60: 0 | L60: ='16. RTSR - Historical Wholesale'!L59 -> 0 | M60: =M59 -> 0 | N60: 0 | P60: 0
B61: April | D61: ='16. RTSR - Historical Wholesale'!D60 -> 0 | E61: 0 | F61: 0 | H61: ='16. RTSR - Historical Wholesale'!H60 -> 0 | I61: 0 | J61: 0 | L61: ='16. RTSR - Historical Wholesale'!L60 -> 0 | M61: =M60 -> 0 | N61: 0 | P61: 0
B62: May | D62: ='16. RTSR - Historical Wholesale'!D61 -> 0 | E62: 0 | F62: 0 | H62: ='16. RTSR - Historical Wholesale'!H61 -> 0 | I62: 0 | J62: 0 | L62: ='16. RTSR - Historical Wholesale'!L61 -> 0 | M62: 0 | N62: 0 | P62: 0
B63: June | D63: ='16. RTSR - Historical Wholesale'!D62 -> 0 | E63: 0 | F63: 0 | H63: ='16. RTSR - Historical Wholesale'!H62 -> 0 | I63: 0 | J63: 0 | L63: ='16. RTSR - Historical Wholesale'!L62 -> 0 | M63: 0 | N63: 0 | P63: 0
B64: July | D64: ='16. RTSR - Historical Wholesale'!D63 -> 0 | E64: 0 | F64: 0 | H64: ='16. RTSR - Historical Wholesale'!H63 -> 0 | I64: 0 | J64: 0 | L64: ='16. RTSR - Historical Wholesale'!L63 -> 0 | M64: 0 | N64: 0 | P64: 0
B65: August | D65: ='16. RTSR - Historical Wholesale'!D64 -> 0 | E65: 0 | F65: 0 | H65: ='16. RTSR - Historical Wholesale'!H64 -> 0 | I65: 0 | J65: 0 | L65: ='16. RTSR - Historical Wholesale'!L64 -> 0 | M65: 0 | N65: 0 | P65: 0
B66: September | D66: ='16. RTSR - Historical Wholesale'!D65 -> 0 | E66: 0 | F66: 0 | H66: ='16. RTSR - Historical Wholesale'!H65 -> 0 | I66: 0 | J66: 0 | L66: ='16. RTSR - Historical Wholesale'!L65 -> 0 | M66: 0 | N66: 0 | P66: 0
B67: October | D67: ='16. RTSR - Historical Wholesale'!D66 -> 0 | E67: 0 | F67: 0 | H67: ='16. RTSR - Historical Wholesale'!H66 -> 0 | I67: 0 | J67: 0 | L67: ='16. RTSR - Historical Wholesale'!L66 -> 0 | M67: 0 | N67: 0 | P67: 0
B68: November | D68: ='16. RTSR - Historical Wholesale'!D67 -> 0 | E68: 0 | F68: 0 | H68: ='16. RTSR - Historical Wholesale'!H67 -> 0 | I68: 0 | J68: 0 | L68: ='16. RTSR - Historical Wholesale'!L67 -> 0 | M68: 0 | N68: 0 | P68: 0
B69: December | D69: ='16. RTSR - Historical Wholesale'!D68 -> 0 | E69: 0 | F69: 0 | H69: ='16. RTSR - Historical Wholesale'!H68 -> 0 | I69: 0 | J69: 0 | L69: ='16. RTSR - Historical Wholesale'!L68 -> 0 | M69: 0 | N69: 0 | P69: 0
B71: Total | D71: =SUM(D58:D69) -> 0 | E71: =IF(D71<>0,F71/D71,0) -> 0 | F71: =SUM(F58:F69) -> 0 | H71: =SUM(H58:H69) -> 0 | I71: =IF(H71<>0,J71/H71,0) -> 0 | J71: =SUM(J58:J69) -> 0 | L71: =SUM(L58:L69) -> 0 | M71: =IF(L71<>0,N71/L71,0) -> 0 | N71: =SUM(N58:N69) -> 0 | P71: =SUM(P58:P69) -> 0
B73: ='16. RTSR - Historical Wholesale'!B72 -> Add Extra Host Here (II) | D73: Network | H73: Line Connection | L73: Transformation Connection | P73: Total Line
B75: Month | D75: Units Billed | E75: Rate | F75: Amount | H75: Units Billed | I75: Rate | J75: Amount | L75: Units Billed | M75: Rate | N75: Amount | P75: Amount
B77: January | D77: ='16. RTSR - Historical Wholesale'!D76 -> 0 | E77: ='15. RTSR - UTRs & Sub-Tx'!G65 -> 0 | F77: =D77*E77 -> 0 | H77: ='16. RTSR - Historical Wholesale'!H76 -> 0 | I77: ='15. RTSR - UTRs & Sub-Tx'!G67 -> 0 | J77: =H77*I77 -> 0 | L77: ='16. RTSR - Historical Wholesale'!L76 -> 0 | M77: ='15. RTSR - UTRs & Sub-Tx'!G69 -> 0 | N77: =L77*M77 -> 0 | P77: =J77+N77 -> 0
B78: February | D78: ='16. RTSR - Historical Wholesale'!D77 -> 0 | E78: =E77 -> 0 | F78: =D78*E78 -> 0 | H78: ='16. RTSR - Historical Wholesale'!H77 -> 0 | I78: =I77 -> 0 | J78: =H78*I78 -> 0 | L78: ='16. RTSR - Historical Wholesale'!L77 -> 0 | M78: =M77 -> 0 | N78: =L78*M78 -> 0 | P78: 0
B79: March | D79: ='16. RTSR - Historical Wholesale'!D78 -> 0 | E79: =E78 -> 0 | F79: 0 | H79: ='16. RTSR - Historical Wholesale'!H78 -> 0 | I79: =I78 -> 0 | J79: 0 | L79: ='16. RTSR - Historical Wholesale'!L78 -> 0 | M79: =M78 -> 0 | N79: 0 | P79: 0
B80: April | D80: ='16. RTSR - Historical Wholesale'!D79 -> 0 | E80: 0 | F80: 0 | H80: ='16. RTSR - Historical Wholesale'!H79 -> 0 | I80: 0 | J80: 0 | L80: ='16. RTSR - Historical Wholesale'!L79 -> 0 | M80: =M79 -> 0 | N80: 0 | P80: 0
B81: May | D81: ='16. RTSR - Historical Wholesale'!D80 -> 0 | E81: 0 | F81: 0 | H81: ='16. RTSR - Historical Wholesale'!H80 -> 0 | I81: 0 | J81: 0 | L81: ='16. RTSR - Historical Wholesale'!L80 -> 0 | M81: 0 | N81: 0 | P81: 0
B82: June | D82: ='16. RTSR - Historical Wholesale'!D81 -> 0 | E82: 0 | F82: 0 | H82: ='16. RTSR - Historical Wholesale'!H81 -> 0 | I82: 0 | J82: 0 | L82: ='16. RTSR - Historical Wholesale'!L81 -> 0 | M82: 0 | N82: 0 | P82: 0
B83: July | D83: ='16. RTSR - Historical Wholesale'!D82 -> 0 | E83: 0 | F83: 0 | H83: ='16. RTSR - Historical Wholesale'!H82 -> 0 | I83: 0 | J83: 0 | L83: ='16. RTSR - Historical Wholesale'!L82 -> 0 | M83: 0 | N83: 0 | P83: 0
B84: August | D84: ='16. RTSR - Historical Wholesale'!D83 -> 0 | E84: 0 | F84: 0 | H84: ='16. RTSR - Historical Wholesale'!H83 -> 0 | I84: 0 | J84: 0 | L84: ='16. RTSR - Historical Wholesale'!L83 -> 0 | M84: 0 | N84: 0 | P84: 0
B85: September | D85: ='16. RTSR - Historical Wholesale'!D84 -> 0 | E85: 0 | F85: 0 | H85: ='16. RTSR - Historical Wholesale'!H84 -> 0 | I85: 0 | J85: 0 | L85: ='16. RTSR - Historical Wholesale'!L84 -> 0 | M85: 0 | N85: 0 | P85: 0
B86: October | D86: ='16. RTSR - Historical Wholesale'!D85 -> 0 | E86: 0 | F86: 0 | H86: ='16. RTSR - Historical Wholesale'!H85 -> 0 | I86: 0 | J86: 0 | L86: ='16. RTSR - Historical Wholesale'!L85 -> 0 | M86: 0 | N86: 0 | P86: 0
B87: November | D87: ='16. RTSR - Historical Wholesale'!D86 -> 0 | E87: 0 | F87: 0 | H87: ='16. RTSR - Historical Wholesale'!H86 -> 0 | I87: 0 | J87: 0 | L87: ='16. RTSR - Historical Wholesale'!L86 -> 0 | M87: 0 | N87: 0 | P87: 0
B88: December | D88: ='16. RTSR - Historical Wholesale'!D87 -> 0 | E88: 0 | F88: 0 | H88: ='16. RTSR - Historical Wholesale'!H87 -> 0 | I88: 0 | J88: 0 | L88: ='16. RTSR - Historical Wholesale'!L87 -> 0 | M88: 0 | N88: 0 | P88: 0
B90: Total | D90: =SUM(D77:D88) -> 0 | E90: =IF(D90<>0,F90/D90,0) -> 0 | F90: =SUM(F77:F88) -> 0 | H90: =SUM(H77:H88) -> 0 | I90: =IF(H90<>0,J90/H90,0) -> 0 | J90: =SUM(J77:J88) -> 0 | L90: =SUM(L77:L88) -> 0 | M90: =IF(L90<>0,N90/L90,0) -> 0 | N90: =SUM(N77:N88) -> 0 | P90: =SUM(P77:P88) -> 0
B92: Total | D92: Network | H92: Line Connection | L92: Transformation Connection | P92: Total Line
B94: Month | D94: Units Billed | E94: Rate | F94: Amount | H94: Units Billed | I94: Rate | J94: Amount | L94: Units Billed | M94: Rate | N94: Amount | P94: Amount
B96: January | D96: =D20+D39+D58+D77 -> 260402 | E96: =IF(D96<>0,F96/D96,0) -> 3.81327091 | F96: =F20+F39+F58+F77 -> 992983.3715 | H96: =H20+H39+H58+H77 -> 266095 | I96: =IF(H96<>0,J96/H96,0) -> 0.8184382424 | J96: =J20+J39+J58+J77 -> 217782.3241 | L96: =L20+L39+L58+L77 -> 251987 | M96: =IF(L96<>0,N96/L96,0) -> 1.974252561 | N96: =N20+N39+N58+N77 -> 497485.98 | P96: =J96+N96 -> 715268.3041
B97: February | D97: =D21+D40+D59+D78 -> 253849 | E97: 3.813500782 | F97: =F21+F40+F59+F78 -> 968053.36 | H97: =H21+H40+H59+H78 -> 257917 | I97: 0.8184788385 | J97: =J21+J40+J59+J78 -> 211099.6066 | L97: =L21+L40+L59+L78 -> 245791 | M97: 1.974437225 | N97: =N21+N40+N59+N78 -> 485298.9 | P97: 696398.5066
B98: March | D98: 248056 | E98: 3.814158922 | F98: 946125.0055 | H98: 250577 | I98: 0.8185732078 | J98: 205115.6187 | L98: 238473 | M98: 1.974775258 | N98: 470930.58 | P98: 676046.1987
B99: April | D99: 235040 | E99: 3.813865646 | F99: 896410.9815 | H99: 248443 | I99: 0.8186482682 | J99: 203387.4317 | L99: 235321 | M99: 1.975026538 | N99: 464765.22 | P99: 668152.6517
B100: May | D100: 254833 | E100: 3.813724278 | F100: 971862.799 | H100: 257659 | I100: 0.8185542915 | J100: 210907.8802 | L100: 246939 | M100: 1.974742993 | N100: 487641.06 | P100: 698548.9402
B101: June | D101: 289275 | E101: 3.812709904 | F101: 1102921.657 | H101: 293553 | I101: 0.8183196987 | J101: 240220.2025 | L101: 280427 | M101: 1.973870062 | N101: 553526.46 | P101: 793746.6625
B102: July | D102: 308195 | E102: 3.812576075 | F102: 1175016.883 | H102: 314192 | I102: 0.8183038247 | J102: 257104.5153 | L102: 301258 | M102: 1.973835052 | N102: 594633.6 | P102: 851738.1153
B103: August | D103: 277990 | E103: 3.812516067 | F103: 1059841.341 | H103: 281508 | I103: 0.8181997322 | J103: 230329.7702 | L103: 269798 | M103: 1.973453769 | N103: 532433.88 | P103: 762763.6502
B104: September | D104: 291921 | E104: 3.815457453 | F104: 1113812.155 | H104: 295426 | I104: 0.8188674365 | J104: 241914.7313 | L104: 283871 | M104: 1.97589236 | N104: 560898.54 | P104: 802813.2713
B105: October | D105: 234597 | E105: 3.813370101 | F105: 894605.1855 | H105: 247275 | I105: 0.8184609961 | J105: 202384.9428 | L105: 236087 | M105: 1.97438241 | N105: 466126.02 | P105: 668510.9628
B106: November | D106: 255597.4 | E106: 3.813216602 | F106: 974648.2491 | H106: 260831.05 | I106: 0.8183611592 | J106: 213454.0004 | L106: 250121.05 | M106: 1.974044092 | N106: 493749.981 | P106: 707203.9814
B107: December | D107: 257193.69 | E107: 3.814723928 | F107: 981122.9233 | H107: 275827.77 | I107: 0.8188480963 | J107: 225861.0444 | L107: 264642.77 | M107: 1.975815955 | N107: 522885.4074 | P107: 748746.4518
B109: Total | D109: =SUM(D96:D107) -> 3166949.09 | E109: =IF(D109<>0,F109/D109,0) -> 3.813576906 | F109: =SUM(F96:F107) -> 12077403.91 | H109: =SUM(H96:H107) -> 3249303.82 | I109: =IF(H109<>0,J109/H109,0) -> 0.8185021209 | J109: =SUM(J96:J107) -> 2659562.068 | L109: =SUM(L96:L107) -> 3104715.82 | M109: =IF(L109<>0,N109/L109,0) -> 1.974536796 | N109: =SUM(N96:N107) -> 6130375.628 | P109: =SUM(P96:P107) -> 8789937.697
N111: Transformer Allowance Credit (if applicable) | P111: ='15. RTSR - UTRs & Sub-Tx'!G95 -> 0
N113: Total including deduction for Transformer Allowance Credit | P113: =P109+P111 -> 8789937.697

Sheet 18. RTSR - Forecast Wholesale
B13: The purpose of this sheet is to calculate the expected billing when forecasted 2015 Uniform Transmission Rates are applied against historical 2013 transmission units.
B16: IESO | D16: Network | H16: Line Connection | L16: Transformation Connection | P16: Total Line
B18: Month | D18: Units Billed | E18: Rate | F18: Amount | H18: Units Billed | I18: Rate | J18: Amount | L18: Units Billed | M18: Rate | N18: Amount | P18: Amount
B20: January | D20: ='16. RTSR - Historical Wholesale'!D19 -> 256451 | E20: ='15. RTSR - UTRs & Sub-Tx'!I22 -> 3.82 | F20: =D20*E20 -> 979642.82 | H20: ='16. RTSR - Historical Wholesale'!H19 -> 262072 | I20: ='15. RTSR - UTRs & Sub-Tx'!I24 -> 0.82 | J20: =H20*I20 -> 214899.04 | L20: ='16. RTSR - Historical Wholesale'!L19 -> 247964 | M20: ='15. RTSR - UTRs & Sub-Tx'!I26 -> 1.98 | N20: =L20*M20 -> 490968.72 | P20: =J20+N20 -> 705867.76
B21: February | D21: ='16. RTSR - Historical Wholesale'!D20 -> 250129 | E21: =E20 -> 3.82 | F21: 955492.78 | H21: ='16. RTSR - Historical Wholesale'!H20 -> 254119 | I21: =I20 -> 0.82 | J21: 208377.58 | L21: ='16. RTSR - Historical Wholesale'!L20 -> 241993 | M21: =M20 -> 1.98 | N21: 479146.14 | P21: 687523.72
B22: March | D22: ='16. RTSR - Historical Wholesale'!D21 -> 244789 | E22: 3.82 | F22: 935093.98 | H22: ='16. RTSR - Historical Wholesale'!H21 -> 247116 | I22: 0.82 | J22: 202635.12 | L22: ='16. RTSR - Historical Wholesale'!L21 -> 235012 | M22: 1.98 | N22: 465323.76 | P22: 667958.88
B23: April | D23: ='16. RTSR - Historical Wholesale'!D22 -> 231789 | E23: 3.82 | F23: 885433.98 | H23: ='16. RTSR - Historical Wholesale'!H22 -> 245192 | I23: 0.82 | J23: 201057.44 | L23: ='16. RTSR - Historical Wholesale'!L22 -> 232070 | M23: 1.98 | N23: 459498.6 | P23: 660556.04
B24: May | D24: ='16. RTSR - Historical Wholesale'!D23 -> 251227 | E24: 3.82 | F24: 959687.14 | H24: ='16. RTSR - Historical Wholesale'!H23 -> 254053 | I24: 0.82 | J24: 208323.46 | L24: ='16. RTSR - Historical Wholesale'!L23 -> 243333 | M24: 1.98 | N24: 481799.34 | P24: 690122.8
B25: June | D25: ='16. RTSR - Historical Wholesale'!D24 -> 284520 | E25: 3.82 | F25: 1086866.4 | H25: ='16. RTSR - Historical Wholesale'!H24 -> 288778 | I25: 0.82 | J25: 236797.96 | L25: ='16. RTSR - Historical Wholesale'!L24 -> 275652 | M25: 1.98 | N25: 545790.96 | P25: 782588.92
B26: July | D26: ='16. RTSR - Historical Wholesale'!D25 -> 303036 | E26: 3.82 | F26: 1157597.52 | H26: ='16. RTSR - Historical Wholesale'!H25 -> 309033 | I26: 0.82 | J26: 253407.06 | L26: ='16. RTSR - Historical Wholesale'!L25 -> 296099 | M26: 1.98 | N26: 586276.02 | P26: 839683.08
B27: August | D27: ='16. RTSR - Historical Wholesale'!D26 -> 273299 | E27: 3.82 | F27: 1044002.18 | H27: ='16. RTSR - Historical Wholesale'!H26 -> 276602 | I27: 0.82 | J27: 226813.64 | L27: ='16. RTSR - Historical Wholesale'!L26 -> 264892 | M27: 1.98 | N27: 524486.16 | P27: 751299.8
B28: September | D28: ='16. RTSR - Historical Wholesale'!D27 -> 288931 | E28: 3.82 | F28: 1103716.42 | H28: ='16. RTSR - Historical Wholesale'!H27 -> 292187 | I28: 0.82 | J28: 239593.34 | L28: ='16. RTSR - Historical Wholesale'!L27 -> 280632 | M28: 1.98 | N28: 555651.36 | P28: 795244.7
B29: October | D29: ='16. RTSR - Historical Wholesale'!D28 -> 231090 | E29: 3.82 | F29: 882763.8 | H29: ='16. RTSR - Historical Wholesale'!H28 -> 243591 | I29: 0.82 | J29: 199744.62 | L29: ='16. RTSR - Historical Wholesale'!L28 -> 232403 | M29: 1.98 | N29: 460157.94 | P29: 659902.56
B30: November | D30: ='16. RTSR - Historical Wholesale'!D29 -> 251688 | E30: 3.82 | F30: 961448.16 | H30: ='16. RTSR - Historical Wholesale'!H29 -> 256693 | I30: 0.82 | J30: 210488.26 | L30: ='16. RTSR - Historical Wholesale'!L29 -> 245983 | M30: 1.98 | N30: 487046.34 | P30: 697534.6
B31: December | D31: ='16. RTSR - Historical Wholesale'!D30 -> 254134 | E31: 3.82 | F31: 970791.88 | H31: ='16. RTSR - Historical Wholesale'!H30 -> 272752 | I31: 0.82 | J31: 223656.64 | L31: ='16. RTSR - Historical Wholesale'!L30 -> 261567 | M31: 1.98 | N31: 517902.66 | P31: 741559.3
B33: Total | D33: =SUM(D20:D31) -> 3121083 | E33: =IF(D33<>0,F33/D33,0) -> 3.82 | F33: =SUM(F20:F31) -> 11922537.06 | H33: =SUM(H20:H31) -> 3202188 | I33: =IF(H33<>0,J33/H33,0) -> 0.82 | J33: =SUM(J20:J31) -> 2625794.16 | L33: =SUM(L20:L31) -> 3057600 | M33: =IF(L33<>0,N33/L33,0) -> 1.98 | N33: =SUM(N20:N31) -> 6054048 | P33: =SUM(P20:P31) -> 8679842.16
B35: Hydro One | D35: Network | H35: Line Connection | L35: Transformation Connection | P35: Total Line
B37: Month | D37: Units Billed | E37: Rate | F37: Amount | H37: Units Billed | I37: Rate | J37: Amount | L37: Units Billed | M37: Rate | N37: Amount | P37: Amount
B39: January | D39: ='16. RTSR - Historical Wholesale'!D38 -> 3951 | E39: ='15. RTSR - UTRs & Sub-Tx'!I35+'15. RTSR - UTRs & Sub-Tx'!I79 -> 3.23 | F39: =D39*E39 -> 12761.73 | H39: ='16. RTSR - Historical Wholesale'!H38 -> 4023 | I39: ='15. RTSR - UTRs & Sub-Tx'!I37+'15. RTSR - UTRs & Sub-Tx'!I81 -> 0.65 | J39: =H39*I39 -> 2614.95 | L39: ='16. RTSR - Historical Wholesale'!L38 -> 4023 | M39: ='15. RTSR - UTRs & Sub-Tx'!I39 -> 1.62 | N39: =L39*M39 -> 6517.26 | P39: =J39+N39 -> 9132.21
B40: February | D40: ='16. RTSR - Historical Wholesale'!D39 -> 3720 | E40: =E39 -> 3.23 | F40: 12015.6 | H40: ='16. RTSR - Historical Wholesale'!H39 -> 3798 | I40: =I39 -> 0.65 | J40: 2468.7 | L40: ='16. RTSR - Historical Wholesale'!L39 -> 3798 | M40: =M39 -> 1.62 | N40: 6152.76 | P40: 8621.46
B41: March | D41: ='16. RTSR - Historical Wholesale'!D40 -> 3267 | E41: 3.23 | F41: 10552.41 | H41: ='16. RTSR - Historical Wholesale'!H40 -> 3461 | I41: 0.65 | J41: 2249.65 | L41: ='16. RTSR - Historical Wholesale'!L40 -> 3461 | M41: 1.62 | N41: 5606.82 | P41: 7856.47
B42: April | D42: ='16. RTSR - Historical Wholesale'!D41 -> 3251 | E42: 3.23 | F42: 10500.73 | H42: ='16. RTSR - Historical Wholesale'!H41 -> 3251 | I42: 0.65 | J42: 2113.15 | L42: ='16. RTSR - Historical Wholesale'!L41 -> 3251 | M42: 1.62 | N42: 5266.62 | P42: 7379.77
B43: May | D43: ='16. RTSR - Historical Wholesale'!D42 -> 3606 | E43: 3.23 | F43: 11647.38 | H43: ='16. RTSR - Historical Wholesale'!H42 -> 3606 | I43: 0.65 | J43: 2343.9 | L43: ='16. RTSR - Historical Wholesale'!L42 -> 3606 | M43: 1.62 | N43: 5841.72 | P43: 8185.62
B44: June | D44: ='16. RTSR - Historical Wholesale'!D43 -> 4755 | E44: 3.23 | F44: 15358.65 | H44: ='16. RTSR - Historical Wholesale'!H43 -> 4775 | I44: 0.65 | J44: 3103.75 | L44: ='16. RTSR - Historical Wholesale'!L43 -> 4775 | M44: 1.62 | N44: 7735.5 | P44: 10839.25
B45: July | D45: ='16. RTSR - Historical Wholesale'!D44 -> 5159 | E45: 3.23 | F45: 16663.57 | H45: ='16. RTSR - Historical Wholesale'!H44 -> 5159 | I45: 0.65 | J45: 3353.35 | L45: ='16. RTSR - Historical Wholesale'!L44 -> 5159 | M45: 1.62 | N45: 8357.58 | P45: 11710.93
B46: August | D46: ='16. RTSR - Historical Wholesale'!D45 -> 4691 | E46: 3.23 | F46: 15151.93 | H46: ='16. RTSR - Historical Wholesale'!H45 -> 4906 | I46: 0.65 | J46: 3188.9 | L46: ='16. RTSR - Historical Wholesale'!L45 -> 4906 | M46: 1.62 | N46: 7947.72 | P46: 11136.62
B47: September | D47: ='16. RTSR - Historical Wholesale'!D46 -> 2990 | E47: 3.23 | F47: 9657.7 | H47: ='16. RTSR - Historical Wholesale'!H46 -> 3239 | I47: 0.65 | J47: 2105.35 | L47: ='16. RTSR - Historical Wholesale'!L46 -> 3239 | M47: 1.62 | N47: 5247.18 | P47: 7352.53
B48: October | D48: ='16. RTSR - Historical Wholesale'!D47 -> 3507 | E48: 3.23 | F48: 11327.61 | H48: ='16. RTSR - Historical Wholesale'!H47 -> 3684 | I48: 0.65 | J48: 2394.6 | L48: ='16. RTSR - Historical Wholesale'!L47 -> 3684 | M48: 1.62 | N48: 5968.08 | P48: 8362.68
B49: November | D49: ='16. RTSR - Historical Wholesale'!D48 -> 3909.4 | E49: 3.23 | F49: 12627.362 | H49: ='16. RTSR - Historical Wholesale'!H48 -> 4138.05 | I49: 0.65 | J49: 2689.7325 | L49: ='16. RTSR - Historical Wholesale'!L48 -> 4138.05 | M49: 1.62 | N49: 6703.641 | P49: 9393.3735
B50: December | D50: ='16. RTSR - Historical Wholesale'!D49 -> 3059.69 | E50: 3.23 | F50: 9882.7987 | H50: ='16. RTSR - Historical Wholesale'!H49 -> 3075.77 | I50: 0.65 | J50: 1999.2505 | L50: ='16. RTSR - Historical Wholesale'!L49 -> 3075.77 | M50: 1.62 | N50: 4982.7474 | P50: 6981.9979
B52: Total | D52: =SUM(D39:D50) -> 45866.09 | E52: =IF(D52<>0,F52/D52,0) -> 3.23 | F52: =SUM(F39:F50) -> 148147.4707 | H52: =SUM(H39:H50) -> 47115.82 | I52: =IF(H52<>0,J52/H52,0) -> 0.65 | J52: =SUM(J39:J50) -> 30625.283 | L52: =SUM(L39:L50) -> 47115.82 | M52: =IF(L52<>0,N52/L52,0) -> 1.62 | N52: =SUM(N39:N50) -> 76327.6284 | P52: =SUM(P39:P50) -> 106952.9114
B54: ='16. RTSR - Historical Wholesale'!B53 -> Add Extra Host Here (I) | D54: Network | H54: Line Connection | L54: Transformation Connection | P54: Total Line
B56: Month | D56: Units Billed | E56: Rate | F56: Amount | H56: Units Billed | I56: Rate | J56: Amount | L56: Units Billed | M56: Rate | N56: Amount | P56: Amount
B58: January | D58: ='16. RTSR - Historical Wholesale'!D57 -> 0 | E58: ='15. RTSR - UTRs & Sub-Tx'!I50 -> 0 | F58: =D58*E58 -> 0 | H58: ='16. RTSR - Historical Wholesale'!H57 -> 0 | I58: ='15. RTSR - UTRs & Sub-Tx'!I52 -> 0 | J58: =H58*I58 -> 0 | L58: ='16. RTSR - Historical Wholesale'!L57 -> 0 | M58: ='15. RTSR - UTRs & Sub-Tx'!I54 -> 0 | N58: =L58*M58 -> 0 | P58: =J58+N58 -> 0
B59: February | D59: ='16. RTSR - Historical Wholesale'!D58 -> 0 | E59: =E58 -> 0 | F59: 0 | H59: ='16. RTSR - Historical Wholesale'!H58 -> 0 | I59: =I58 -> 0 | J59: 0 | L59: ='16. RTSR - Historical Wholesale'!L58 -> 0 | M59: =M58 -> 0 | N59: 0 | P59: 0
B60: March | D60: ='16. RTSR - Historical Wholesale'!D59 -> 0 | E60: 0 | F60: 0 | H60: ='16. RTSR - Historical Wholesale'!H59 -> 0 | I60: 0 | J60: 0 | L60: ='16. RTSR - Historical Wholesale'!L59 -> 0 | M60: 0 | N60: 0 | P60: 0
B61: April | D61: ='16. RTSR - Historical Wholesale'!D60 -> 0 | E61: 0 | F61: 0 | H61: ='16. RTSR - Historical Wholesale'!H60 -> 0 | I61: 0 | J61: 0 | L61: ='16. RTSR - Historical Wholesale'!L60 -> 0 | M61: 0 | N61: 0 | P61: 0
B62: May | D62: ='16. RTSR - Historical Wholesale'!D61 -> 0 | E62: 0 | F62: 0 | H62: ='16. RTSR - Historical Wholesale'!H61 -> 0 | I62: 0 | J62: 0 | L62: ='16. RTSR - Historical Wholesale'!L61 -> 0 | M62: 0 | N62: 0 | P62: 0
B63: June | D63: ='16. RTSR - Historical Wholesale'!D62 -> 0 | E63: 0 | F63: 0 | H63: ='16. RTSR - Historical Wholesale'!H62 -> 0 | I63: 0 | J63: 0 | L63: ='16. RTSR - Historical Wholesale'!L62 -> 0 | M63: 0 | N63: 0 | P63: 0
B64: July | D64: ='16. RTSR - Historical Wholesale'!D63 -> 0 | E64: 0 | F64: 0 | H64: ='16. RTSR - Historical Wholesale'!H63 -> 0 | I64: 0 | J64: 0 | L64: ='16. RTSR - Historical Wholesale'!L63 -> 0 | M64: 0 | N64: 0 | P64: 0
B65: August | D65: ='16. RTSR - Historical Wholesale'!D64 -> 0 | E65: 0 | F65: 0 | H65: ='16. RTSR - Historical Wholesale'!H64 -> 0 | I65: 0 | J65: 0 | L65: ='16. RTSR - Historical Wholesale'!L64 -> 0 | M65: 0 | N65: 0 | P65: 0
B66: September | D66: ='16. RTSR - Historical Wholesale'!D65 -> 0 | E66: 0 | F66: 0 | H66: ='16. RTSR - Historical Wholesale'!H65 -> 0 | I66: 0 | J66: 0 | L66: ='16. RTSR - Historical Wholesale'!L65 -> 0 | M66: 0 | N66: 0 | P66: 0
B67: October | D67: ='16. RTSR - Historical Wholesale'!D66 -> 0 | E67: 0 | F67: 0 | H67: ='16. RTSR - Historical Wholesale'!H66 -> 0 | I67: 0 | J67: 0 | L67: ='16. RTSR - Historical Wholesale'!L66 -> 0 | M67: 0 | N67: 0 | P67: 0
B68: November | D68: ='16. RTSR - Historical Wholesale'!D67 -> 0 | E68: 0 | F68: 0 | H68: ='16. RTSR - Historical Wholesale'!H67 -> 0 | I68: 0 | J68: 0 | L68: ='16. RTSR - Historical Wholesale'!L67 -> 0 | M68: 0 | N68: 0 | P68: 0
B69: December | D69: ='16. RTSR - Historical Wholesale'!D68 -> 0 | E69: 0 | F69: 0 | H69: ='16. RTSR - Historical Wholesale'!H68 -> 0 | I69: 0 | J69: 0 | L69: ='16. RTSR - Historical Wholesale'!L68 -> 0 | M69: 0 | N69: 0 | P69: 0
B71: Total | D71: =SUM(D58:D69) -> 0 | E71: =IF(D71<>0,F71/D71,0) -> 0 | F71: =SUM(F58:F69) -> 0 | H71: =SUM(H58:H69) -> 0 | I71: =IF(H71<>0,J71/H71,0) -> 0 | J71: =SUM(J58:J69) -> 0 | L71: =SUM(L58:L69) -> 0 | M71: =IF(L71<>0,N71/L71,0) -> 0 | N71: =SUM(N58:N69) -> 0 | P71: =SUM(P58:P69) -> 0
B73: ='16. RTSR - Historical Wholesale'!B72 -> Add Extra Host Here (II) | D73: Network | H73: Line Connection | L73: Transformation Connection | P73: Total Line
B75: Month | D75: Units Billed | E75: Rate | F75: Amount | H75: Units Billed | I75: Rate | J75: Amount | L75: Units Billed | M75: Rate | N75: Amount | P75: Amount
B77: January | D77: ='16. RTSR - Historical Wholesale'!D76 -> 0 | E77: ='15. RTSR - UTRs & Sub-Tx'!I65 -> 0 | F77: =D77*E77 -> 0 | H77: ='16. RTSR - Historical Wholesale'!H76 -> 0 | I77: ='15. RTSR - UTRs & Sub-Tx'!I67 -> 0 | J77: =H77*I77 -> 0 | L77: ='16. RTSR - Historical Wholesale'!L76 -> 0 | M77: ='15. RTSR - UTRs & Sub-Tx'!I69 -> 0 | N77: =L77*M77 -> 0 | P77: =J77+N77 -> 0
B78: February | D78: ='16. RTSR - Historical Wholesale'!D77 -> 0 | E78: =E77 -> 0 | F78: 0 | H78: ='16. RTSR - Historical Wholesale'!H77 -> 0 | I78: =I77 -> 0 | J78: 0 | L78: ='16. RTSR - Historical Wholesale'!L77 -> 0 | M78: =M77 -> 0 | N78: 0 | P78: 0
B79: March | D79: ='16. RTSR - Historical Wholesale'!D78 -> 0 | E79: 0 | F79: 0 | H79: ='16. RTSR - Historical Wholesale'!H78 -> 0 | I79: 0 | J79: 0 | L79: ='16. RTSR - Historical Wholesale'!L78 -> 0 | M79: 0 | N79: 0 | P79: 0
B80: April | D80: ='16. RTSR - Historical Wholesale'!D79 -> 0 | E80: 0 | F80: 0 | H80: ='16. RTSR - Historical Wholesale'!H79 -> 0 | I80: 0 | J80: 0 | L80: ='16. RTSR - Historical Wholesale'!L79 -> 0 | M80: 0 | N80: 0 | P80: 0
B81: May | D81: ='16. RTSR - Historical Wholesale'!D80 -> 0 | E81: 0 | F81: 0 | H81: ='16. RTSR - Historical Wholesale'!H80 -> 0 | I81: 0 | J81: 0 | L81: ='16. RTSR - Historical Wholesale'!L80 -> 0 | M81: 0 | N81: 0 | P81: 0
B82: June | D82: ='16. RTSR - Historical Wholesale'!D81 -> 0 | E82: 0 | F82: 0 | H82: ='16. RTSR - Historical Wholesale'!H81 -> 0 | I82: 0 | J82: 0 | L82: ='16. RTSR - Historical Wholesale'!L81 -> 0 | M82: 0 | N82: 0 | P82: 0
B83: July | D83: ='16. RTSR - Historical Wholesale'!D82 -> 0 | E83: 0 | F83: 0 | H83: ='16. RTSR - Historical Wholesale'!H82 -> 0 | I83: 0 | J83: 0 | L83: ='16. RTSR - Historical Wholesale'!L82 -> 0 | M83: 0 | N83: 0 | P83: 0
B84: August | D84: ='16. RTSR - Historical Wholesale'!D83 -> 0 | E84: 0 | F84: 0 | H84: ='16. RTSR - Historical Wholesale'!H83 -> 0 | I84: 0 | J84: 0 | L84: ='16. RTSR - Historical Wholesale'!L83 -> 0 | M84: 0 | N84: 0 | P84: 0
B85: September | D85: ='16. RTSR - Historical Wholesale'!D84 -> 0 | E85: 0 | F85: 0 | H85: ='16. RTSR - Historical Wholesale'!H84 -> 0 | I85: 0 | J85: 0 | L85: ='16. RTSR - Historical Wholesale'!L84 -> 0 | M85: 0 | N85: 0 | P85: 0
B86: October | D86: ='16. RTSR - Historical Wholesale'!D85 -> 0 | E86: 0 | F86: 0 | H86: ='16. RTSR - Historical Wholesale'!H85 -> 0 | I86: 0 | J86: 0 | L86: ='16. RTSR - Historical Wholesale'!L85 -> 0 | M86: 0 | N86: 0 | P86: 0
B87: November | D87: ='16. RTSR - Historical Wholesale'!D86 -> 0 | E87: 0 | F87: 0 | H87: ='16. RTSR - Historical Wholesale'!H86 -> 0 | I87: 0 | J87: 0 | L87: ='16. RTSR - Historical Wholesale'!L86 -> 0 | M87: 0 | N87: 0 | P87: 0
B88: December | D88: ='16. RTSR - Historical Wholesale'!D87 -> 0 | E88: 0 | F88: 0 | H88: ='16. RTSR - Historical Wholesale'!H87 -> 0 | I88: 0 | J88: 0 | L88: ='16. RTSR - Historical Wholesale'!L87 -> 0 | M88: 0 | N88: 0 | P88: 0
B90: Total | D90: =SUM(D77:D88) -> 0 | E90: =IF(D90<>0,F90/D90,0) -> 0 | F90: =SUM(F77:F88) -> 0 | H90: =SUM(H77:H88) -> 0 | I90: =IF(H90<>0,J90/H90,0) -> 0 | J90: =SUM(J77:J88) -> 0 | L90: =SUM(L77:L88) -> 0 | M90: =IF(L90<>0,N90/L90,0) -> 0 | N90: =SUM(N77:N88) -> 0 | P90: =SUM(P77:P88) -> 0
B92: Total | D92: Network | H92: Line Connection | L92: Transformation Connection | P92: Total Line
B94: Month | D94: Units Billed | E94: Rate | F94: Amount | H94: Units Billed | I94: Rate | J94: Amount | L94: Units Billed | M94: Rate | N94: Amount | P94: Amount
B96: January | D96: =D20+D39 -> 260402 | E96: =IF(D96<>0,F96/D96,0) -> 3.81104811 | F96: =F20+F39 -> 992404.55 | H96: =H20+H39 -> 266095 | I96: =IF(H96<>0,J96/H96,0) -> 0.8174298277 | J96: =J20+J39 -> 217513.99 | L96: =L20+L39 -> 251987 | M96: =IF(L96<>0,N96/L96,0) -> 1.974252561 | N96: =N20+N39 -> 497485.98 | P96: =J96+N96 -> 714999.97
B97: February | D97: 253849 | E97: 3.811353915 | F97: 967508.38 | H97: 257917 | I97: 0.8174966365 | J97: 210846.28 | L97: 245791 | M97: 1.974437225 | N97: 485298.9 | P97: 696145.18
B98: March | D98: 248056 | E98: 3.812229456 | F98: 945646.39 | H98: 250577 | I98: 0.8176519393 | J98: 204884.77 | L98: 238473 | M98: 1.974775258 | N98: 470930.58 | P98: 675815.35
B99: April | D99: 235040 | E99: 3.811839304 | F99: 895934.71 | H99: 248443 | I99: 0.8177754656 | J99: 203170.59 | L99: 235321 | M99: 1.975026538 | N99: 464765.22 | P99: 667935.81
B100: May | D100: 254833 | E100: 3.811651238 | F100: 971334.52 | H100: 257659 | I100: 0.8176208089 | J100: 210667.36 | L100: 246939 | M100: 1.974742993 | N100: 487641.06 | P100: 698308.42
B101: June | D101: 289275 | E101: 3.810301789 | F101: 1102225.05 | H101: 293553 | I101: 0.8172347413 | J101: 239901.71 | L101: 280427 | M101: 1.973870062 | N101: 553526.46 | P101: 793428.17
B102: July | D102: 308195 | E102: 3.810123753 | F102: 1174261.09 | H102: 314192 | I102: 0.8172086177 | J102: 256760.41 | L102: 301258 | M102: 1.973835052 | N102: 594633.6 | P102: 851394.01
B103: August | D103: 277990 | E103: 3.810043922 | F103: 1059154.11 | H103: 281508 | I103: 0.8170373133 | J103: 230002.54 | L103: 269798 | M103: 1.973453769 | N103: 532433.88 | P103: 762436.42
B104: September | D104: 291921 | E104: 3.813956927 | F104: 1113374.12 | H104: 295426 | I104: 0.8181361492 | J104: 241698.69 | L104: 283871 | M104: 1.97589236 | N104: 560898.54 | P104: 802597.23
B105: October | D105: 234597 | E105: 3.811180066 | F105: 894091.41 | H105: 247275 | I105: 0.8174672733 | J105: 202139.22 | L105: 236087 | M105: 1.97438241 | N105: 466126.02 | P105: 668265.24
B106: November | D106: 255597.4 | E106: 3.810975863 | F106: 974075.522 | H106: 260831.05 | I106: 0.8173029726 | J106: 213177.9925 | L106: 250121.05 | M106: 1.974044092 | N106: 493749.981 | P106: 706927.9735
B107: December | D107: 257193.69 | E107: 3.812981099 | F107: 980674.6787 | H107: 275827.77 | I107: 0.818104321 | J107: 225655.8905 | L107: 264642.77 | M107: 1.975815955 | N107: 522885.4074 | P107: 748541.2979
B109: Total | D109: =SUM(D96:D107) -> 3166949.09 | E109: =IF(D109<>0,F109/D109,0) -> 3.811455185 | F109: =SUM(F96:F107) -> 12070684.53 | H109: =SUM(H96:H107) -> 3249303.82 | I109: =IF(H109<>0,J109/H109,0) -> 0.8175349521 | J109: =SUM(J96:J107) -> 2656419.443 | L109: =SUM(L96:L107) -> 3104715.82 | M109: =IF(L109<>0,N109/L109,0) -> 1.974536796 | N109: =SUM(N96:N107) -> 6130375.628 | P109: =SUM(P96:P107) -> 8786795.071
N111: Transformer Allowance Credit (if applicable) | P111: ='15. RTSR - UTRs & Sub-Tx'!I95 -> 0
N113: Total including deduction for Transformer Allowance Credit | P113: =P109+P111 -> 8786795.071

Sheet 19. RTSR Ntwrk to Curren WS
A13: The purpose of this sheet is to re-align the current RTS Network Rates to recover current wholesale network costs.
A16: Rate Class | B16: Rate Description | C16: Unit | E16: Current RTSR-Network | G16: Loss Adjusted Billed kWh | I16: Loss Adjusted Billed kW | K16: Billed Amount | M16: Billed Amount % | O16: Current Wholesale Billing | Q16: Proposed RTSR Network
A19: RESIDENTIAL | B19: Retail Transmission Rate - Network Service Rate | C19: $/kWh | E19: 0.0072 | G19: 378406937.2 | I19: 0 | K19: =IF(E19="", "", IF(C19="$/kWh", E19*G19, E19*I19)) -> 2724529.948 | M19: =IF(ISERROR(K19/SUM(K19:K100)),"",K19/SUM(K19:K100)) -> 0.2439734718 | O19: =IF(ISERROR('17. RTSR - Current Wholesale'!$F$109*M19), "", '17. RTSR - Current Wholesale'!$F$109*M19) -> 2946566.163 | Q19: =IF(C19="","",IF(C19="$/kWh",IF(G19<>0,O19/G19,),IF(I19<>0,O19/I19,0))) -> 0.007786765711
A20: GENERAL SERVICE LESS THAN 50 KW | B20: Retail Transmission Rate - Network Service Rate | C20: $/kWh | E20: 0.0066 | G20: 145636031.6 | I20: 0 | K20: 961197.8085 | M20: =IF(ISERROR(K20/SUM(K19:K100)),"",K20/SUM(K19:K100)) -> 0.08607237614 | O20: =IF(ISERROR('17. RTSR - Current Wholesale'!$F$109*M20), "", '17. RTSR - Current Wholesale'!$F$109*M20) -> 1039530.852 | Q20: 0.007137868569
A21: GENERAL SERVICE 50 TO 999 KW | B21: Retail Transmission Rate - Network Service Rate | C21: $/kW | E21: 2.7544 | G21: 0 | I21: 624151.9987 | K21: 1719164.265 | M21: =IF(ISERROR(K21/SUM(K19:K100)),"",K21/SUM(K19:K100)) -> 0.1539459953 | O21: =IF(ISERROR('17. RTSR - Current Wholesale'!$F$109*M21), "", '17. RTSR - Current Wholesale'!$F$109*M21) -> 1859267.966 | Q21: 2.978870483
A22: GENERAL SERVICE 50 TO 999 KW | B22: Retail Transmission Rate - Network Service Rate - Interval Metered | C22: $/kW | E22: 2.8571 | G22: 0 | I22: 407055.6513 | K22: 1162998.701 | M22: =IF(ISERROR(K22/SUM(K19:K100)),"",K22/SUM(K19:K100)) -> 0.1041430398 | O22: =IF(ISERROR('17. RTSR - Current Wholesale'!$F$109*M22), "", '17. RTSR - Current Wholesale'!$F$109*M22) -> 1257777.557 | Q22: 3.089940044
A23: GENERAL SERVICE 1,000 TO 4,999 KW | B23: Retail Transmission Rate - Network Service Rate - Interval Metered | C23: $/kW | E23: 2.8571 | G23: 0 | I23: 944735.43 | K23: 2699203.597 | M23: =IF(ISERROR(K23/SUM(K19:K100)),"",K23/SUM(K19:K100)) -> 0.2417055732 | O23: =IF(ISERROR('17. RTSR - Current Wholesale'!$F$109*M23), "", '17. RTSR - Current Wholesale'!$F$109*M23) -> 2919175.836 | Q23: 3.089940044
A24: LARGE USE | B24: Retail Transmission Rate - Network Service Rate - Interval Metered | C24: $/kW | E24: 3.4502 | G24: 0 | I24: 526805.69 | K24: 1817584.992 | M24: =IF(ISERROR(K24/SUM(K19:K100)),"",K24/SUM(K19:K100)) -> 0.1627592756 | O24: =IF(ISERROR('17. RTSR - Current Wholesale'!$F$109*M24), "", '17. RTSR - Current Wholesale'!$F$109*M24) -> 1965709.513 | Q24: 3.731374869
A25: UNMETERED SCATTERED LOAD | B25: Retail Transmission Rate - Network Service Rate | C25: $/kWh | E25: 0.0066 | G25: 1954010.767 | I25: 0 | K25: 12896.47106 | M25: =IF(ISERROR(K25/SUM(K19:K100)),"",K25/SUM(K19:K100)) -> 0.00115484024 | O25: =IF(ISERROR('17. RTSR - Current Wholesale'!$F$109*M25), "", '17. RTSR - Current Wholesale'!$F$109*M25) -> 13947.47204 | Q25: 0.007137868569
A26: SENTINEL LIGHTING | B26: Retail Transmission Rate - Network Service Rate | C26: $/kW | E26: 2.1089 | G26: 0 | I26: 147.17 | K26: 310.366813 | M26: =IF(ISERROR(K26/SUM(K19:K100)),"",K26/SUM(K19:K100)) -> 2.779241571e-05 | O26: =IF(ISERROR('17. RTSR - Current Wholesale'!$F$109*M26), "", '17. RTSR - Current Wholesale'!$F$109*M26) -> 335.6602302 | Q26: 2.280765307
A27: STREET LIGHTING | B27: Retail Transmission Rate - Network Service Rate | C27: $/kW | E27: 2.5374 | G27: 0 | I27: 27364.36 | K27: 69434.32706 | M27: =IF(ISERROR(K27/SUM(K19:K100)),"",K27/SUM(K19:K100)) -> 0.006217635395 | O27: =IF(ISERROR('17. RTSR - Current Wholesale'!$F$109*M27), "", '17. RTSR - Current Wholesale'!$F$109*M27) -> 75092.89405 | Q27: 2.744186016

Sheet 20. RTSR Adj Conn to Current WS
A13: The purpose of this sheet is to re-align the current RTS Connection Rates to recover current wholesale connection costs.
A16: Rate Class | B16: Rate Description | C16: Unit | E16: Current RTSR-Connection | G16: Loss Adjusted Billed kWh | I16: Loss Adjusted Billed kW | K16: Billed Amount | M16: Billed Amount % | O16: Current Wholesale Billing | Q16: Proposed RTSR Connection
A19: RESIDENTIAL | B19: Retail Transmission Rate - Line and Transformation Connection Service Rate | C19: $/kWh | E19: 0.0053 | G19: 378406937.2 | I19: 0 | K19: =IF(E19="", "", IF(C19="$/kWh", E19*G19, E19*I19)) -> 2005556.767 | M19: =IF(ISERROR(K19/SUM(K19:K100)),"",K19/SUM(K19:K100)) -> 0.2497152938 | O19: =IF(ISERROR('17. RTSR - Current Wholesale'!$P$113*M19), "", '17. RTSR - Current Wholesale'!$P$113*M19) -> 2194981.875 | Q19: =IF(C19="","",IF(C19="$/kWh",IF(G19<>0,O19/G19,),IF(I19<>0,O19/I19,0))) -> 0.005800585716
A20: GENERAL SERVICE LESS THAN 50 KW | B20: Retail Transmission Rate - Line and Transformation Connection Service Rate | C20: $/kWh | E20: 0.0047 | G20: 145636031.6 | I20: 0 | K20: 684489.3485 | M20: =IF(ISERROR(K20/SUM(K19:K100)),"",K20/SUM(K19:K100)) -> 0.08522693628 | O20: =IF(ISERROR('17. RTSR - Current Wholesale'!$P$113*M20), "", '17. RTSR - Current Wholesale'!$P$113*M20) -> 749139.4599 | Q20: 0.005143915635
A21: GENERAL SERVICE 50 TO 999 KW | B21: Retail Transmission Rate - Line and Transformation Connection Service Rate | C21: $/kW | E21: 1.9662 | G21: 0 | I21: 624151.9987 | K21: 1227207.66 | M21: =IF(ISERROR(K21/SUM(K19:K100)),"",K21/SUM(K19:K100)) -> 0.1528017189 | O21: =IF(ISERROR('17. RTSR - Current Wholesale'!$P$113*M21), "", '17. RTSR - Current Wholesale'!$P$113*M21) -> 1343117.589 | Q21: 2.151907856
A22: GENERAL SERVICE 50 TO 999 KW | B22: Retail Transmission Rate - Line and Transformation Connection Service Rate - Interval Metered | C22: $/kW | E22: 2.0399 | G22: 0 | I22: 407055.6513 | K22: 830352.8231 | M22: =IF(ISERROR(K22/SUM(K19:K100)),"",K22/SUM(K19:K100)) -> 0.1033886463 | O22: =IF(ISERROR('17. RTSR - Current Wholesale'!$P$113*M22), "", '17. RTSR - Current Wholesale'!$P$113*M22) -> 908779.7594 | Q22: 2.232568831
A23: GENERAL SERVICE 1,000 TO 4,999 KW | B23: Retail Transmission Rate - Line and Transformation Connection Service Rate - Interval Metered | C23: $/kW | E23: 2.0399 | G23: 0 | I23: 944735.43 | K23: 1927165.804 | M23: =IF(ISERROR(K23/SUM(K19:K100)),"",K23/SUM(K19:K100)) -> 0.2399547013 | O23: =IF(ISERROR('17. RTSR - Current Wholesale'!$P$113*M23), "", '17. RTSR - Current Wholesale'!$P$113*M23) -> 2109186.874 | Q23: 2.232568831
A24: LARGE USE | B24: Retail Transmission Rate - Line and Transformation Connection Service Rate - Interval Metered | C24: $/kW | E24: 2.4632 | G24: 0 | I24: 526805.69 | K24: 1297627.776 | M24: =IF(ISERROR(K24/SUM(K19:K100)),"",K24/SUM(K19:K100)) -> 0.1615698476 | O24: =IF(ISERROR('17. RTSR - Current Wholesale'!$P$113*M24), "", '17. RTSR - Current Wholesale'!$P$113*M24) -> 1420188.894 | Q24: 2.695849573
A25: UNMETERED SCATTERED LOAD | B25: Retail Transmission Rate - Line and Transformation Connection Service Rate | C25: $/kWh | E25: 0.0047 | G25: 1954010.767 | I25: 0 | K25: 9183.850606 | M25: =IF(ISERROR(K25/SUM(K19:K100)),"",K25/SUM(K19:K100)) -> 0.001143496903 | O25: =IF(ISERROR('17. RTSR - Current Wholesale'!$P$113*M25), "", '17. RTSR - Current Wholesale'!$P$113*M25) -> 10051.26654 | Q25: 0.005143915635
A26: SENTINEL LIGHTING | B26: Retail Transmission Rate - Line and Transformation Connection Service Rate | C26: $/kW | E26: 1.5055 | G26: 0 | I26: 147.17 | K26: 221.564435 | M26: =IF(ISERROR(K26/SUM(K19:K100)),"",K26/SUM(K19:K100)) -> 2.758736571e-05 | O26: =IF(ISERROR('17. RTSR - Current Wholesale'!$P$113*M26), "", '17. RTSR - Current Wholesale'!$P$113*M26) -> 242.4912258 | Q26: 1.647694678
A27: STREET LIGHTING | B27: Retail Transmission Rate - Line and Transformation Connection Service Rate | C27: $/kW | E27: 1.8114 | G27: 0 | I27: 27364.36 | K27: 49567.8017 | M27: =IF(ISERROR(K27/SUM(K19:K100)),"",K27/SUM(K19:K100)) -> 0.006171771535 | O27: =IF(ISERROR('17. RTSR - Current Wholesale'!$P$113*M27), "", '17. RTSR - Current Wholesale'!$P$113*M27) -> 54249.48727 | Q27: 1.982486975

Sheet 21. RTSR Adj Ntwk to Forcast WS
A13: The purpose of this sheet is to update the re-align RTS Network Rates to recover forecast wholesale network costs.
A16: Rate Class | B16: Rate Description | C16: Unit | E16: Adjusted RTSR-Network | G16: Loss Adjusted Billed kWh | I16: Loss Adjusted Billed kW | K16: Billed Amount | M16: Billed Amount % | O16: Forecast Wholesale Billing | Q16: Proposed RTSR Network
A19: RESIDENTIAL | B19: Retail Transmission Rate - Network Service Rate | C19: $/kWh | E19: 0.007786765711 | G19: 378406937.2 | I19: 0 | K19: =IF(E19="", "", IF(C19="$/kWh", E19*G19, E19*I19)) -> 2946566.163 | M19: =IF(ISERROR(K19/SUM(K19:K100)),"",K19/SUM(K19:K100)) -> 0.2439734718 | O19: =IF(ISERROR('18. RTSR - Forecast Wholesale'!$F$109*M19), "", '18. RTSR - Forecast Wholesale'!$F$109*M19) -> 2944926.812 | Q19: =IF(C19="","",IF(C19="$/kWh",IF(G19<>0,O19/G19,),IF(I19<>0,O19/I19,0))) -> 0.007782433468
A20: GENERAL SERVICE LESS THAN 50 KW | B20: Retail Transmission Rate - Network Service Rate | C20: $/kWh | E20: 0.007137868569 | G20: 145636031.6 | I20: 0 | K20: 1039530.852 | M20: =IF(ISERROR(K20/SUM(K19:K100)),"",K20/SUM(K19:K100)) -> 0.08607237614 | O20: =IF(ISERROR('18. RTSR - Forecast Wholesale'!$F$109*M20), "", '18. RTSR - Forecast Wholesale'!$F$109*M20) -> 1038952.499 | Q20: 0.007133897345
A21: GENERAL SERVICE 50 TO 999 KW | B21: Retail Transmission Rate - Network Service Rate | C21: $/kW | E21: 2.978870483 | G21: 0 | I21: 624151.9987 | K21: 1859267.966 | M21: =IF(ISERROR(K21/SUM(K19:K100)),"",K21/SUM(K19:K100)) -> 0.1539459953 | O21: =IF(ISERROR('18. RTSR - Forecast Wholesale'!$F$109*M21), "", '18. RTSR - Forecast Wholesale'!$F$109*M21) -> 1858233.544 | Q21: 2.977213159
A22: GENERAL SERVICE 50 TO 999 KW | B22: Retail Transmission Rate - Network Service Rate - Interval Metered | C22: $/kW | E22: 3.089940044 | G22: 0 | I22: 407055.6513 | K22: 1257777.557 | M22: =IF(ISERROR(K22/SUM(K19:K100)),"",K22/SUM(K19:K100)) -> 0.1041430398 | O22: =IF(ISERROR('18. RTSR - Forecast Wholesale'!$F$109*M22), "", '18. RTSR - Forecast Wholesale'!$F$109*M22) -> 1257077.78 | Q22: 3.088220925
A23: GENERAL SERVICE 1,000 TO 4,999 KW | B23: Retail Transmission Rate - Network Service Rate - Interval Metered | C23: $/kW | E23: 3.089940044 | G23: 0 | I23: 944735.43 | K23: 2919175.836 | M23: =IF(ISERROR(K23/SUM(K19:K100)),"",K23/SUM(K19:K100)) -> 0.2417055732 | O23: =IF(ISERROR('18. RTSR - Forecast Wholesale'!$F$109*M23), "", '18. RTSR - Forecast Wholesale'!$F$109*M23) -> 2917551.724 | Q23: 3.088220925
A24: LARGE USE | B24: Retail Transmission Rate - Network Service Rate - Interval Metered | C24: $/kW | E24: 3.731374869 | G24: 0 | I24: 526805.69 | K24: 1965709.513 | M24: =IF(ISERROR(K24/SUM(K19:K100)),"",K24/SUM(K19:K100)) -> 0.1627592756 | O24: =IF(ISERROR('18. RTSR - Forecast Wholesale'!$F$109*M24), "", '18. RTSR - Forecast Wholesale'!$F$109*M24) -> 1964615.871 | Q24: 3.729298882
A25: UNMETERED SCATTERED LOAD | B25: Retail Transmission Rate - Network Service Rate | C25: $/kWh | E25: 0.007137868569 | G25: 1954010.767 | I25: 0 | K25: 13947.47204 | M25: =IF(ISERROR(K25/SUM(K19:K100)),"",K25/SUM(K19:K100)) -> 0.00115484024 | O25: =IF(ISERROR('18. RTSR - Forecast Wholesale'!$F$109*M25), "", '18. RTSR - Forecast Wholesale'!$F$109*M25) -> 13939.71223 | Q25: 0.007133897345
A26: SENTINEL LIGHTING | B26: Retail Transmission Rate - Network Service Rate | C26: $/kW | E26: 2.280765307 | G26: 0 | I26: 147.17 | K26: 335.6602302 | M26: =IF(ISERROR(K26/SUM(K19:K100)),"",K26/SUM(K19:K100)) -> 2.779241571e-05 | O26: =IF(ISERROR('18. RTSR - Forecast Wholesale'!$F$109*M26), "", '18. RTSR - Forecast Wholesale'!$F$109*M26) -> 335.4734823 | Q26: 2.279496381
A27: STREET LIGHTING | B27: Retail Transmission Rate - Network Service Rate | C27: $/kW | E27: 2.744186016 | G27: 0 | I27: 27364.36 | K27: 75092.89405 | M27: =IF(ISERROR(K27/SUM(K19:K100)),"",K27/SUM(K19:K100)) -> 0.006217635395 | O27: =IF(ISERROR('18. RTSR - Forecast Wholesale'!$F$109*M27), "", '18. RTSR - Forecast Wholesale'!$F$109*M27) -> 75051.11538 | Q27: 2.742659261

Sheet 22. RTSR Adj Conn. to Forcst WS
A13: The purpose of this sheet is to update the re-aligned RTS Connection Rates to recover forecast wholesale connection costs.
A16: Rate Class | B16: Rate Description | C16: Unit | E16: Adjusted RTSR-Connection | G16: Loss Adjusted Billed kWh | I16: Loss Adjusted Billed kW | K16: Billed Amount | M16: Billed Amount % | O16: Forecast Wholesale Billing | Q16: Proposed RTSR Connection
A19: RESIDENTIAL | B19: Retail Transmission Rate - Line and Transformation Connection Service Rate | C19: $/kWh | E19: 0.005800585716 | G19: 378406937.2 | I19: 0 | K19: =IF(E19="", "", IF(C19="$/kWh", E19*G19, E19*I19)) -> 2194981.875 | M19: =IF(ISERROR(K19/SUM(K19:K100)),"",K19/SUM(K19:K100)) -> 0.2497152938 | O19: =IF(ISERROR('18. RTSR - Forecast Wholesale'!$P$113*M19), "", '18. RTSR - Forecast Wholesale'!$P$113*M19) -> 2194197.113 | Q19: =IF(C19="","",IF(C19="$/kWh",IF(G19<>0,O19/G19,),IF(I19<>0,O19/I19,0))) -> 0.00579851186
A20: GENERAL SERVICE LESS THAN 50 KW | B20: Retail Transmission Rate - Line and Transformation Connection Service Rate | C20: $/kWh | E20: 0.005143915635 | G20: 145636031.6 | I20: 0 | K20: 749139.4599 | M20: =IF(ISERROR(K20/SUM(K19:K100)),"",K20/SUM(K19:K100)) -> 0.08522693628 | O20: =IF(ISERROR('18. RTSR - Forecast Wholesale'!$P$113*M20), "", '18. RTSR - Forecast Wholesale'!$P$113*M20) -> 748871.6236 | Q20: 0.005142076555
A21: GENERAL SERVICE 50 TO 999 KW | B21: Retail Transmission Rate - Line and Transformation Connection Service Rate | C21: $/kW | E21: 2.151907856 | G21: 0 | I21: 624151.9987 | K21: 1343117.589 | M21: =IF(ISERROR(K21/SUM(K19:K100)),"",K21/SUM(K19:K100)) -> 0.1528017189 | O21: =IF(ISERROR('18. RTSR - Forecast Wholesale'!$P$113*M21), "", '18. RTSR - Forecast Wholesale'!$P$113*M21) -> 1342637.391 | Q21: 2.151138494
A22: GENERAL SERVICE 50 TO 999 KW | B22: Retail Transmission Rate - Line and Transformation Connection Service Rate - Interval Metered | C22: $/kW | E22: 2.232568831 | G22: 0 | I22: 407055.6513 | K22: 908779.7594 | M22: =IF(ISERROR(K22/SUM(K19:K100)),"",K22/SUM(K19:K100)) -> 0.1033886463 | O22: =IF(ISERROR('18. RTSR - Forecast Wholesale'!$P$113*M22), "", '18. RTSR - Forecast Wholesale'!$P$113*M22) -> 908454.8477 | Q22: 2.231770631
A23: GENERAL SERVICE 1,000 TO 4,999 KW | B23: Retail Transmission Rate - Line and Transformation Connection Service Rate - Interval Metered | C23: $/kW | E23: 2.232568831 | G23: 0 | I23: 944735.43 | K23: 2109186.874 | M23: =IF(ISERROR(K23/SUM(K19:K100)),"",K23/SUM(K19:K100)) -> 0.2399547013 | O23: =IF(ISERROR('18. RTSR - Forecast Wholesale'!$P$113*M23), "", '18. RTSR - Forecast Wholesale'!$P$113*M23) -> 2108432.786 | Q23: 2.231770631
A24: LARGE USE | B24: Retail Transmission Rate - Line and Transformation Connection Service Rate - Interval Metered | C24: $/kW | E24: 2.695849573 | G24: 0 | I24: 526805.69 | K24: 1420188.894 | M24: =IF(ISERROR(K24/SUM(K19:K100)),"",K24/SUM(K19:K100)) -> 0.1615698476 | O24: =IF(ISERROR('18. RTSR - Forecast Wholesale'!$P$113*M24), "", '18. RTSR - Forecast Wholesale'!$P$113*M24) -> 1419681.141 | Q24: 2.694885738
A25: UNMETERED SCATTERED LOAD | B25: Retail Transmission Rate - Line and Transformation Connection Service Rate | C25: $/kWh | E25: 0.005143915635 | G25: 1954010.767 | I25: 0 | K25: 10051.26654 | M25: =IF(ISERROR(K25/SUM(K19:K100)),"",K25/SUM(K19:K100)) -> 0.001143496903 | O25: =IF(ISERROR('18. RTSR - Forecast Wholesale'!$P$113*M25), "", '18. RTSR - Forecast Wholesale'!$P$113*M25) -> 10047.67295 | Q25: 0.005142076555
A26: SENTINEL LIGHTING | B26: Retail Transmission Rate - Line and Transformation Connection Service Rate | C26: $/kW | E26: 1.647694678 | G26: 0 | I26: 147.17 | K26: 242.4912258 | M26: =IF(ISERROR(K26/SUM(K19:K100)),"",K26/SUM(K19:K100)) -> 2.758736571e-05 | O26: =IF(ISERROR('18. RTSR - Forecast Wholesale'!$P$113*M26), "", '18. RTSR - Forecast Wholesale'!$P$113*M26) -> 242.4045291 | Q26: 1.647105586
A27: STREET LIGHTING | B27: Retail Transmission Rate - Line and Transformation Connection Service Rate | C27: $/kW | E27: 1.982486975 | G27: 0 | I27: 27364.36 | K27: 54249.48727 | M27: =IF(ISERROR(K27/SUM(K19:K100)),"",K27/SUM(K19:K100)) -> 0.006171771535 | O27: =IF(ISERROR('18. RTSR - Forecast Wholesale'!$P$113*M27), "", '18. RTSR - Forecast Wholesale'!$P$113*M27) -> 54230.09171 | Q27: 1.981778185

Sheet 23. RTSR Final 2015 RTS Rates
A13: This sheet lists proposed RTSRs for all classes. No input required.
A16: Rate Class | B16: Rate Description | C16: Unit | E16: Proposed Retail Transmission Rate
A19: RESIDENTIAL | B19: Retail Transmission Rate - Network Service Rate | C19: $/kWh | E19: 0.007782433468
A20: RESIDENTIAL | B20: Retail Transmission Rate - Line and Transformation Connection Service Rate | C20: $/kWh | E20: 0.00579851186
A21: GENERAL SERVICE LESS THAN 50 KW | B21: Retail Transmission Rate - Network Service Rate | C21: $/kWh | E21: 0.007133897345
A22: GENERAL SERVICE LESS THAN 50 KW | B22: Retail Transmission Rate - Line and Transformation Connection Service Rate | C22: $/kWh | E22: 0.005142076555
A23: GENERAL SERVICE 50 TO 999 KW | B23: Retail Transmission Rate - Network Service Rate | C23: $/kW | E23: 2.977213159
A24: GENERAL SERVICE 50 TO 999 KW | B24: Retail Transmission Rate - Network Service Rate - Interval Metered | C24: $/kW | E24: 3.088220925
A25: GENERAL SERVICE 50 TO 999 KW | B25: Retail Transmission Rate - Line and Transformation Connection Service Rate | C25: $/kW | E25: 2.151138494
A26: GENERAL SERVICE 50 TO 999 KW | B26: Retail Transmission Rate - Line and Transformation Connection Service Rate - Interval Metered | C26: $/kW | E26: 2.231770631
A27: GENERAL SERVICE 1,000 TO 4,999 KW | B27: Retail Transmission Rate - Network Service Rate - Interval Metered | C27: $/kW | E27: 3.088220925
A28: GENERAL SERVICE 1,000 TO 4,999 KW | B28: Retail Transmission Rate - Line and Transformation Connection Service Rate - Interval Metered | C28: $/kW | E28: 2.231770631
A29: LARGE USE | B29: Retail Transmission Rate - Network Service Rate - Interval Metered | C29: $/kW | E29: 3.729298882
A30: LARGE USE | B30: Retail Transmission Rate - Line and Transformation Connection Service Rate - Interval Metered | C30: $/kW | E30: 2.694885738
A31: UNMETERED SCATTERED LOAD | B31: Retail Transmission Rate - Network Service Rate | C31: $/kWh | E31: 0.007133897345
A32: UNMETERED SCATTERED LOAD | B32: Retail Transmission Rate - Line and Transformation Connection Service Rate | C32: $/kWh | E32: 0.005142076555
A33: SENTINEL LIGHTING | B33: Retail Transmission Rate - Network Service Rate | C33: $/kW | E33: 2.279496381
A34: SENTINEL LIGHTING | B34: Retail Transmission Rate - Line and Transformation Connection Service Rate | C34: $/kW | E34: 1.647105586
A35: STREET LIGHTING | B35: Retail Transmission Rate - Network Service Rate | C35: $/kW | E35: 2.742659261
A36: STREET LIGHTING | B36: Retail Transmission Rate - Line and Transformation Connection Service Rate | C36: $/kW | E36: 1.981778185

Sheet 24. Rev2Cost_GDPIPI
Y1: FALSE | Z1: 0 | AC1: NO
Y2: TRUE
A12: If applicable, please enter any adjustments related to the revenue to cost ratio model into columns C and E. The Price Escalator and Stretch Factor have been set at the 2014 values and will be updated by Board staff at a later date.
A15: Price Escalator | B15: 0.016 | C15: Choose Stretch Factor Group | E15: III
A16: Productivity Factor | B16: 0 | C16: Associated Stretch Factor Value | E16: =IF(E15="I", 0%, IF(E15="II", 0.15%, IF(E15="III", 0.3%, IF(E15="IV", 0.45%, 0.6%)))) -> 0.003
A17: Price Cap Index | B17: =B15-B16-E16 -> 0.013
B19: Current MFC | C19: MFC Adjustment from R/C Model | D19: Current Volumetric Charge | E19: DVR Adjustment from R/C Model | F19: Price Cap Index to be Applied to MFC and DVR | G19: Proposed MFC | H19: Proposed Volumetric Charge
A20: Rate Class
A22: RESIDENTIAL | B22: 14.3 | D22: 0.0174 | F22: =$B$17 -> 0.013 | G22: =ROUND(SUM(B22,C22)*(1+F22),2) -> 14.49 | H22: =ROUND(SUM(D22,E22)*(1+F22),4) -> 0.0176
A23: GENERAL SERVICE LESS THAN 50 KW | B23: 15.37 | D23: 0.0129 | F23: 0.013 | G23: 15.57 | H23: 0.0131
A24: GENERAL SERVICE 50 TO 999 KW | B24: 166.66 | D24: 2.542 | F24: 0.013 | G24: 168.83 | H24: 2.575
A25: GENERAL SERVICE 1,000 TO 4,999 KW | B25: 635.54 | D25: 3.398 | F25: 0.013 | G25: 643.8 | H25: 3.4422
A26: LARGE USE | B26: 930.26 | D26: 2.3246 | F26: 0.013 | G26: 942.35 | H26: 2.3548
A27: UNMETERED SCATTERED LOAD | B27: 5.84 | D27: 0.0267 | F27: 0.013 | G27: 5.92 | H27: 0.027
A28: SENTINEL LIGHTING | B28: 6.96 | D28: 7.7038 | F28: 0.013 | G28: 7.05 | H28: 7.8039
A29: STREET LIGHTING | B29: 0.39 | D29: 9.445 | F29: 0.013 | G29: 0.4 | H29: 9.5678
A30: microFIT | B30: 5.4 | G30: 5.4

Sheet 24. hidden (hidden)
A1: Rate Class | B1: MFC Adjustment from R/C Model | C1: DVR Adjustment from R/C Model
A2: RESIDENTIAL | B2: 14.3 | D2: 0.0174
A3: GENERAL SERVICE LESS THAN 50 KW | B3: 15.37 | D3: 0.0129
A4: GENERAL SERVICE 50 TO 999 KW | B4: 166.66 | D4: 2.542
A5: GENERAL SERVICE 1,000 TO 4,999 KW | B5: 635.54 | D5: 3.398
A6: LARGE USE | B6: 930.26 | D6: 2.3246
A7: UNMETERED SCATTERED LOAD | B7: 5.84 | D7: 0.0267
A8: SENTINEL LIGHTING | B8: 6.96 | D8: 7.7038
A9: STREET LIGHTING | B9: 0.39 | D9: 9.445
A10: microFIT | B10: 5.4

Sheet 25. Other Charges & LF
A11: Please enter the following charges as found on your most recent Board-Approved Tariff Schedule. The standard Allowance rates have been included as default entries. If you have different rates, please make the appropriate corrections in the applicable cells below. As well, please enter the current Specific Service Charges below. The standard Retail Service Charges have been entered below. If you have different rates, please make the appropriate corrections in columns A, C or D as applicable (cells are unlocked).
C13: UNIT | D13: RATE
A15: ALLOWANCES
A17: Transformer Allowance for Ownership - per kW of billing demand/month | C17: $/kW | D17: -0.72
A20: Primary Metering Allowance for transformer losses – applied to measured demand and energy | C20: % | D20: -1
A22: SPECIFIC SERVICE CHARGES
A24: APPLICATION
A26: The application of these rates and charges shall be in accordance with the Licence of the Distributor and any Code or Order of the Board, and amendments thereto as approved by the Board, which may be applicable to the administration of this schedule.
A27: No charges to meet the costs of any work or service done or furnished for the purpose of the distribution of electricity shall be made except as permitted by this schedule, unless required by the Distributor’s Licence or a Code or Order of the Board, and amendments thereto as approved by the Board, or as specified herein.
A28: It should be noted that this schedule does not list any charges, assessments or credits that are required by law to be invoiced by a distributor and that are not subject to Board approval, such as the Debt Retirement Charge, the Global Adjustment, the Ontario Clean Energy Benefit and the HST.
A30: Customer Administration
A31: Arrears certificate | C31: $ | D31: 15
A32: Returned cheque (plus bank charges) | C32: $ | D32: 8.55
A33: Account set up charge/change of occupancy charge (plus credit agency costs if applicable) | C33: $ | D33: 8.75
A34: Meter dispute charge plus Measurement Canada fees (if meter found correct) | C34: $ | D34: 10
A67: Non-Payment of Account
A68: Late Payment – per month | C68: % | D68: 1.5
A69: Late Payment – per annum | C69: % | D69: 19.56
A70: Collection of account charge – no disconnection | C70: $ | D70: 9
A71: Disconnect/Reconnect at meter – during regular hours | C71: $ | D71: 20
A72: Disconnect/Reconnect at meter – after regular hours | C72: $ | D72: 50
A73: Disconnect/Reconnect at pole – during regular hours | C73: $ | D73: 50
A74: Disconnect/Reconnect at pole – after regular hours | C74: $ | D74: 95
A76: Service call – customer owned equipment | C76: $ | D76: 17.5
A77: Service call – after regular hours | C77: $ | D77: 95
A78: Specific Charge for Access to the Power Poles - $/pole/year | C78: $ | D78: 22.35
A116: RETAIL SERVICE CHARGES (if applicable)
A118: The application of these rates and charges shall be in accordance with the Licence of the Distributor and any Code or Order of the Board, and amendments thereto as approved by the Board, which may be applicable to the administration of this schedule.
A120: No rates and charges for the distribution of electricity and charges to meet the costs of any work or service done or furnished for the purpose of the distribution of electricity shall be made except as permitted by this schedule, unless required by the Distributor’s Licence or a Code or Order of the Board, and amendments thereto as approved by the Board, or as specified herein.
A122: Unless specifically noted, this schedule does not contain any charges for the electricity commodity, be it under the Regulated Price Plan, a contract with a retailer or the wholesale market price, as applicable.
A124: It should be noted that this schedule does not list any charges, assessments, or credits that are required by law to be invoiced by a distributor and that are not subject to Board approval, such as the Debt Retirement Charge, the Global Adjustment, the Ontario Clean Energy Benefit and the HST.
A126: Retail Service Charges refer to services provided by a distributor to retailers or customers related to the supply of competitive electricity.
A128: One-time charge, per retailer, to establish the service agreement between the distributor and the retailer | C128: $ | D128: 100
A129: Monthly Fixed Charge, per retailer | C129: $ | D129: 20
A130: Monthly Variable Charge, per customer, per retailer | C130: $/cust. | D130: 0.5
A131: Distributor-consolidated billing monthly charge, per customer, per retailer | C131: $/cust. | D131: 0.3
A132: Retailer-consolidated billing monthly credit, per customer, per retailer | C132: $/cust. | D132: -0.3
A133: Service Transaction Requests (STR)
A134: Request fee, per request, applied to the requesting party | C134: $ | D134: 0.25
A135: Processing fee, per request, applied to the requesting party | C135: $ | D135: 0.5
A136: Request for customer information as outlined in Section 10.6.3 and Chapter 11 of the Retail
A137: Settlement Code directly to retailers and customers, if not delivered electronically through the
A138: Electronic Business Transaction (EBT) system, applied to the requesting party
A139: Up to twice a year | C139: $ | D139: no charge
A140: More than twice a year, per request (plus incremental delivery costs) | C140: $ | D140: 2
A143: LOSS FACTORS
A145: If the distributor is not capable of prorating changed loss factors jointly with distribution rates, the revised loss factors will be implemented upon the first subsequent billing for each billing cycle.
A148: Total Loss Factor – Secondary Metered Customer < 5,000 kW | D148: 1.0209 | H148: TLF_Secondary_LT_5000kW
A149: Total Loss Factor – Secondary Metered Customer > 5,000 kW | D149: 1.016 | H149: TLF_Primary_LT_5000kW
A150: Distribution Loss Factor - Primary Metered Customer < 5,000 kW | D150: 1.0107
A151: Distribution Loss Factor - Primary Metered Customer > 5,000 kW | D151: 1.0059

Sheet 26. Proposed Rates
Z1: 3
L5: =ROUND(LEN(B5), -2) / 100 -> 0
L9: =ROUND(LEN(B9), -2) / 100 -> 0
B12: In the Green Cells below, enter any proposed rate riders that are not already included in this model (e.g: ICM rate riders). In column B, the rate rider descriptions must begin with "Rate Rider for". In column C, choose the associated unit from the drop-down menu. In column D, enter the rate. All rate riders with a "$" unit will be rounded to 2 decimal places and all others will be rounded to 4 decimal places.
A20: RESIDENTIAL | B20: RESIDENTIAL SERVICE CLASSIFICATION | C20: Unit | D20: Rate
A21: RESIDENTIAL
A22: RESIDENTIAL
A23: RESIDENTIAL
A24: RESIDENTIAL
A25: RESIDENTIAL
A26: RESIDENTIAL
A27: RESIDENTIAL
A28: RESIDENTIAL
A29: RESIDENTIAL
A30: RESIDENTIAL
A32: GENERAL SERVICE LESS THAN 50 KW | B32: GENERAL SERVICE LESS THAN 50 KW SERVICE CLASSIFICATION | C32: Unit | D32: Rate
A33: GENERAL SERVICE LESS THAN 50 KW
A34: GENERAL SERVICE LESS THAN 50 KW
A35: GENERAL SERVICE LESS THAN 50 KW
A36: GENERAL SERVICE LESS THAN 50 KW
A37: GENERAL SERVICE LESS THAN 50 KW
A38: GENERAL SERVICE LESS THAN 50 KW
A39: GENERAL SERVICE LESS THAN 50 KW
A40: GENERAL SERVICE LESS THAN 50 KW
A41: GENERAL SERVICE LESS THAN 50 KW
A42: GENERAL SERVICE LESS THAN 50 KW
A44: GENERAL SERVICE 50 TO 999 KW | B44: GENERAL SERVICE 50 TO 999 KW SERVICE CLASSIFICATION | C44: Unit | D44: Rate
A45: GENERAL SERVICE 50 TO 999 KW
A46: GENERAL SERVICE 50 TO 999 KW
A47: GENERAL SERVICE 50 TO 999 KW
A48: GENERAL SERVICE 50 TO 999 KW
A49: GENERAL SERVICE 50 TO 999 KW
A50: GENERAL SERVICE 50 TO 999 KW
A51: GENERAL SERVICE 50 TO 999 KW
A52: GENERAL SERVICE 50 TO 999 KW
A53: GENERAL SERVICE 50 TO 999 KW
A54: GENERAL SERVICE 50 TO 999 KW
A56: GENERAL SERVICE 1,000 TO 4,999 KW | B56: GENERAL SERVICE 1,000 TO 4,999 KW SERVICE CLASSIFICATION | C56: Unit | D56: Rate
A57: GENERAL SERVICE 1,000 TO 4,999 KW
A58: GENERAL SERVICE 1,000 TO 4,999 KW
A59: GENERAL SERVICE 1,000 TO 4,999 KW
A60: GENERAL SERVICE 1,000 TO 4,999 KW
A61: GENERAL SERVICE 1,000 TO 4,999 KW
A62: GENERAL SERVICE 1,000 TO 4,999 KW
A63: GENERAL SERVICE 1,000 TO 4,999 KW
A64: GENERAL SERVICE 1,000 TO 4,999 KW
A65: GENERAL SERVICE 1,000 TO 4,999 KW
A66: GENERAL SERVICE 1,000 TO 4,999 KW
A68: LARGE USE | B68: LARGE USE SERVICE CLASSIFICATION | C68: Unit | D68: Rate
A69: LARGE USE
A70: LARGE USE
A71: LARGE USE
A72: LARGE USE
A73: LARGE USE
A74: LARGE USE
A75: LARGE USE
A76: LARGE USE
A77: LARGE USE
A78: LARGE USE
A80: UNMETERED SCATTERED LOAD | B80: UNMETERED SCATTERED LOAD SERVICE CLASSIFICATION | C80: Unit | D80: Rate
A81: UNMETERED SCATTERED LOAD
A82: UNMETERED SCATTERED LOAD
A83: UNMETERED SCATTERED LOAD
A84: UNMETERED SCATTERED LOAD
A85: UNMETERED SCATTERED LOAD
A86: UNMETERED SCATTERED LOAD
A87: UNMETERED SCATTERED LOAD
A88: UNMETERED SCATTERED LOAD
A89: UNMETERED SCATTERED LOAD
A90: UNMETERED SCATTERED LOAD
A92: SENTINEL LIGHTING | B92: SENTINEL LIGHTING SERVICE CLASSIFICATION | C92: Unit | D92: Rate
A93: SENTINEL LIGHTING
A94: SENTINEL LIGHTING
A95: SENTINEL LIGHTING
A96: SENTINEL LIGHTING
A97: SENTINEL LIGHTING
A98: SENTINEL LIGHTING
A99: SENTINEL LIGHTING
A100: SENTINEL LIGHTING
A101: SENTINEL LIGHTING
A102: SENTINEL LIGHTING
A104: STREET LIGHTING | B104: STREET LIGHTING SERVICE CLASSIFICATION | C104: Unit | D104: Rate
A105: STREET LIGHTING
A106: STREET LIGHTING
A107: STREET LIGHTING
A108: STREET LIGHTING
A109: STREET LIGHTING
A110: STREET LIGHTING
A111: STREET LIGHTING
A112: STREET LIGHTING
A113: STREET LIGHTING
A114: STREET LIGHTING
A116: microFIT | B116: microFIT SERVICE CLASSIFICATION | C116: Unit | D116: Rate
A117: microFIT
A118: microFIT
A119: microFIT
A120: microFIT
A121: microFIT
A122: microFIT
A123: microFIT
A124: microFIT
A125: microFIT
A126: microFIT
B130: PROPOSED MONTHLY RATES AND CHARGES - Regulatory Component
A132: Wholesale Market Service Rate | B132: Wholesale Market Service Rate | C132: $/kWh | D132: 0.0044
A133: Rural or Remote Electricity Rate Protection Charge (RRRP) | B133: Rural or Remote Electricity Rate Protection Charge (RRRP) | C133: $/kWh | D133: 0.0013
A134: Standard Supply Service - Administrative Charge (if applicable) | B134: Standard Supply Service - Administrative Charge (if applicable) | C134: $ | D134: 0.25

Sheet 26. Hidden (hidden)
A1: RESIDENTIAL | B1: RESIDENTIAL SERVICE CLASSIFICATION | C1: Unit | D1: Rate
A2: RESIDENTIAL
A3: RESIDENTIAL
A4: RESIDENTIAL
A5: RESIDENTIAL
A6: RESIDENTIAL
A7: RESIDENTIAL
A8: RESIDENTIAL
A9: RESIDENTIAL
A10: RESIDENTIAL
A11: RESIDENTIAL
A13: GENERAL SERVICE LESS THAN 50 KW | B13: GENERAL SERVICE LESS THAN 50 KW SERVICE CLASSIFICATION | C13: Unit | D13: Rate
A14: GENERAL SERVICE LESS THAN 50 KW
A15: GENERAL SERVICE LESS THAN 50 KW
A16: GENERAL SERVICE LESS THAN 50 KW
A17: GENERAL SERVICE LESS THAN 50 KW
A18: GENERAL SERVICE LESS THAN 50 KW
A19: GENERAL SERVICE LESS THAN 50 KW
A20: GENERAL SERVICE LESS THAN 50 KW
A21: GENERAL SERVICE LESS THAN 50 KW
A22: GENERAL SERVICE LESS THAN 50 KW
A23: GENERAL SERVICE LESS THAN 50 KW
A25: GENERAL SERVICE 50 TO 999 KW | B25: GENERAL SERVICE 50 TO 999 KW SERVICE CLASSIFICATION | C25: Unit | D25: Rate
A26: GENERAL SERVICE 50 TO 999 KW
A27: GENERAL SERVICE 50 TO 999 KW
A28: GENERAL SERVICE 50 TO 999 KW
A29: GENERAL SERVICE 50 TO 999 KW
A30: GENERAL SERVICE 50 TO 999 KW
A31: GENERAL SERVICE 50 TO 999 KW
A32: GENERAL SERVICE 50 TO 999 KW
A33: GENERAL SERVICE 50 TO 999 KW
A34: GENERAL SERVICE 50 TO 999 KW
A35: GENERAL SERVICE 50 TO 999 KW
A37: GENERAL SERVICE 1,000 TO 4,999 KW | B37: GENERAL SERVICE 1,000 TO 4,999 KW SERVICE CLASSIFICATION | C37: Unit | D37: Rate
A38: GENERAL SERVICE 1,000 TO 4,999 KW
A39: GENERAL SERVICE 1,000 TO 4,999 KW
A40: GENERAL SERVICE 1,000 TO 4,999 KW
A41: GENERAL SERVICE 1,000 TO 4,999 KW
A42: GENERAL SERVICE 1,000 TO 4,999 KW
A43: GENERAL SERVICE 1,000 TO 4,999 KW
A44: GENERAL SERVICE 1,000 TO 4,999 KW
A45: GENERAL SERVICE 1,000 TO 4,999 KW
A46: GENERAL SERVICE 1,000 TO 4,999 KW
A47: GENERAL SERVICE 1,000 TO 4,999 KW
A49: LARGE USE | B49: LARGE USE SERVICE CLASSIFICATION | C49: Unit | D49: Rate
A50: LARGE USE
A51: LARGE USE
A52: LARGE USE
A53: LARGE USE
A54: LARGE USE
A55: LARGE USE
A56: LARGE USE
A57: LARGE USE
A58: LARGE USE
A59: LARGE USE
A61: UNMETERED SCATTERED LOAD | B61: UNMETERED SCATTERED LOAD SERVICE CLASSIFICATION | C61: Unit | D61: Rate
A62: UNMETERED SCATTERED LOAD
A63: UNMETERED SCATTERED LOAD
A64: UNMETERED SCATTERED LOAD
A65: UNMETERED SCATTERED LOAD
A66: UNMETERED SCATTERED LOAD
A67: UNMETERED SCATTERED LOAD
A68: UNMETERED SCATTERED LOAD
A69: UNMETERED SCATTERED LOAD
A70: UNMETERED SCATTERED LOAD
A71: UNMETERED SCATTERED LOAD
A73: SENTINEL LIGHTING | B73: SENTINEL LIGHTING SERVICE CLASSIFICATION | C73: Unit | D73: Rate
A74: SENTINEL LIGHTING
A75: SENTINEL LIGHTING
A76: SENTINEL LIGHTING
A77: SENTINEL LIGHTING
A78: SENTINEL LIGHTING
A79: SENTINEL LIGHTING
A80: SENTINEL LIGHTING
A81: SENTINEL LIGHTING
A82: SENTINEL LIGHTING
A83: SENTINEL LIGHTING
A85: STREET LIGHTING | B85: STREET LIGHTING SERVICE CLASSIFICATION | C85: Unit | D85: Rate
A86: STREET LIGHTING
A87: STREET LIGHTING
A88: STREET LIGHTING
A89: STREET LIGHTING
A90: STREET LIGHTING
A91: STREET LIGHTING
A92: STREET LIGHTING
A93: STREET LIGHTING
A94: STREET LIGHTING
A95: STREET LIGHTING
A97: microFIT | B97: microFIT SERVICE CLASSIFICATION | C97: Unit | D97: Rate
A98: microFIT
A99: microFIT
A100: microFIT
A101: microFIT
A102: microFIT
A103: microFIT
A104: microFIT
A105: microFIT
A106: microFIT
A107: microFIT
B111: PROPOSED MONTHLY RATES AND CHARGES - Regulatory Component
A113: Wholesale Market Service Rate | B113: Wholesale Market Service Rate | C113: $/kWh | D113: 0.0044
A114: Rural or Remote Electricity Rate Protection Charge (RRRP) | B114: Rural or Remote Electricity Rate Protection Charge (RRRP) | C114: $/kWh | D114: 0.0013
A115: Standard Supply Service - Administrative Charge (if applicable) | B115: Standard Supply Service - Administrative Charge (if applicable) | C115: $ | D115: 0.25

Sheet 27. Final Tariff Schedule
A1: hidden column | B1: ='1. Information Sheet'!F14 -> Guelph Hydro Electric Systems Inc. | F1: hidden column | Z1: 3
A2: for rate classes | B2: TARIFF OF RATES AND CHARGES | F2: for proposed
B3: ="Effective and Implementation Date " & TEXT('1. Information Sheet'!F26, "mmmm dd, yyyy") -> Effective and Implementation Date January 01, 2015 | F3: labeliing
B5: This schedule supersedes and replaces all previously
B6: approved schedules of Rates, Charges and Loss Factors | L6: =ROUND(LEN(B6), -2) / 100 -> 1
B7: =IF(LEN('1. Information Sheet'!F18)=0, "Please enter your assigned EB# on Sheet 1", '1. Information Sheet'!F18) -> EB-2014-0077
B9: RESIDENTIAL SERVICE CLASSIFICATION
B11: This classification includes accounts taking electricity at 750 volts or less where the electricity is used exclusively in a separately metered living accomodation. Customers shall be residing in single-dwelling units that consist of a detached house or one unit of a semi-detached, duplex, triplex or quadraplex house, with a residential zoning. Separately metered dwellings within a town house complex or apartment building also qualify as residential customers. Further servicing details are available in the distributor's Conditions of Service. | L11: =ROUND(LEN(B11), -2) / 100 -> 6
B13: APPLICATION
B15: The application of these rates and charges shall be in accordance with the Licence of the Distributor and any Code or Order of the Board, and amendments thereto as approved by the Board, which may be applicable to the administration of this schedule. | L15: =ROUND(LEN(B15), -2) / 100 -> 3
B17: No rates and charges for the distribution of electricity and charges to meet the costs of any work or service done or furnished for the purpose of the distribution of electricity shall be made except as permitted by this schedule, unless required by the Distributor's Licence or a Code or Order of the Board, and amendments thereto as approved by the Board, or as specified herein. | L17: =ROUND(LEN(B17), -2) / 100 -> 4
B19: Unless specifically noted, this schedule does not contain any charges for the electricity commodity, be it under the Regulated Price Plan, a contract with a retailer or the wholesale market price, as applicable. In addition, the charges in the MONTHLY RATES AND CHARGES - Regulatory Component of this schedule do not apply to a customer that is an embedded wholesale market participant. | L19: =ROUND(LEN(B19), -2) / 100 -> 4
B21: It should be noted that this schedule does not list any charges, assessments or credits that are required by law to be invoiced by a distributor and that are not subject to Board approval, such as the Debt Retirement Charge, the Global Adjustment, the Ontario Clean Energy Benefit and the HST. | L21: =ROUND(LEN(B21), -2) / 100 -> 3
B23: MONTHLY RATES AND CHARGES - Delivery Component
A25: RESIDENTIAL | B25: Service Charge | D25: $ | E25: 14.49 | K25: 1_P_MSC
A26: RESIDENTIAL | B26: Green Energy Act Plan Funding Adder - effective April 1, 2014 until March 31, 2015 | D26: $ | E26: 0.15 | K26: 1_P_MSC_Rate_Rider_1
A27: RESIDENTIAL | B27: Rate Rider for Recovery of Stranded Meter Assets - effective until March 31, 2016 | D27: $ | E27: 0.73 | K27: 1_P_MSC_Rate_Rider_2
A28: RESIDENTIAL | B28: Rate Rider for Disposition of Post Retirement Actuarial Gain - effective until March 31, 2025 | D28: $ | E28: -0.18 | K28: 1_P_MSC_Rate_Rider_3
A29: RESIDENTIAL | B29: Rate Rider for Smart Metering Entity Charge - effective until October 31, 2018 | D29: $ | E29: 0.79 | K29: 1_P_SMEC
A30: RESIDENTIAL | B30: Distribution Volumetric Rate | D30: $/kWh | E30: 0.0176 | K30: 1_P_VC_1
A31: RESIDENTIAL | B31: Rate Rider for Disposition of Deferred PILs Variance Account 1562 - effective until March 31, 2016 | D31: $/kWh | E31: 0.0007 | K31: 1_P_VC_DEFVAR_kWh_1
A32: RESIDENTIAL | B32: Rate Rider for Recovery of Lost Revenue Adjustment Mechanism (LRAM)/Shared Savings Mechanism (SSM) - effective until March 31, 2016 | D32: $/kWh | E32: 0.0003 | K32: 1_P_VC_Rate_Rider_kWh_2
A33: RESIDENTIAL | B33: Rate Rider for Disposition of Deferral/Variance Accounts (2015) - effective until December 31, 2015 | D33: $/kWh | E33: 0.002 | K33: 1_P_VC_DEFVAR_kWh_2
A34: RESIDENTIAL | B34: Rate Rider for Disposition of Global Adjustment Account (2015) - effective until December 31, 2015 Applicable only for Non RPP Customers | D34: $/kWh | E34: 0.004031688017 | K34: 1_P_VC_GA_Rate_Rider_kWh_1
A35: RESIDENTIAL | B35: Retail Transmission Rate - Network Service Rate | D35: $/kWh | E35: 0.007782433468 | K35: 1_P_RTSR_Network
A36: RESIDENTIAL | B36: Retail Transmission Rate - Line and Transformation Connection Service Rate | D36: $/kWh | E36: 0.00579851186 | K36: 1_P_RTSR_Connection
A37: RESIDENTIAL
A38: RESIDENTIAL | B38: MONTHLY RATES AND CHARGES - Regulatory Component
A39: RESIDENTIAL
A40: RESIDENTIAL | B40: Wholesale Market Service Rate | D40: $/kWh | E40: 0.0044 | K40: 1_P_WMSR
A41: RESIDENTIAL | B41: Rural or Remote Electricity Rate Protection Charge (RRRP) | D41: $/kWh | E41: 0.0013 | K41: 1_P_RRPC
A42: RESIDENTIAL | B42: Standard Supply Service - Administrative Charge (if applicable) | D42: $ | E42: 0.25 | K42: 1_P_SSS
B44: GENERAL SERVICE LESS THAN 50 KW SERVICE CLASSIFICATION
B46: This classification includes non-residential accounts taking electricity at 750 volts or less where monthly average peak demand is less than, or is forecast to be less than, 50 kW. Further servicing details are available in the distributor's Conditions of Service. | L46: =ROUND(LEN(B46), -2) / 100 -> 3
B48: APPLICATION
B50: The application of these rates and charges shall be in accordance with the Licence of the Distributor and any Code or Order of the Board, and amendments thereto as approved by the Board, which may be applicable to the administration of this schedule. | L50: =ROUND(LEN(B50), -2) / 100 -> 3
B52: No rates and charges for the distribution of electricity and charges to meet the costs of any work or service done or furnished for the purpose of the distribution of electricity shall be made except as permitted by this schedule, unless required by the Distributor's Licence or a Code or Order of the Board, and amendments thereto as approved by the Board, or as specified herein. | L52: =ROUND(LEN(B52), -2) / 100 -> 4
B54: Unless specifically noted, this schedule does not contain any charges for the electricity commodity, be it under the Regulated Price Plan, a contract with a retailer or the wholesale market price, as applicable. In addition, the charges in the MONTHLY RATES AND CHARGES - Regulatory Component of this schedule do not apply to a customer that is an embedded wholesale market participant. | L54: =ROUND(LEN(B54), -2) / 100 -> 4
B56: It should be noted that this schedule does not list any charges, assessments or credits that are required by law to be invoiced by a distributor and that are not subject to Board approval, such as the Debt Retirement Charge, the Global Adjustment, the Ontario Clean Energy Benefit and the HST. | L56: =ROUND(LEN(B56), -2) / 100 -> 3
B58: MONTHLY RATES AND CHARGES - Delivery Component
A60: GENERAL SERVICE LESS THAN 50 KW | B60: Service Charge | D60: $ | E60: 15.57 | K60: 2_P_MSC
A61: GENERAL SERVICE LESS THAN 50 KW | B61: Green Energy Act Plan Funding Adder - effective April 1, 2014 until March 31, 2015 | D61: $ | E61: 0.15 | K61: 2_P_MSC_Rate_Rider_1
A62: GENERAL SERVICE LESS THAN 50 KW | B62: Rate Rider for Recovery of Stranded Meter Assets - effective until March 31, 2016 | D62: $ | E62: 0.73 | K62: 2_P_MSC_Rate_Rider_2
A63: GENERAL SERVICE LESS THAN 50 KW | B63: Rate Rider for Disposition of Post Retirement Actuarial Gain - effective until March 31, 2025 | D63: $ | E63: -0.5 | K63: 2_P_MSC_Rate_Rider_3
A64: GENERAL SERVICE LESS THAN 50 KW | B64: Rate Rider for Smart Metering Entity Charge - effective until October 31, 2018 | D64: $ | E64: 0.79 | K64: 2_P_SMEC
A65: GENERAL SERVICE LESS THAN 50 KW | B65: Distribution Volumetric Rate | D65: $/kWh | E65: 0.0131 | K65: 2_P_VC_1
A66: GENERAL SERVICE LESS THAN 50 KW | B66: Rate Rider for Disposition of Deferred PILs Variance Account 1562 - effective until March 31, 2016 | D66: $/kWh | E66: 0.0004 | K66: 2_P_VC_DEFVAR_kWh_1
A67: GENERAL SERVICE LESS THAN 50 KW | B67: Rate Rider for Recovery of Lost Revenue Adjustment Mechanism (LRAM)/Shared Savings Mechanism (SSM) - effective until March 31, 2016 | D67: $/kWh | E67: 0.0001 | K67: 2_P_VC_Rate_Rider_kWh_2
A68: GENERAL SERVICE LESS THAN 50 KW | B68: Rate Rider for Disposition of Deferral/Variance Accounts (2015) - effective until December 31, 2015 | D68: $/kWh | E68: 0.0014 | K68: 2_P_VC_DEFVAR_kWh_2
A69: GENERAL SERVICE LESS THAN 50 KW | B69: Rate Rider for Disposition of Global Adjustment Account (2015) - effective until December 31, 2015 Applicable only for Non RPP Customers | D69: $/kWh | E69: 0.004031688017 | K69: 2_P_VC_GA_Rate_Rider_kWh_1
A70: GENERAL SERVICE LESS THAN 50 KW | B70: Retail Transmission Rate - Network Service Rate | D70: $/kWh | E70: 0.007133897345 | K70: 2_P_RTSR_Network
A71: GENERAL SERVICE LESS THAN 50 KW | B71: Retail Transmission Rate - Line and Transformation Connection Service Rate | D71: $/kWh | E71: 0.005142076555 | K71: 2_P_RTSR_Connection
A72: GENERAL SERVICE LESS THAN 50 KW
A73: GENERAL SERVICE LESS THAN 50 KW | B73: MONTHLY RATES AND CHARGES - Regulatory Component
A74: GENERAL SERVICE LESS THAN 50 KW
A75: GENERAL SERVICE LESS THAN 50 KW | B75: Wholesale Market Service Rate | D75: $/kWh | E75: 0.0044 | K75: 2_P_WMSR
A76: GENERAL SERVICE LESS THAN 50 KW | B76: Rural or Remote Electricity Rate Protection Charge (RRRP) | D76: $/kWh | E76: 0.0013 | K76: 2_P_RRPC
A77: GENERAL SERVICE LESS THAN 50 KW | B77: Standard Supply Service - Administrative Charge (if applicable) | D77: $ | E77: 0.25 | K77: 2_P_SSS
B79: GENERAL SERVICE 50 TO 999 KW SERVICE CLASSIFICATION
B81: This classification includes non-residential accounts where monthly average peak demand is equal to or greater than, or is forecast to be equal to or greater than, 50 kW but less than 1,000 kW. Note that for the application of the Retail Transmission Rate - Network Service Rate and the Retail Transmission Rate - Line and Transformation Connection Service Rate the following sub-classifications apply: General Service 50 to 999 non-interval metered, General Service 50 to 999 kW interval metered. Further servicing details are avaialble in the distributor's Conditions of Service. | L81: =ROUND(LEN(B81), -2) / 100 -> 6
B83: APPLICATION
B85: The application of these rates and charges shall be in accordance with the Licence of the Distributor and any Code or Order of the Board, and amendments thereto as approved by the Board, which may be applicable to the administration of this schedule. | L85: =ROUND(LEN(B85), -2) / 100 -> 3
B87: No rates and charges for the distribution of electricity and charges to meet the costs of any work or service done or furnished for the purpose of the distribution of electricity shall be made except as permitted by this schedule, unless required by the Distributor's Licence or a Code or Order of the Board, and amendments thereto as approved by the Board, or as specified herein. | L87: =ROUND(LEN(B87), -2) / 100 -> 4
B89: Unless specifically noted, this schedule does not contain any charges for the electricity commodity, be it under the Regulated Price Plan, a contract with a retailer or the wholesale market price, as applicable. In addition, the charges in the MONTHLY RATES AND CHARGES - Regulatory Component of this schedule do not apply to a customer that is an embedded wholesale market participant. | L89: =ROUND(LEN(B89), -2) / 100 -> 4
B91: It should be noted that this schedule does not list any charges, assessments or credits that are required by law to be invoiced by a distributor and that are not subject to Board approval, such as the Debt Retirement Charge, the Global Adjustment, the Ontario Clean Energy Benefit and the HST. | L91: =ROUND(LEN(B91), -2) / 100 -> 3
B93: MONTHLY RATES AND CHARGES - Delivery Component
A95: GENERAL SERVICE 50 TO 999 KW | B95: Service Charge | D95: $ | E95: 168.83 | K95: 3_P_MSC
A96: GENERAL SERVICE 50 TO 999 KW | B96: Green Energy Act Plan Funding Adder - effective April 1, 2014 until March 31, 2015 | D96: $ | E96: 0.15 | K96: 3_P_MSC_Rate_Rider_1
A97: GENERAL SERVICE 50 TO 999 KW | B97: Rate Rider for Disposition of Post Retirement Actuarial Gain - effective until March 31, 2025 | D97: $ | E97: -3.8 | K97: 3_P_MSC_Rate_Rider_2
A98: GENERAL SERVICE 50 TO 999 KW | B98: Distribution Volumetric Rate | D98: $/kW | E98: 2.575 | K98: 3_P_VC_1
A99: GENERAL SERVICE 50 TO 999 KW | B99: Low Voltage Service Rate | D99: $/kW | E99: 0.0151 | K99: 3_P_LVrate
A100: GENERAL SERVICE 50 TO 999 KW | B100: Rate Rider for Disposition of Deferred PILs Variance Account 1562 - effective until March 31, 2016 | D100: $/kW | E100: 0.0614 | K100: 3_P_VC_DEFVAR_kW_1
A101: GENERAL SERVICE 50 TO 999 KW | B101: Rate Rider for Recovery of Lost Revenue Adjustment Mechanism (LRAM)/Shared Savings Mechanism (SSM) - effective until March 31, 2016 | D101: $/kW | E101: 0.0065 | K101: 3_P_VC_Rate_Rider_kW_2
A102: GENERAL SERVICE 50 TO 999 KW | B102: Rate Rider for Tax Change (2015) - effective until December 31, 2015 | D102: $/kW | E102: -0.0031 | K102: 3_P_VC_Rate_Rider_kW_3
A103: GENERAL SERVICE 50 TO 999 KW | B103: Rate Rider for Disposition of Deferral/Variance Accounts (2015) - effective until December 31, 2015 | D103: $/kW | E103: 0.5021 | K103: 3_P_VC_DEFVAR_kW_2
A104: GENERAL SERVICE 50 TO 999 KW | B104: Rate Rider for Disposition of Global Adjustment Account (2015) - effective until December 31, 2015 Applicable only for Non RPP Customers | D104: $/kW | E104: 1.546377022 | K104: 3_P_VC_GA_Rate_Rider_kW_1
A105: GENERAL SERVICE 50 TO 999 KW | B105: Retail Transmission Rate - Network Service Rate | D105: $/kW | E105: 2.977213159 | K105: 3_P_RTSR_Network
A106: GENERAL SERVICE 50 TO 999 KW | B106: Retail Transmission Rate - Network Service Rate - Interval Metered | D106: $/kW | E106: 3.088220925 | K106: 3_P_RTSR_Network_Interval
A107: GENERAL SERVICE 50 TO 999 KW | B107: Retail Transmission Rate - Line and Transformation Connection Service Rate | D107: $/kW | E107: 2.151138494 | K107: 3_P_RTSR_Connection
A108: GENERAL SERVICE 50 TO 999 KW | B108: Retail Transmission Rate - Line and Transformation Connection Service Rate - Interval Metered | D108: $/kW | E108: 2.231770631 | K108: 3_P_RTSR_Connection_Interval
A109: GENERAL SERVICE 50 TO 999 KW
A110: GENERAL SERVICE 50 TO 999 KW | B110: MONTHLY RATES AND CHARGES - Regulatory Component
A111: GENERAL SERVICE 50 TO 999 KW
A112: GENERAL SERVICE 50 TO 999 KW | B112: Wholesale Market Service Rate | D112: $/kWh | E112: 0.0044 | K112: 3_P_WMSR
A113: GENERAL SERVICE 50 TO 999 KW | B113: Rural or Remote Electricity Rate Protection Charge (RRRP) | D113: $/kWh | E113: 0.0013 | K113: 3_P_RRPC
A114: GENERAL SERVICE 50 TO 999 KW | B114: Standard Supply Service - Administrative Charge (if applicable) | D114: $ | E114: 0.25 | K114: 3_P_SSS
B116: GENERAL SERVICE 1,000 TO 4,999 KW SERVICE CLASSIFICATION
B118: This classification includes non-residential accounts where monthly average peak demand is equal to or greater than, or is forecast to be equal or greater than 1,000 kW but less than 5,000 kW. Further servicing details are available in the distributor's Conditions of Service. | L118: =ROUND(LEN(B118), -2) / 100 -> 3
B120: APPLICATION
B122: The application of these rates and charges shall be in accordance with the Licence of the Distributor and any Code or Order of the Board, and amendments thereto as approved by the Board, which may be applicable to the administration of this schedule. | L122: =ROUND(LEN(B122), -2) / 100 -> 3
B124: No rates and charges for the distribution of electricity and charges to meet the costs of any work or service done or furnished for the purpose of the distribution of electricity shall be made except as permitted by this schedule, unless required by the Distributor's Licence or a Code or Order of the Board, and amendments thereto as approved by the Board, or as specified herein. | L124: =ROUND(LEN(B124), -2) / 100 -> 4
B126: Unless specifically noted, this schedule does not contain any charges for the electricity commodity, be it under the Regulated Price Plan, a contract with a retailer or the wholesale market price, as applicable. In addition, the charges in the MONTHLY RATES AND CHARGES - Regulatory Component of this schedule do not apply to a customer that is an embedded wholesale market participant. | L126: =ROUND(LEN(B126), -2) / 100 -> 4
B128: It should be noted that this schedule does not list any charges, assessments or credits that are required by law to be invoiced by a distributor and that are not subject to Board approval, such as the Debt Retirement Charge, the Global Adjustment, the Ontario Clean Energy Benefit and the HST. | L128: =ROUND(LEN(B128), -2) / 100 -> 3
B130: MONTHLY RATES AND CHARGES - Delivery Component
A132: GENERAL SERVICE 1,000 TO 4,999 KW | B132: Service Charge | D132: $ | E132: 643.8 | K132: 4_P_MSC
A133: GENERAL SERVICE 1,000 TO 4,999 KW | B133: Green Energy Act Plan Funding Adder - effective April 1, 2014 until March 31, 2015 | D133: $ | E133: 0.15 | K133: 4_P_MSC_Rate_Rider_1
A134: GENERAL SERVICE 1,000 TO 4,999 KW | B134: Rate Rider for Disposition of Post Retirement Actuarial Gain - effective until March 31, 2025 | D134: $ | E134: -46.33 | K134: 4_P_MSC_Rate_Rider_2
A135: GENERAL SERVICE 1,000 TO 4,999 KW | B135: Distribution Volumetric Rate | D135: $/kW | E135: 3.4422 | K135: 4_P_VC_1
A136: GENERAL SERVICE 1,000 TO 4,999 KW | B136: Rate Rider for Disposition of Deferred PILs Variance Account 1562 - effective until March 31, 2016 | D136: $/kW | E136: 0.0567 | K136: 4_P_VC_DEFVAR_kW_1
A137: GENERAL SERVICE 1,000 TO 4,999 KW | B137: Rate Rider for Recovery of Lost Revenue Adjustment Mechanism (LRAM)/Shared Savings Mechanism (SSM) - effective until March 31, 2016 | D137: $/kW | E137: 0.0061 | K137: 4_P_VC_Rate_Rider_kW_2
A138: GENERAL SERVICE 1,000 TO 4,999 KW | B138: Rate Rider for Tax Change (2015) - effective until December 31, 2015 | D138: $/kW | E138: -0.0032 | K138: 4_P_VC_Rate_Rider_kW_3
A139: GENERAL SERVICE 1,000 TO 4,999 KW | B139: Rate Rider for Disposition of Deferral/Variance Accounts (2015) - effective until December 31, 2015 | D139: $/kW | E139: 0.3211 | K139: 4_P_VC_DEFVAR_kW_2
A140: GENERAL SERVICE 1,000 TO 4,999 KW | B140: Rate Rider for Disposition of Global Adjustment Account (2015) - effective until December 31, 2015 Applicable only for Non RPP Customers | D140: $/kW | E140: 1.847151614 | K140: 4_P_VC_GA_Rate_Rider_kW_1
A141: GENERAL SERVICE 1,000 TO 4,999 KW | B141: Retail Transmission Rate - Network Service Rate - Interval Metered | D141: $/kW | E141: 3.088220925 | K141: 4_P_RTSR_Network_Interval
A142: GENERAL SERVICE 1,000 TO 4,999 KW | B142: Retail Transmission Rate - Line and Transformation Connection Service Rate - Interval Metered | D142: $/kW | E142: 2.231770631 | K142: 4_P_RTSR_Connection_Interval
A143: GENERAL SERVICE 1,000 TO 4,999 KW
A144: GENERAL SERVICE 1,000 TO 4,999 KW | B144: MONTHLY RATES AND CHARGES - Regulatory Component
A145: GENERAL SERVICE 1,000 TO 4,999 KW
A146: GENERAL SERVICE 1,000 TO 4,999 KW | B146: Wholesale Market Service Rate | D146: $/kWh | E146: 0.0044 | K146: 4_P_WMSR
A147: GENERAL SERVICE 1,000 TO 4,999 KW | B147: Rural or Remote Electricity Rate Protection Charge (RRRP) | D147: $/kWh | E147: 0.0013 | K147: 4_P_RRPC
A148: GENERAL SERVICE 1,000 TO 4,999 KW | B148: Standard Supply Service - Administrative Charge (if applicable) | D148: $ | E148: 0.25 | K148: 4_P_SSS
B150: LARGE USE SERVICE CLASSIFICATION
B152: This classification refers to an account where monthly average peak demand is equal to or greater than, or is forecast to be equal to or greater than, 5,000 kW. Further servicing details are available in the distributor's Conditions of Service. | L152: =ROUND(LEN(B152), -2) / 100 -> 2
B154: APPLICATION
B156: The application of these rates and charges shall be in accordance with the Licence of the Distributor and any Code or Order of the Board, and amendments thereto as approved by the Board, which may be applicable to the administration of this schedule. | L156: =ROUND(LEN(B156), -2) / 100 -> 3
B158: No rates and charges for the distribution of electricity and charges to meet the costs of any work or service done or furnished for the purpose of the distribution of electricity shall be made except as permitted by this schedule, unless required by the Distributor's Licence or a Code or Order of the Board, and amendments thereto as approved by the Board, or as specified herein. | L158: =ROUND(LEN(B158), -2) / 100 -> 4
B160: Unless specifically noted, this schedule does not contain any charges for the electricity commodity, be it under the Regulated Price Plan, a contract with a retailer or the wholesale market price, as applicable. In addition, the charges in the MONTHLY RATES AND CHARGES - Regulatory Component of this schedule do not apply to a customer that is an embedded wholesale market participant. | L160: =ROUND(LEN(B160), -2) / 100 -> 4
B162: It should be noted that this schedule does not list any charges, assessments or credits that are required by law to be invoiced by a distributor and that are not subject to Board approval, such as the Debt Retirement Charge, the Global Adjustment, the Ontario Clean Energy Benefit and the HST. | L162: =ROUND(LEN(B162), -2) / 100 -> 3
B164: MONTHLY RATES AND CHARGES - Delivery Component
A166: LARGE USE | B166: Service Charge | D166: $ | E166: 942.35 | K166: 5_P_MSC
A167: LARGE USE | B167: Green Energy Act Plan Funding Adder - effective April 1, 2014 until March 31, 2015 | D167: $ | E167: 0.15 | K167: 5_P_MSC_Rate_Rider_1
A168: LARGE USE | B168: Rate Rider for Disposition of Post Retirement Actuarial Gain - effective until March 31, 2025 | D168: $ | E168: -151.18 | K168: 5_P_MSC_Rate_Rider_2
A169: LARGE USE | B169: Distribution Volumetric Rate | D169: $/kW | E169: 2.3548 | K169: 5_P_VC_1
A170: LARGE USE | B170: Rate Rider for Disposition of Deferred PILs Variance Account 1562 - effective until March 31, 2016 | D170: $/kW | E170: 0.0373 | K170: 5_P_VC_DEFVAR_kW_1
A171: LARGE USE | B171: Rate Rider for Recovery of Lost Revenue Adjustment Mechanism (LRAM)/Shared Savings Mechanism (SSM) - effective until March 31, 2016 | D171: $/kW | E171: 0.0099 | K171: 5_P_VC_Rate_Rider_kW_2
A172: LARGE USE | B172: Rate Rider for Tax Change (2015) - effective until December 31, 2015 | D172: $/kW | E172: -0.0021 | K172: 5_P_VC_Rate_Rider_kW_3
A173: LARGE USE | B173: Rate Rider for Disposition of Deferral/Variance Accounts (2015) - effective until December 31, 2015 | D173: $/kW | E173: 0.4437 | K173: 5_P_VC_DEFVAR_kW_2
A174: LARGE USE | B174: Rate Rider for Disposition of Global Adjustment Account (2015) - effective until December 31, 2015 Applicable only for Non RPP Customers | D174: $/kW | E174: 2.23140038 | K174: 5_P_VC_GA_Rate_Rider_kW_1
A175: LARGE USE | B175: Retail Transmission Rate - Network Service Rate - Interval Metered | D175: $/kW | E175: 3.729298882 | K175: 5_P_RTSR_Network_Interval
A176: LARGE USE | B176: Retail Transmission Rate - Line and Transformation Connection Service Rate - Interval Metered | D176: $/kW | E176: 2.694885738 | K176: 5_P_RTSR_Connection_Interval
A177: LARGE USE
A178: LARGE USE | B178: MONTHLY RATES AND CHARGES - Regulatory Component
A179: LARGE USE
A180: LARGE USE | B180: Wholesale Market Service Rate | D180: $/kWh | E180: 0.0044 | K180: 5_P_WMSR
A181: LARGE USE | B181: Rural or Remote Electricity Rate Protection Charge (RRRP) | D181: $/kWh | E181: 0.0013 | K181: 5_P_RRPC
A182: LARGE USE | B182: Standard Supply Service - Administrative Charge (if applicable) | D182: $ | E182: 0.25 | K182: 5_P_SSS
B184: UNMETERED SCATTERED LOAD SERVICE CLASSIFICATION
B186: This classification includes accounts taking electricity at 750 volts or less where monthly average peak demand is less than, or is forecast to be less than, 50 kW and the consumption is unmetered. These connections include cable TV power packs, bus shelters, telephone booths, traffic lights, railway crossings, etc. The customer provides detailed manufacturer information/documentation with regard to electrical demand/consumption of the proposed load. Further servicing details are available in the distributor's Conditions of Service. | L186: =ROUND(LEN(B186), -2) / 100 -> 5
B188: APPLICATION
B190: The application of these rates and charges shall be in accordance with the Licence of the Distributor and any Code or Order of the Board, and amendments thereto as approved by the Board, which may be applicable to the administration of this schedule. | L190: =ROUND(LEN(B190), -2) / 100 -> 3
B192: No rates and charges for the distribution of electricity and charges to meet the costs of any work or service done or furnished for the purpose of the distribution of electricity shall be made except as permitted by this schedule, unless required by the Distributor's Licence or a Code or Order of the Board, and amendments thereto as approved by the Board, or as specified herein. | L192: =ROUND(LEN(B192), -2) / 100 -> 4
B194: Unless specifically noted, this schedule does not contain any charges for the electricity commodity, be it under the Regulated Price Plan, a contract with a retailer or the wholesale market price, as applicable. In addition, the charges in the MONTHLY RATES AND CHARGES - Regulatory Component of this schedule do not apply to a customer that is an embedded wholesale market particpant. | L194: =ROUND(LEN(B194), -2) / 100 -> 4
B196: It should be noted that this schedule does not list any charges, assessments or credits that are required by law to be invoiced by a distributor and that are not subject to Board approval, such as the Debt Retirement Charge, the Global Adjustment, the Ontario Clean Energy Benefit and the HST. | L196: =ROUND(LEN(B196), -2) / 100 -> 3
B198: MONTHLY RATES AND CHARGES - Delivery Component
A200: UNMETERED SCATTERED LOAD | B200: Service Charge (per connection) | D200: $ | E200: 5.92 | K200: 6_P_MSC
A201: UNMETERED SCATTERED LOAD | B201: Green Energy Act Plan Funding Adder - effective April 1, 2014 until March 31, 2015 | D201: $ | E201: 0.15 | K201: 6_P_MSC_Rate_Rider_1
A202: UNMETERED SCATTERED LOAD | B202: Rate Rider for Disposition of Post Retirement Actuarial Gain - effective until March 31, 2025 | D202: $ | E202: -0.05 | K202: 6_P_MSC_Rate_Rider_2
A203: UNMETERED SCATTERED LOAD | B203: Distribution Volumetric Rate | D203: $/kWh | E203: 0.027 | K203: 6_P_VC_1
A204: UNMETERED SCATTERED LOAD | B204: Rate Rider for Disposition of Deferred PILs Variance Account 1562 - effective until March 31, 2016 | D204: $/kWh | E204: 0.0004 | K204: 6_P_VC_DEFVAR_kWh_1
A205: UNMETERED SCATTERED LOAD | B205: Rate Rider for Recovery of Lost Revenue Adjustment Mechanism (LRAM)/Shared Savings Mechanism (SSM) - effective until March 31, 2016 | D205: $/kWh | E205: 0.0048 | K205: 6_P_VC_Rate_Rider_kWh_2
A206: UNMETERED SCATTERED LOAD | B206: Rate Rider for Disposition of Deferral/Variance Accounts (2015) - effective until December 31, 2015 | D206: $/kWh | E206: 0.0018 | K206: 6_P_VC_DEFVAR_kWh_2
A207: UNMETERED SCATTERED LOAD | B207: Rate Rider for Disposition of Global Adjustment Account (2015) - effective until December 31, 2015 Applicable only for Non RPP Customers | D207: $/kWh | E207: 0.004031688017 | K207: 6_P_VC_GA_Rate_Rider_kWh_1
A208: UNMETERED SCATTERED LOAD | B208: Retail Transmission Rate - Network Service Rate | D208: $/kWh | E208: 0.007133897345 | K208: 6_P_RTSR_Network
A209: UNMETERED SCATTERED LOAD | B209: Retail Transmission Rate - Line and Transformation Connection Service Rate | D209: $/kWh | E209: 0.005142076555 | K209: 6_P_RTSR_Connection
A210: UNMETERED SCATTERED LOAD
A211: UNMETERED SCATTERED LOAD | B211: MONTHLY RATES AND CHARGES - Regulatory Component
A212: UNMETERED SCATTERED LOAD
A213: UNMETERED SCATTERED LOAD | B213: Wholesale Market Service Rate | D213: $/kWh | E213: 0.0044 | K213: 6_P_WMSR
A214: UNMETERED SCATTERED LOAD | B214: Rural or Remote Electricity Rate Protection Charge (RRRP) | D214: $/kWh | E214: 0.0013 | K214: 6_P_RRPC
A215: UNMETERED SCATTERED LOAD | B215: Standard Supply Service - Administrative Charge (if applicable) | D215: $ | E215: 0.25 | K215: 6_P_SSS
B217: SENTINEL LIGHTING SERVICE CLASSIFICATION
B219: This classification refers to accounts that are an unmetered lighting load supplied to a sentinel light. Further servicing details are available in the distributor's Conditions of Service. | L219: =ROUND(LEN(B219), -2) / 100 -> 2
B221: APPLICATION
B223: The application of these rates and charges shall be in accordance with the Licence of the Distributor and any Code or Order of the Board, and amendments thereto as approved by the Board, which may be applicable to the administration of this schedule. | L223: =ROUND(LEN(B223), -2) / 100 -> 3
B225: No rates or charges for the distribution of electricity and charges to meet the costs of any work or service done or furnished for the purpose of the distribution of electricity shall be made except as permitted by this schedule, unless required by the Distributor's Licence or a Code or Order of the Board, and amendments thereto as approved by the Board, or as specified herein. | L225: =ROUND(LEN(B225), -2) / 100 -> 4
B227: Unless specifically noted, this schedule does not contain any charges for the electricity commodity, be it under the Regulated Price Plan, a contract with a retailer or the wholesale market price, as applicable. In addition, the charges in the MONTHLY RATES AND CHARGES - Regulatory Component of this schedule do not apply to a customer that is an embedded wholesale market participant. | L227: =ROUND(LEN(B227), -2) / 100 -> 4
B229: It should be noted that this schedule does not list any charges, assessments or credits that are required by law to be invoiced by a distributor and that are not subject to Board approval, such as the Debt Retirement Charge, the Global Adjustment, the Ontario Clean Energy Benefit and the HST. | L229: =ROUND(LEN(B229), -2) / 100 -> 3
B231: MONTHLY RATES AND CHARGES - Delivery Component
A233: SENTINEL LIGHTING | B233: Service Charge (per connection) | D233: $ | E233: 7.05 | K233: 7_P_MSC
A234: SENTINEL LIGHTING | B234: Green Energy Act Plan Funding Adder - effective April 1, 2014 until March 31, 2015 | D234: $ | E234: 0.15 | K234: 7_P_MSC_Rate_Rider_1
A235: SENTINEL LIGHTING | B235: Rate Rider for Disposition of Post Retirement Actuarial Gain - effective until March 31, 2025 | D235: $ | E235: -0.11 | K235: 7_P_MSC_Rate_Rider_2
A236: SENTINEL LIGHTING | B236: Distribution Volumetric Rate | D236: $/kW | E236: 7.8039 | K236: 7_P_VC_1
A237: SENTINEL LIGHTING | B237: Low Voltage Service Rate | D237: $/kW | E237: 0.0112 | K237: 7_P_LVrate
A238: SENTINEL LIGHTING | B238: Rate Rider for Disposition of Deferred PILs Variance Account 1562 - effective until March 31, 2016 | D238: $/kW | E238: 0.3253 | K238: 7_P_VC_DEFVAR_kW_1
A239: SENTINEL LIGHTING | B239: Rate Rider for Tax Change (2015) - effective until December 31, 2015 | D239: $/kW | E239: -0.0141 | K239: 7_P_VC_Rate_Rider_kW_2
A240: SENTINEL LIGHTING | B240: Rate Rider for Disposition of Deferral/Variance Accounts (2015) - effective until December 31, 2015 | D240: $/kW | E240: 1.1599 | K240: 7_P_VC_DEFVAR_kW_2
A241: SENTINEL LIGHTING | B241: Rate Rider for Disposition of Global Adjustment Account (2015) - effective until December 31, 2015 Applicable only for Non RPP Customers | D241: $/kW | E241: 1.427141225 | K241: 7_P_VC_GA_Rate_Rider_kW_1
A242: SENTINEL LIGHTING | B242: Retail Transmission Rate - Network Service Rate | D242: $/kW | E242: 2.279496381 | K242: 7_P_RTSR_Network
A243: SENTINEL LIGHTING | B243: Retail Transmission Rate - Line and Transformation Connection Service Rate | D243: $/kW | E243: 1.647105586 | K243: 7_P_RTSR_Connection
A244: SENTINEL LIGHTING
A245: SENTINEL LIGHTING | B245: MONTHLY RATES AND CHARGES - Regulatory Component
A246: SENTINEL LIGHTING
A247: SENTINEL LIGHTING | B247: Wholesale Market Service Rate | D247: $/kWh | E247: 0.0044 | K247: 7_P_WMSR
A248: SENTINEL LIGHTING | B248: Rural or Remote Electricity Rate Protection Charge (RRRP) | D248: $/kWh | E248: 0.0013 | K248: 7_P_RRPC
A249: SENTINEL LIGHTING | B249: Standard Supply Service - Administrative Charge (if applicable) | D249: $ | E249: 0.25 | K249: 7_P_SSS
B251: STREET LIGHTING SERVICE CLASSIFICATION
B253: This classification is for roadway lighting with the Municipality. The consumption for this customer is based on the calculated connection load times the required lighting times established in the approved OEB street lighting load shape template. Further servicing details are available in the distributor's Conditions of Service. | L253: =ROUND(LEN(B253), -2) / 100 -> 3
B255: APPLICATION
B257: The application of these rates and charges shall be in accordance with the Licence of the Distributor and any Code or Order of the Board, and amendments thereto as approved by the Board, which may be applicable to the administration of this schedule. | L257: =ROUND(LEN(B257), -2) / 100 -> 3
B259: No rates and charges for the distribution of electricity and charges to meet the costs of any work or service done or furnished for the purpose of the distribution of electricity shall be made except as permitted by this schedule, unless required by the Distributor's Licence or a Code or Order of the Board, and amendments thereto as approved by the Board, or as specified herein. | L259: =ROUND(LEN(B259), -2) / 100 -> 4
B261: Unless specifically noted, this schedule does not contain any charges for the electricity commodity, be it under the Regulated Price Plan, a contract with a retailer or the wholesale market price, as applicable. In addition, the charges in the MONTHLY RATES AND CHARGES - Regulatory Component of this schedule do not apply to a customer that is an embedded wholesale market participant. | L261: =ROUND(LEN(B261), -2) / 100 -> 4
B263: It should be noted that this schedule does not list any charges, assessments or credits that are required by law to be invoiced by a distributor and that are not subject to Board approval, such as the Debt Retirement Charge, the Global Adjustment, the Ontario Clean Energy Benefit and the HST. | L263: =ROUND(LEN(B263), -2) / 100 -> 3
B265: MONTHLY RATES AND CHARGES - Delivery Component
A267: STREET LIGHTING | B267: Service Charge (per connection) | D267: $ | E267: 0.4 | K267: 8_P_MSC
A268: STREET LIGHTING | B268: Green Energy Act Plan Funding Adder - effective April 1, 2014 until March 31, 2015 | D268: $ | E268: 0.15 | K268: 8_P_MSC_Rate_Rider_1
A269: STREET LIGHTING | B269: Rate Rider for Disposition of Post Retirement Actuarial Gain - effective until March 31, 2025 | D269: $ | E269: -0.01 | K269: 8_P_MSC_Rate_Rider_2
A270: STREET LIGHTING | B270: Distribution Volumetric Rate | D270: $/kW | E270: 9.5678 | K270: 8_P_VC_1
A271: STREET LIGHTING | B271: Low Voltage Service Rate | D271: $/kW | E271: 0.0135 | K271: 8_P_LVrate
A272: STREET LIGHTING | B272: Rate Rider for Disposition of Deferred PILs Variance Account 1562 - effective until March 31, 2016 | D272: $/kW | E272: 0.0738 | K272: 8_P_VC_DEFVAR_kW_1
A273: STREET LIGHTING | B273: Rate Rider for Tax Change (2015) - effective until December 31, 2015 | D273: $/kW | E273: -0.0102 | K273: 8_P_VC_Rate_Rider_kW_2
... 69 more rows

Sheet 14. Bill Impacts (hidden)
Z1: =MATCH(A13, '3. Rate Class Selection'!B19:B40,0) -> 1 | AA1: =VLOOKUP(A13, lists!AO:AP,2,0) -> kWh
A11: Choose a Rate Class from the drop-down menu below and click UPDATE. For Street Lighting and USL classes, please ensure that the number of customers is manually entered into cells B30 and B31. Click the UPDATE button to refresh the sheet.
A13: RESIDENTIAL | F13: =IF(ISERROR(SEARCH("MicroFit",A13,1))=FALSE,"Bill impact presentation for this class does not exist.", "") -> 
A15: Consumption | B15: =730*D15*B17 -> 3650000 | C15: kWh | D15: 10000 | E15: =IF(AA1 = "kWh", "", "kW") -> 
A16: RPP Tier One | B16: 600 | C16: kWh | E16: 1
A17: Load Factor | B17: 0.5
A18: Loss Factor | B18: 1
B21: CURRENT ESTIMATED BILL | E21: PROPOSED ESTIMATED BILL
B22: Volume | C22: Current Rate ($) | D22: Current Charge ($) | E22: Volume | F22: Proposed Rate ($) | G22: Proposed Charge ($) | I22: Change ($) | J22: Change (%) | K22: % of Total RPP Bill | L22: % of Total TOU Bill
A23: Energy First Tier (kWh) | B23: 3650000 | C23: 0.075 | D23: =B23*C23 -> 273750 | E23: =B23 -> 3650000 | F23: =C23 -> 0.075 | G23: =E23*F23 -> 273750 | I23: =G23-D23 -> 0 | J23: =I23/D23 -> 0 | K23: =G23/G48 -> 0.8646078577
A24: Energy Second Tier (kWh) | B24: 0 | C24: 0.088 | D24: =B24*C24 -> 0 | E24: =B24 -> 0 | F24: =C24 -> 0.088 | G24: =E24*F24 -> 0 | I24: =G24-D24 -> 0 | J24: 0 | K24: =G24/G48 -> 0
A26: TOU - Off Peak | B26: =0.64*$B$15*$B$18 -> 2336000 | C26: 0.065 | D26: =C26*B26 -> 151840 | E26: =B26 -> 2336000 | F26: =C26 -> 0.065 | G26: =F26*E26 -> 151840 | I26: =G26-D26 -> 0 | J26: =I26/D26 -> 0 | L26: =G26/G54 -> 0.449726096
A27: TOU - Mid Peak | B27: =0.18*$B$15*$B$18 -> 657000 | C27: 0.1 | D27: =C27*B27 -> 65700 | E27: =B27 -> 657000 | F27: =C27 -> 0.1 | G27: =F27*E27 -> 65700 | H27: =G27*F27 -> 6570 | I27: =G27-D27 -> 0 | J27: =I27/D27 -> 0 | L27: =G27/G54 -> 0.1945930223
A28: TOU - On Peak | B28: =0.18*$B$15*$B$18 -> 657000 | C28: 0.117 | D28: 76869 | F28: =C28 -> 0.117 | G28: =F28*E28 -> 0 | H28: =G28*F28 -> 0 | J28: =I28/D28 -> 0 | L28: =G28/G54 -> 0
A30: Service Charge | B30: 1 | D30: 0 | G30: =F30*E30 -> 0 | H30: 0 | J30: 0 | K30: 0 | L30: 0
A31: Service Charge Rate Rider(s) | B31: 1 | C31: 0 | D31: 0 | F31: 0 | G31: 0 | H31: 0 | J31: 0 | K31: 0 | L31: 0
A32: Distribution Volumetric Rate | B32: 10000 | D32: 0 | E32: =B32 -> 10000 | G32: 0 | H32: 0 | I32: =G32-D32 -> 0 | J32: 0 | K32: 0 | L32: 0
A33: Low Voltage Volumetric Rate | B33: 10000 | D33: 0 | G33: 0 | H33: 0 | J33: 0 | K33: 0 | L33: 0
A34: Distribution Volumetric Rate Rider(s) | B34: 10000 | C34: 0 | D34: 0 | F34: 1.2025 | G34: 0 | H34: 0 | J34: 0 | K34: =G34/G48 -> 0 | L34: =G34/G54 -> 0
A35: Total: Distribution | D35: =ROUND(SUM(D30:D34),2) -> 0 | G35: =ROUND(SUM(G30:G34),2) -> 0 | J35: 0 | K35: =G35/G48 -> 0 | L35: =G35/G54 -> 0
A36: Total: Retail Transmission
A37: Sub-Total: Delivery (Distribution and Retail Transmission) | D37: =SUM(D36,D35) -> 0 | G37: =SUM(G36,G35) -> 0 | J37: 0 | K37: =G37/G48 -> 0 | L37: =G37/G54 -> 0
A38: Wholesale Market Service Rate | B38: 3650000 | C38: 0 | D38: =B38*C38 -> 0 | F38: =C38 -> 0 | G38: =E38*F38 -> 0 | J38: 0 | K38: 0 | L38: 0
A39: Rural Rate Protection Charge | B39: 3650000 | C39: 0 | D39: =B39*C39 -> 0 | E39: 3650000 | F39: 0 | G39: =E39*F39 -> 0 | I39: =G39-D39 -> 0 | J39: 0 | K39: 0 | L39: 0
A40: Standard Supply Service – Administration Charge (if applicable) | B40: 1 | C40: 0 | D40: =B40*C40 -> 0 | E40: 1 | F40: 0 | G40: =E40*F40 -> 0 | I40: =G40-D40 -> 0 | J40: 0 | K40: 0 | L40: 0
A41: Sub-Total: Regulatory | D41: =SUM(D38:D40) -> 0 | G41: =SUM(G38:H40) -> 0 | I41: =G41-D41 -> 0 | J41: 0 | K41: 0 | L41: 0
A42: Debt Retirement Charge (DRC) | B42: 3650000 | C42: 0.007 | D42: =B42*C42 -> 25550 | E42: =B42 -> 3650000 | F42: =C42 -> 0.007 | G42: =E42*F42 -> 25550 | I42: =G42-D42 -> 0 | J42: =I42/D42 -> 0 | K42: =G42/G48 -> 0.08069673339 | L42: =G42/G54 -> 0.07567506422
A44: Total Bill on RPP (before taxes) | D44: 299300 | G44: 311325 | I44: =G44-D44 -> 12025 | J44: =I44/D44 -> 0.04017707985 | K44: =G44/G48 -> 0.9832841691
A45: HST | C45: 0.13 | D45: =C45*D44 -> 38909 | F45: =C45 -> 0.13 | G45: =F45*G44 -> 40472.25 | I45: =G45-D45 -> 1563.25 | J45: =I45/D45 -> 0.04017707985 | K45: =G45/G48 -> 0.127826942
A46: Total Bill (including HST) | D46: =D45+D44 -> 338209 | G46: =G45+G44 -> 351797.25 | I46: =G46-D46 -> 13588.25 | J46: =I46/D46 -> 0.04017707985 | K46: =G46/G48 -> 1.111111111
A47: Ontario Clean Energy Benefit (OCEB) | C47: -0.1 | D47: =-0.1*D46 -> -33820.9 | F47: =C47 -> -0.1 | G47: =-0.1*G46 -> -35179.725 | I47: =G47-D47 -> -1358.825 | J47: =I47/D47 -> 0.04017707985 | K47: =G47/G48 -> -0.1111111111
A48: Total Bill on RPP (including OCEB) | D48: =D46+D47 -> 304388.1 | G48: =G46+G47 -> 316617.525 | I48: =G48-D48 -> 12229.425 | J48: =I48/D48 -> 0.04017707985 | K48: =G48/G48 -> 1
A50: Total Bill on TOU (before taxes) | D50: 319959 | G50: 331984 | I50: =G50-D50 -> 12025 | J50: =I50/D50 -> 0.03758294031 | L50: =G50/G54 -> 0.9832841691
A51: HST | C51: 0.13 | D51: =C51*D50 -> 41594.67 | F51: =C51 -> 0.13 | G51: =F51*G50 -> 43157.92 | I51: =G51-D51 -> 1563.25 | J51: =I51/D51 -> 0.03758294031 | L51: =G51/G54 -> 0.127826942
A52: Total Bill (including HST) | D52: =D51+D50 -> 361553.67 | G52: =G51+G50 -> 375141.92 | I52: =G52-D52 -> 13588.25 | J52: =I52/D52 -> 0.03758294031 | L52: =G52/G54 -> 1.111111111
A53: Ontario Clean Energy Benefit (OCEB) | C53: -0.1 | D53: =-0.1*D52 -> -36155.367 | F53: =C53 -> -0.1 | G53: =-0.1*G52 -> -37514.192 | I53: =G53-D53 -> -1358.825 | J53: =I53/D53 -> 0.03758294031 | L53: =G53/G54 -> -0.1111111111
A54: Total Bill on TOU (including OCEB) | D54: =D52+D53 -> 325398.303 | G54: =G52+G53 -> 337627.728 | I54: =G54-D54 -> 12229.425 | J54: =I54/D54 -> 0.03758294031 | L54: =G54/G54 -> 1
A57: Applicants must provide bill impacts for residential at 800 kWh and GS<50kW at 2000 kWh. In addition, their filing should cover the range that is relevant to their service territory, class by class. A general guideline of consumption levels follows: Residential (kWh) - 100, 250, 500, 800, 1000, 1500, 2000 GS<50kW (kWh) - 1000, 2000, 5000, 10000, 15000 GS>50kW (kW) 100, 500, 1000 Large User - range appropriate for utility Street/Sentinel Lighting Classes and USL - 150 kWh and 1 kW, range appropriate for utility.

Sheet 28. Bill Impacts
S1: 1 | Z1: =MATCH(C14, '3. Rate Class Selection'!B19:B40,0) -> 1 | AA1: =VLOOKUP(C14, lists!AO:AP,2,0) -> kWh
A14: Rate Class | C14: RESIDENTIAL
A16: Loss Factor | E16: 1.0209
A18: Consumption | C18: kWh | E18: 800
A20: If Billed on a kW basis:
A21: Demand | C21: kW
E25: Current Board-Approved | I25: Proposed | M25: Impact
E26: Rate | F26: Volume | G26: Charge | I26: Rate | J26: Volume | K26: Charge | M26: $ Change | N26: % Change
E27: ($) | G27: ($) | I27: ($) | K27: ($)
A28: Monthly Service Charge | E28: 14.3 | F28: 1 | G28: =F28*E28 -> 14.3 | I28: 14.49 | J28: 1 | K28: =J28*I28 -> 14.49 | M28: =K28-G28 -> 0.19 | N28: =IF((G28)=0,"",(M28/G28)) -> 0.01328671329
A29: Distribution Volumetric Rate | E29: 0.0174 | F29: 800 | G29: =F29*E29 -> 13.92 | I29: 0.0176 | J29: =F29 -> 800 | K29: =J29*I29 -> 14.08 | M29: 0.16 | N29: 0.01149425287
A30: Fixed Rate Riders | E30: 0.84 | F30: 1 | G30: =F30*E30 -> 0.84 | I30: 0.7 | J30: 1 | K30: =J30*I30 -> 0.7 | M30: -0.14 | N30: -0.1666666667
A31: Volumetric Rate Riders | E31: 0.0003 | F31: 800 | G31: =F31*E31 -> 0.24 | I31: 0.0003 | J31: =F31 -> 800 | K31: =J31*I31 -> 0.24 | M31: 0 | N31: 0
A32: Sub-Total A (excluding pass through) | G32: =SUM(G28:G31) -> 29.3 | K32: =SUM(K28:K31) -> 29.51 | M32: 0.21 | N32: 0.007167235495
A33: Line Losses on Cost of Power | E33: =E45*0.64+E46*0.18+E47*0.18 -> 0.08392 | F33: =E18*(E16-1) -> 16.72 | G33: =E33*F33 -> 1.4031424 | I33: =I45*0.64+I46*0.18+I47*0.18 -> 0.08392 | J33: =F33 -> 16.72 | K33: =I33*J33 -> 1.4031424 | M33: 0 | N33: 0
A34: Total Deferral/Variance Account Rate Riders | E34: 0.0001 | F34: 800 | G34: =F34*E34 -> 0.08 | I34: 0.0027 | J34: =F34 -> 800 | K34: =J34*I34 -> 2.16 | M34: 2.08 | N34: 26
A35: Low Voltage Service Charge | F35: 800 | G35: =F35*E35 -> 0 | J35: =F35 -> 800 | K35: =J35*I35 -> 0 | M35: 0
A36: Smart Meter Entity Charge | E36: 0.79 | F36: 1 | G36: =F36*E36 -> 0.79 | I36: 0.79 | J36: =F36 -> 1 | K36: =J36*I36 -> 0.79 | M36: 0 | N36: 0
A37: Sub-Total B - Distribution (includes Sub-Total A) | G37: =SUM(G32:G36) -> 31.5731424 | K37: =SUM(K32:K36) -> 33.8631424 | M37: =K37-G37 -> 2.29 | N37: =IF((G37)=0,"",(M37/G37)) -> 0.07252999942
A38: RTSR - Network | E38: 0.0072 | F38: 816.72 | G38: =F38*E38 -> 5.880384 | I38: 0.0078 | J38: =F38 -> 816.72 | K38: =J38*I38 -> 6.370416 | M38: 0.490032 | N38: 0.08333333333
A39: RTSR - Connection and/or Line and Transformation Connection | E39: 0.0053 | F39: 816.72 | G39: =F39*E39 -> 4.328616 | I39: 0.0058 | J39: =F39 -> 816.72 | K39: =J39*I39 -> 4.736976 | M39: 0.40836 | N39: 0.09433962264
A40: Sub-Total C - Delivery (including Sub-Total B) | G40: =SUM(G37:G39) -> 41.7821424 | K40: =SUM(K37:K39) -> 44.9705344 | M40: 3.188392 | N40: 0.07630992134
A41: Wholesale Market Service Charge (WMSC) | E41: 0.0044 | F41: =E18*E16 -> 816.72 | G41: =F41*E41 -> 3.593568 | I41: 0.0044 | J41: =E18*E16 -> 816.72 | K41: =J41*I41 -> 3.593568 | M41: 0 | N41: 0
A42: Rural and Remote Rate Protection (RRRP) | E42: 0.0013 | F42: =E18*E16 -> 816.72 | G42: 1.061736 | I42: 0.0013 | J42: =E18*E16 -> 816.72 | K42: 1.061736 | M42: 0 | N42: 0
A43: Standard Supply Service Charge | E43: 0.25 | F43: 1 | G43: 0.25 | I43: 0.25 | J43: 1 | K43: 0.25 | M43: 0 | N43: 0
A44: Debt Retirement Charge (DRC) | E44: 0.007 | F44: =E18 -> 800 | G44: 5.6 | I44: 0.007 | J44: =E18 -> 800 | K44: 5.6 | M44: 0 | N44: 0
A45: TOU - Off Peak | E45: 0.067 | F45: 512 | G45: 34.304 | I45: 0.067 | J45: =F45 -> 512 | K45: 34.304 | M45: 0 | N45: 0
A46: TOU - Mid Peak | E46: 0.104 | F46: 144 | G46: 14.976 | I46: 0.104 | J46: =F46 -> 144 | K46: 14.976 | M46: 0 | N46: 0
A47: TOU - On Peak | E47: 0.124 | F47: 144 | G47: 17.856 | I47: 0.124 | J47: =F47 -> 144 | K47: 17.856 | M47: 0 | N47: 0
A49: Total Bill on TOU (before Taxes) | G49: =SUM(G40:G44,G45:G47) -> 119.4234464 | K49: =SUM(K40:K44,K45:K47) -> 122.6118384 | M49: =K49-G49 -> 3.188392 | N49: =IF((G49)=0,"",(M49/G49)) -> 0.0266982079
A50: HST | E50: 0.13 | G50: =G49*E50 -> 15.52504803 | I50: 0.13 | K50: =K49*I50 -> 15.93953899 | M50: 0.41449096 | N50: 0.0266982079
A51: Total Bill (including HST) | G51: =G49+G50 -> 134.9484944 | K51: =K49+K50 -> 138.5513774 | M51: 3.60288296 | N51: 0.0266982079
A52: Ontario Clean Energy Benefit 1 | G52: =ROUND(-G51*10%,2) -> -13.49 | K52: =ROUND(-K51*10%,2) -> -13.86 | M52: -0.37 | N52: 0.02742772424
A53: Total Bill on TOU (including OCEB) | G53: =G51+G52 -> 121.4584944 | K53: =K51+K52 -> 124.6913774 | M53: 3.23288296 | N53: 0.02661718289
A58: Note: For distributors who have a majority of customers on Tiered pricing, please provide a separate bill impact for such customers.

Sheet lists (hidden)
A1: DISTRIBUTED GENERATION [DGEN] | B1: Embedded Distributor | C1: =COUNTA(B1:B17) -> 4 | I1: A Standby Service Charge will be applied for a month where standby power is not provided. The applicable rate is the approved Distribution Volumetric Rate of the applicable service class and is applied to gross metered demand or contracted amount, whichever is greater. A monthly administration charge of $200, for simple metering arrangements, or $500, for complex metering arrangements, will also be applied. | L1: Loss Factors | N1: Units | O1: Units1 | P1: Units2 | Z1: Account History | AA1: Account set up charge/change of occupancy charge (plus credit agency costs if applicable) | AB1: Total Loss Factor – Embedded Distributor – Hydro One Networks Inc. | AL1: Algoma Power Inc. | AM1: Algoma Power Inc. | AO1: DISTRIBUTED GENERATION [DGEN] | AP1: kW | AT1: Sub-Total: Delivery (Distribution and Retail Transmission)
A2: EMBEDDED DISTRIBUTOR | B2: General Service 3,000 to 4,999 kW | I2: Distribution Volumetric Rate | L2: Total Loss Factor – Primary Metered Customer | N2: $ | O2: $/kWh | P2: $ | Z2: Account set up charge/change of occupancy charge | AA2: Administrative Billing Charge | AB2: Total Loss Factor – Primary Metered Customer | AL2: Atikokan Hydro Inc. | AM2: Atikokan Hydro Inc. | AO2: EMBEDDED DISTRIBUTOR | AP2: kW | AT2: Wholesale Market Service Rate | AW2: =AU2*AV2 -> 0 | AX2: =AU2 -> 0 | AY2: 0 | AZ2: =AX2*AY2 -> 0 | BB2: =AZ2-AW2 -> 0 | BC2: =BB2/AW2 -> 
A3: EMBEDDED DISTRIBUTOR | B3: General Service 1,000 to 4,999 kW | I3: Distribution Volumetric Rate - $/kW of contracted amount | L3: Total Loss Factor – Primary Metered Customer < 5,000 kW | N3: $/kWh | O3: $/kW | P3: % | W3: MSC | Z3: Account set up charge/change of occupancy charge (plus credit agency costs if applicable – Residential) | AA3: Bell Canada Pole Rentals | AB3: Total Loss Factor – Primary Metered Customer < 5,000 kW | AL3: Bluewater Power Distribution Corporation | AM3: Bluewater Power Distribution Corporation | AO3: EMBEDDED DISTRIBUTOR | AP3: kW | AT3: Rural or Remote Electricity Rate Protection Charge (RRRP) | AW3: =AU3*AV3 -> 0 | AX3: 0 | AY3: 0 | AZ3: =AX3*AY3 -> 0 | BB3: =AZ3-AW3 -> 0 | BC3: =BB3/AW3 -> 
A4: FARMS - SINGLE PHASE ENERGY-BILLED [F1] | B4: General Service Equal To Or Greater Than 1,500 kW - Interval Metered | I4: Distribution Wheeling Service Rate | L4: Total Loss Factor – Primary Metered Customer > 5,000 kW | N4: $/kW | O4: $/kVA | W4: SM_Rate_Adder | Z4: Account set up charge/change of occupancy charge (plus credit agency costs if applicable) | AA4: Clearance Pole Attachment charge $/pole/year | AB4: Total Loss Factor – Primary Metered Customer > 5,000 kW | AL4: Brant County Power Inc. | AM4: Brant County Power Inc. | AO4: FARMS - SINGLE PHASE ENERGY-BILLED [F1] | AP4: kWh | AT4: Standard Supply Service – Administration Charge (if applicable) | AW4: =AU4*AV4 -> 0 | AX4: 0 | AY4: 0 | AZ4: =AX4*AY4 -> 0 | BB4: =AZ4-AW4 -> 0 | BC4: =BB4/AW4 -> 
A5: FARMS - THREE PHASE ENERGY-BILLED [F3] | I5: Electricity Rate | L5: Total Loss Factor – Secondary Metered Customer | N5: $/kVA | W5: MSC_Rate_Rider_ | Z5: Arrears certificate | AA5: Collection of account charge – no disconnection | AB5: Total Loss Factor – Secondary Metered Customer | AL5: Brantford Power Inc. | AM5: Brantford Power Inc. | AO5: FARMS - THREE PHASE ENERGY-BILLED [F3] | AP5: kWh | AT5: Sub-Total: Regulatory | AW5: =SUM(AW2:AW4) -> 0 | AZ5: =SUM(AZ2:BA4) -> 0 | BB5: =AZ5-AW5 -> 0 | BC5: =BB5/AW5 -> 
A6: GENERAL SERVICE - COMMERCIAL | I6: Electricity Rate - All Additional kWh | L6: Total Loss Factor – Secondary Metered Customer < 5,000 kW | W6: VC | Z6: Arrears certificate (credit reference) | AA6: Collection of account charge – no disconnection – after regular hours | AB6: Total Loss Factor – Secondary Metered Customer < 5,000 kW | AL6: Burlington Hydro Inc. | AM6: Burlington Hydro Inc. | AO6: GENERAL SERVICE - COMMERCIAL | AP6: kW | AT6: Debt Retirement Charge (DRC) | AW6: =AU6*AV6 -> 0 | AX6: =AU6 -> 0 | AY6: =AV6 -> 0 | AZ6: =AX6*AY6 -> 0 | BB6: =AZ6-AW6 -> 0 | BC6: =BB6/AW6 -> 
A7: GENERAL SERVICE - INSTITUTIONAL | I7: Electricity Rate - First 250 kWh | AL7: Cambridge and North Dumfries Hydro Inc. | AM7: Cambridge and North Dumfries Hydro Inc. | AO7: GENERAL SERVICE - INSTITUTIONAL | AP7: kW
A8: GENERAL SERVICE 1,000 TO 2,999 KW | I8: Electricity Rate -All Additional kWh | L8: Total Loss Factor – Secondary Metered Customer > 5,000 kW | W8: VC_Rate_Rider_ | Z8: Charge to certify cheque | AA8: Collection of account charge – no disconnection - during regular business hours | AB8: Total Loss Factor – Secondary Metered Customer > 5,000 kW | AL8: Canadian Niagara Power Inc. | AM8: Canadian Niagara Power Inc. | AO8: GENERAL SERVICE 1,000 TO 2,999 KW | AP8: kW | AT8: Total Bill on RPP (before taxes) | BB8: =AZ8-AW8 -> 0
A9: GENERAL SERVICE 1,000 TO 4,999 KW | I9: Electricity Rate First 1,000 kWh | L9: Distribution Loss Factor - Secondary Metered Customer < 5,000 kW | W9: VC_GA_Rate_Rider_kW_ | Z9: Collection of Account Charge – No Disconnection | AA9: Collection of account charge – no disconnection – during regular hours | AL9: Centre Wellington Hydro Ltd. | AM9: Centre Wellington Hydro Ltd. | AO9: GENERAL SERVICE 1,000 TO 4,999 KW | AP9: kW | AT9: HST | AW9: =AV9*AW8 -> 0 | AY9: =AV9 -> 0 | AZ9: =AY9*AZ8 -> 0 | BB9: =AZ9-AW9 -> 0 | BC9: =BB9/AW9 -> 
A10: GENERAL SERVICE 1,000 TO 4,999 KW - INTERVAL METERS | I10: Electricity Rate First 25,000 kWh | L10: Distribution Loss Factor - Secondary Metered Customer > 5,000 kW | W10: VC_LV_Rate | Z10: Credit Card Convenience Charge | AA10: Collection/Disconnection/Load Limiter/Reconnection – if in Community | AL10: Chapleau Public Utilities Corporation | AM10: Chapleau Public Utilities Corporation | AO10: GENERAL SERVICE 1,000 TO 4,999 KW - INTERVAL METERS | AP10: kW | AT10: Total Bill (including HST) | AW10: =AW9+AW8 -> 0 | AZ10: =AZ9+AZ8 -> 0 | BB10: =AZ10-AW10 -> 0 | BC10: =BB10/AW10 -> 
A11: GENERAL SERVICE 1,000 TO 4,999 KW (CO-GENERATION) | I11: Electricity Rate First 6,000 kWh | L11: Distribution Loss Factor - Primary Metered Customer < 5,000 kW | W11: RTSR_Network | Z11: Credit check (plus credit agency costs) | AA11: Credit Card Convenience Charge | AL11: Collus PowerStream Corporation | AM11: Collus PowerStream Corporation | AO11: GENERAL SERVICE 1,000 TO 4,999 KW (CO-GENERATION) | AP11: kW | AT11: Ontario Clean Energy Benefit (OCEB) | AW11: =-0.1*AW10 -> 0 | AY11: =AV11 -> 0 | AZ11: =-0.1*AZ10 -> 0 | BB11: =AZ11-AW11 -> 0 | BC11: =BB11/AW11 -> 
A12: GENERAL SERVICE 1,500 TO 4,999 KW | I12: Electricity Rate Next 1,500 kWh | L12: Distribution Loss Factor - Primary Metered Customer > 5,000 kW | W12: RTSR_Connection | Z12: Credit reference Letter | AA12: Disconnect/Reconnect at meter – after regular hours | AL12: Cooperative Hydro Embrun Inc. | AM12: Cooperative Hydro Embrun Inc. | AO12: GENERAL SERVICE 1,500 TO 4,999 KW | AP12: kW | AT12: Total Bill on RPP (including OCEB) | AW12: =AW10+AW11 -> 0 | AZ12: =AZ10+AZ11 -> 0 | BB12: =AZ12-AW12 -> 0 | BC12: =BB12/AW12 -> 
A13: GENERAL SERVICE 2,500 TO 4,999 KW | I13: General Service 1,500 to 4,999 kW customer | AL13: E.L.K. Energy Inc. | AM13: E.L.K. Energy Inc. | AO13: GENERAL SERVICE 2,500 TO 4,999 KW | AP13: kW
A14: GENERAL SERVICE 3,000 TO 4,999 KW | I14: General Service 50 to 1,499 kW customer | L14: Total Loss Factor - Embedded Distributor | W14: RTSR_Network_Interval | Z14: Credit reference/credit check (plus credit agency costs – General Service) | AA14: Disconnect/Reconnect at meter – during regular hours | AL14: Enersource Hydro Mississauga Inc. | AM14: Enersource Hydro Mississauga Inc. | AO14: GENERAL SERVICE 3,000 TO 4,999 KW | AP14: kW | AT14: Total Bill on TOU (before taxes) | BB14: =AZ14-AW14 -> 0
A15: GENERAL SERVICE 3,000 TO 4,999 KW - INTERMEDIATE USE | I15: General Service Large Use customer | L15: Total Loss Factor – Embedded Distributor – Hydro One Networks Inc. | W15: RTSR_Connection_Interval | Z15: Credit Reference/credit check (plus credit agency costs) | AA15: Disconnect/Reconnect at pole – after regular hours | AL15: Entegrus Powerlines Inc. | AM15: Entegrus Powerlines Inc. | AO15: GENERAL SERVICE 3,000 TO 4,999 KW - INTERMEDIATE USE | AP15: kW | AT15: HST | AW15: =AV15*AW14 -> 0 | AY15: =AV15 -> 0 | AZ15: =AY15*AZ14 -> 0 | BB15: =AZ15-AW15 -> 0 | BC15: =BB15/AW15 -> 
A16: GENERAL SERVICE 3,000 TO 4,999 KW - INTERVAL METERED | I16: Green Energy Act Initiatives Funding Adder - effective until the date of the next cost of service-based rate order | W16: RTSR_Network_Interval_GR1000kW | Z16: Dispute Test – Commercial self contained -- MC | AA16: Disconnect/Reconnect at pole – during regular hours | AL16: Entegrus Powerlines Inc. - Dutton Service Area | AM16: Entegrus Powerlines Inc. - Dutton Service Area | AO16: GENERAL SERVICE 3,000 TO 4,999 KW - INTERVAL METERED | AP16: kW | AT16: Total Bill (including HST) | AW16: =AW15+AW14 -> 0 | AZ16: =AZ15+AZ14 -> 0 | BB16: =AZ16-AW16 -> 0 | BC16: =BB16/AW16 -> 
A17: GENERAL SERVICE 3,000 TO 4,999 KW - TIME OF USE | I17: Green Energy Act Plan Funding Adder | W17: RTSR_Connection_Interval_GR1000kW | Z17: Dispute Test – Commercial TT -- MC | AA17: Disconnect/Reconnect Charge – At Meter – After Hours | AL17: Entegrus Powerlines Inc. - former Chatham-Kent Hydro Service Area | AM17: Entegrus Powerlines Inc. - former Chatham-Kent Hydro Service Area | AO17: GENERAL SERVICE 3,000 TO 4,999 KW - TIME OF USE | AP17: kW | AT17: Ontario Clean Energy Benefit (OCEB) | AW17: =-0.1*AW16 -> 0 | AY17: =AV17 -> 0 | AZ17: =-0.1*AZ16 -> 0 | BB17: =AZ17-AW17 -> 0 | BC17: =BB17/AW17 -> 
A18: GENERAL SERVICE 50 TO 1,000 KW | I18: Green Energy Act Plan Funding Adder - effective April 1, 2013 until March 31, 2014 | W18: RTSR_Line_Connection | Z18: Dispute Test – Residential | AA18: Disconnect/Reconnect Charge – At Meter – During Regular Hours | AL18: Entegrus Powerlines Inc. - Newbury Service Area | AM18: Entegrus Powerlines Inc. - Newbury Service Area | AO18: GENERAL SERVICE 50 TO 1,000 KW | AP18: kW | AT18: Total Bill on TOU (including OCEB) | AW18: =AW16+AW17 -> 0 | AZ18: =AZ16+AZ17 -> 0 | BB18: =AZ18-AW18 -> 0 | BC18: =BB18/AW18 -> 
A19: GENERAL SERVICE 50 TO 1,000 KW - INTERVAL METERS | I19: Green Energy Act Plan Funding Adder - effective April 1, 2014 until March 31, 2015 | W19: RTSR_Transformer_Connection | Z19: Duplicate Invoices for previous billing | AA19: Disconnect/Reconnect Charge – At Pole – After Hours | AL19: Entegrus Powerlines Inc. - Strathroy, Mount Brydges and Parkhill Service Areas | AM19: Entegrus Powerlines Inc. - Strathroy, Mount Brydges and Parkhill Service Areas | AO19: GENERAL SERVICE 50 TO 1,000 KW - INTERVAL METERS | AP19: kW
A20: GENERAL SERVICE 50 TO 1,000 KW - NON INTERVAL METERS | I20: ICM Rate Rider (2014) - in effect until the effective date of the next cost of service rates | W20: WMSR | Z20: Easement Letter | AA20: Disconnect/Reconnect Charge – At Pole – During Regular Hours | AL20: ENWIN Utilities Ltd. | AM20: ENWIN Utilities Ltd. | AO20: GENERAL SERVICE 50 TO 1,000 KW - NON INTERVAL METERS | AP20: kW
A21: GENERAL SERVICE 50 TO 1,499 KW | I21: Low Voltage Service Charge | W21: RRRP | Z21: Income Tax Letter | AA21: Disconnect/Reconnect Charges for non payment of account - At Meter After Hours | AL21: Erie Thames Powerlines Corporation | AM21: Erie Thames Powerlines Corporation | AO21: GENERAL SERVICE 50 TO 1,499 KW | AP21: kW
A22: GENERAL SERVICE 50 TO 1,499 KW - INTERVAL METERED | I22: Low Voltage Service Rate | W22: SPC | Z22: Interval Meter Interrogation | AA22: Disconnect/Reconnect charges for non payment of account – at meter after regular hours | AL22: Espanola Regional Hydro Distribution Corporation | AM22: Espanola Regional Hydro Distribution Corporation | AO22: GENERAL SERVICE 50 TO 1,499 KW - INTERVAL METERED | AP22: kW
A23: GENERAL SERVICE 50 TO 2,499 KW | I23: Low Voltage Volumetric Rate | W23: DRC | Z23: Interval meter request change | AA23: Disconnect/Reconnect Charges for non payment of account - At Meter During Regular Hours | AL23: Essex Powerlines Corporation | AM23: Essex Powerlines Corporation | AO23: GENERAL SERVICE 50 TO 2,499 KW | AP23: kW
A24: GENERAL SERVICE 50 TO 2,999 KW | I24: LRAM Rate Rider - Effective Until April 30, 2015 | W24: SSS | Z24: Legal letter | AA24: Disconnect/Reconnect charges for non payment of account – at meter during regular hours | AL24: Festival Hydro Inc. | AM24: Festival Hydro Inc. | AO24: GENERAL SERVICE 50 TO 2,999 KW | AP24: kW
A25: GENERAL SERVICE 50 TO 2,999 KW - INTERVAL METERED | I25: Minimum Distribution Charge - per KW of maximum billing demand in the previous 11 months | W25: SFLF | Z25: Legal letter charge | AA25: Disconnect/Reconnect charges for non payment of account – at pole after regular hours | AL25: Fort Frances Power Corporation | AM25: Fort Frances Power Corporation | AO25: GENERAL SERVICE 50 TO 2,999 KW - INTERVAL METERED | AP25: kW
A26: GENERAL SERVICE 50 TO 2,999 KW - TIME OF USE | B26: January | I26: Monthly Distribution Wheeling Service Rate - Dedicated LV Line | W26: DLF_Secondary_LT_5000kW | Z26: Meter dispute charge plus Measurement Canada fees (if meter found correct) | AA26: Disconnect/Reconnect charges for non payment of account – at pole during regular hours | AL26: Greater Sudbury Hydro Inc. | AM26: Greater Sudbury Hydro Inc. | AO26: GENERAL SERVICE 50 TO 2,999 KW - TIME OF USE | AP26: kW
A27: GENERAL SERVICE 50 TO 4,999 KW | B27: February | I27: Monthly Distribution Wheeling Service Rate - Hydro One Networks | W27: DLF_Secondary_GT_5000kW | Z27: Notification charge | AA27: Disconnect/Reconnection for >300 volts - after regular hours | AL27: Grimsby Power Inc. | AM27: Grimsby Power Inc. | AO27: GENERAL SERVICE 50 TO 4,999 KW | AP27: kW
A28: GENERAL SERVICE 50 TO 4,999 KW - INTERVAL METERED | B28: March | I28: Monthly Distribution Wheeling Service Rate - Shared LV Line | W28: DLF_Primary_LT_5000kW | Z28: Pulling Post Dated Cheques | AA28: Disconnect/Reconnection for >300 volts - during regular hours | AL28: Guelph Hydro Electric Systems Inc. | AM28: Guelph Hydro Electric Systems Inc. | AO28: GENERAL SERVICE 50 TO 4,999 KW - INTERVAL METERED | AP28: kW
A29: GENERAL SERVICE 50 TO 4,999 KW - TIME OF USE | B29: April | I29: Monthly Distribution Wheeling Service Rate - Waterloo North Hydro | W29: DLF_Primary_GT_5000kW | Z29: Request for other billing information | AA29: Disposal of Concrete Poles | AL29: Haldimand County Hydro Inc. | AM29: Haldimand County Hydro Inc. | AO29: GENERAL SERVICE 50 TO 4,999 KW - TIME OF USE | AP29: kW
A30: GENERAL SERVICE 50 TO 4,999 KW (COGENERATION) | B30: May | I30: Rate Rider for Application of Tax Change - effective until April 30, 2015 | W30: TLF_Secondary_LT_5000kW | Z30: Returned cheque (plus bank charges) | AA30: Dispute Test – Commercial TT -- MC | AL30: Halton Hills Hydro Inc. | AM30: Halton Hills Hydro Inc. | AO30: GENERAL SERVICE 50 TO 4,999 KW (COGENERATION) | AP30: kW
A31: GENERAL SERVICE 50 TO 4,999 KW (FORMERLY TIME OF USE) | B31: June | I31: Rate Rider for Application of Tax Change - effective until December 31, 2014 | W31: TLF_Secondary_GT_5000kW | Z31: Returned cheque charge (plus bank charges) | AA31: Install/Remove load control device – after regular hours | AL31: Hearst Power Distribution Company Limited | AM31: Hearst Power Distribution Company Limited | AO31: GENERAL SERVICE 50 TO 4,999 KW (FORMERLY TIME OF USE) | AP31: kW
A32: GENERAL SERVICE 50 TO 499 KW | B32: July | I32: Rate Rider for Application of Tax Change (2014) - effective until April 30, 2015 | W32: TLF_Primary_LT_5000kW | Z32: Special Billing Service (aggregation) | AA32: Install/Remove load control device – during regular hours | AL32: Horizon Utilities Corporation | AM32: Horizon Utilities Corporation | AO32: GENERAL SERVICE 50 TO 499 KW | AP32: kW
A33: GENERAL SERVICE 50 TO 699 KW | B33: August | I33: Rate Rider for Application of Tax Change (per connection) - effective until April 30, 2015 | W33: TLF_Primary_GT_5000kW | Z33: Special Billing Service (sub-metering charge per meter) | AA33: Interval Meter Interrogation | AL33: Hydro 2000 Inc. | AM33: Hydro 2000 Inc. | AO33: GENERAL SERVICE 50 TO 699 KW | AP33: kW
A34: GENERAL SERVICE 50 TO 999 KW | B34: September | I34: Rate Rider for CGAAP Accounting Changes (2013) - effective until April 30, 2017 | W34: TLF_EmbeddedDistributor | Z34: Special meter reads | AA34: Interval Meter Load Management Tool Charge $/month | AL34: Hydro Hawkesbury Inc. | AM34: Hydro Hawkesbury Inc. | AO34: GENERAL SERVICE 50 TO 999 KW | AP34: kW
A35: GENERAL SERVICE 50 TO 999 KW - INTERVAL METERED | B35: October | I35: Rate Rider for Deferral/Variance Account (2012) - effective unitl April 30, 2016 | Z35: Statement of Account | AA35: Interval meter request change | AL35: Hydro One Brampton Networks Inc. | AM35: Hydro One Brampton Networks Inc. | AO35: GENERAL SERVICE 50 TO 999 KW - INTERVAL METERED | AP35: kW
A36: GENERAL SERVICE 500 TO 4,999 KW | B36: November | I36: Rate Rider for Deferral/Variance Account Disposition – effective until April 30, 2015 | Z36: Unprocessed Payment Charge (plus bank charges) | AA36: Late Payment – per annum | AL36: Hydro One Networks Inc. | AM36: Hydro One Networks Inc. | AO36: GENERAL SERVICE 500 TO 4,999 KW | AP36: kW
A37: GENERAL SERVICE 700 TO 4,999 KW | B37: December | I37: Rate Rider for Deferral/Variance Account Disposition (2012) - effective until April 30, 2016 | AA37: Late Payment – per month | AL37: Hydro Ottawa Limited | AM37: Hydro Ottawa Limited | AO37: GENERAL SERVICE 700 TO 4,999 KW | AP37: kW
A38: GENERAL SERVICE DEMAND BILLED (50 KW AND ABOVE) [GSD] | I38: Rate Rider for Deferral/Variance Account Disposition (2013) - effective until April 30, 2014 | AA38: Layout fees | AL38: Innisfil Hydro Distribution Systems Limited | AM38: Innisfil Hydro Distribution Systems Limited | AO38: GENERAL SERVICE DEMAND BILLED (50 KW AND ABOVE) [GSD] | AP38: kW
A39: GENERAL SERVICE ENERGY BILLED (LESS THAN 50 KW) [GSE-METERED] | I39: Rate Rider for Deferral/Variance Account Disposition (2014) - effective until April 28, 2016 | AA39: Meter dispute charge plus Measurement Canada fees (if meter found correct) | AL39: Kenora Hydro Electric Corporation Ltd. | AM39: Kenora Hydro Electric Corporation Ltd. | AO39: GENERAL SERVICE ENERGY BILLED (LESS THAN 50 KW) [GSE-METERED] | AP39: kWh
A40: GENERAL SERVICE ENERGY BILLED (LESS THAN TO 50 KW) [GSE-UNMETERED] | I40: Rate Rider for Deferral/Variance Account Disposition (2014) - effective until April 30, 2015 | AA40: Meter Interrogation Charge | AL40: Kingston Hydro Corporation | AM40: Kingston Hydro Corporation | AO40: GENERAL SERVICE ENERGY BILLED (LESS THAN TO 50 KW) [GSE-UNMETERED] | AP40: kWh
A41: GENERAL SERVICE EQUAL TO OR GREATER THAN 1,500 KW | I41: Rate Rider for Deferral/Variance Account Disposition (2014) - effective until December 31, 2014 | AA41: Missed Service Appointment | AL41: Kitchener-Wilmot Hydro Inc. | AM41: Kitchener-Wilmot Hydro Inc. | AO41: GENERAL SERVICE EQUAL TO OR GREATER THAN 1,500 KW | AP41: kW
A42: GENERAL SERVICE EQUAL TO OR GREATER THAN 1,500 KW - INTERVAL METERED | I42: Rate Rider for Deferral/Variance Account Disposition (2014) - effective until December 31, 2015 | AA42: Norfolk Pole Rentals – Billed | AL42: Lakefront Utilities Inc. | AM42: Lakefront Utilities Inc. | AO42: GENERAL SERVICE EQUAL TO OR GREATER THAN 1,500 KW - INTERVAL METERED | AP42: kW
A43: GENERAL SERVICE GREATER THAN 1,000 KW | I43: Rate Rider for Deferral/Variance Account Dispositon (2012) - effective until April 30, 2016 | AA43: Optional Interval/TOU Meter charge $/month | AL43: Lakeland Power Distribution Ltd. | AM43: Lakeland Power Distribution Ltd. | AO43: GENERAL SERVICE GREATER THAN 1,000 KW | AP43: kW
A44: GENERAL SERVICE GREATER THAN 50 kW - WMP | I44: Rate Rider for Disposition of Accounting Changes Under CGAAP Account 1576 - effective until April 30, 2016 | AA44: Overtime Locate | AL44: London Hydro Inc. | AM44: London Hydro Inc. | AO44: GENERAL SERVICE GREATER THAN 50 kW - WMP | AP44: kW
A45: GENERAL SERVICE INTERMEDIATE 1,000 TO 4,999 KW | I45: Rate Rider for Disposition of Deferral/Variance Accounts (2010) - effective until December 31, 2014 | AA45: Owner Requested Disconnection/Reconnection – after regular hours | AL45: Midland Power Utility Corporation | AM45: Midland Power Utility Corporation | AO45: GENERAL SERVICE INTERMEDIATE 1,000 TO 4,999 KW | AP45: kW
A46: GENERAL SERVICE INTERMEDIATE RATE CLASS 1,000 TO 4,999 KW (FORMERLY GENERAL SERVICE > 50 KW CUSTOMERS) | I46: Rate Rider for Disposition of Deferral/Variance Accounts (2011) - effective until April 30, 2015 | AA46: Owner Requested Disconnection/Reconnection – during regular hours | AL46: Milton Hydro Distribution Inc. | AM46: Milton Hydro Distribution Inc. | AO46: GENERAL SERVICE INTERMEDIATE RATE CLASS 1,000 TO 4,999 KW (FORMERLY GENERAL SERVICE > 50 KW CUSTOMERS) | AP46: kW
A47: GENERAL SERVICE INTERMEDIATE RATE CLASS 1,000 TO 4,999 KW (FORMERLY LARGE USE CUSTOMERS) | I47: Rate Rider for Disposition of Deferral/Variance Accounts (2011) - effective until April 30, 2016 | AA47: Returned cheque (plus bank charges) | AL47: Newmarket - Tay Power Distribution Ltd. | AM47: Newmarket - Tay Power Distribution Ltd. | AO47: GENERAL SERVICE INTERMEDIATE RATE CLASS 1,000 TO 4,999 KW (FORMERLY LARGE USE CUSTOMERS) | AP47: kW
A48: GENERAL SERVICE LESS THAN 50 KW | I48: Rate Rider for Disposition of Deferral/Variance Accounts (2012) - effective until April 30, 2014 | AA48: Rural system expansion / line connection fee | AL48: Niagara Peninsula Energy Inc. | AM48: Niagara Peninsula Energy Inc. | AO48: GENERAL SERVICE LESS THAN 50 KW | AP48: kWh
A49: GENERAL SERVICE LESS THAN 50 KW - SINGLE PHASE ENERGY-BILLED [G1] | I49: Rate Rider for Disposition of Deferral/Variance Accounts (2012) - effective until April 30, 2015 | AA49: Same Day Open Trench | AL49: Niagara-on-the-Lake Hydro Inc. | AM49: Niagara-on-the-Lake Hydro Inc. | AO49: GENERAL SERVICE LESS THAN 50 KW - SINGLE PHASE ENERGY-BILLED [G1] | AP49: kWh
A50: GENERAL SERVICE LESS THAN 50 KW - THREE PHASE ENERGY-BILLED [G3] | I50: Rate Rider for Disposition of Deferral/Variance Accounts (2012) - effective until April 30, 2016 | AA50: Scheduled Day Open Trench | AL50: Norfolk Power Distribution Inc. | AM50: Norfolk Power Distribution Inc. | AO50: GENERAL SERVICE LESS THAN 50 KW - THREE PHASE ENERGY-BILLED [G3] | AP50: kWh
A51: GENERAL SERVICE LESS THAN 50 KW - TRANSMISSION CLASS ENERGY-BILLED [T] | I51: Rate Rider for Disposition of Deferral/Variance Accounts (2012) - effective until August 31, 2014 | AA51: Service call – after regular hours | AL51: North Bay Hydro Distribution Limited | AM51: North Bay Hydro Distribution Limited | AO51: GENERAL SERVICE LESS THAN 50 KW - TRANSMISSION CLASS ENERGY-BILLED [T] | AP51: kWh
A52: GENERAL SERVICE LESS THAN 50 KW - URBAN ENERGY-BILLED [UG] | I52: Rate Rider for Disposition of Deferral/Variance Accounts (2012) - effective until December 31, 2015 | AA52: Service call – customer owned equipment | AL52: Northern Ontario Wires Inc. | AM52: Northern Ontario Wires Inc. | AO52: GENERAL SERVICE LESS THAN 50 KW - URBAN ENERGY-BILLED [UG] | AP52: kWh
A53: GENERAL SERVICE SINGLE PHASE - G1 | I53: Rate Rider for Disposition of Deferral/Variance Accounts (2012) - effective until December 31, 2016 Applicable only in the former service area of Clinton Power | AA53: Service Call – Customer-owned Equipment – After Regular Hours | AL53: Oakville Hydro Electricity Distribution Inc. | AM53: Oakville Hydro Electricity Distribution Inc. | AO53: GENERAL SERVICE SINGLE PHASE - G1 | AP53: kW
A54: GENERAL SERVICE THREE PHASE - G3 | I54: Rate Rider for Disposition of Deferral/Variance Accounts (2012) – effective until December 31, 2016 Applicable only in the former service area of Clinton Power | AA54: Service Call – Customer-owned Equipment – During Regular Hours | AL54: Orangeville Hydro Limited | AM54: Orangeville Hydro Limited | AO54: GENERAL SERVICE THREE PHASE - G3 | AP54: kW
A55: INTERMEDIATE USERS | I55: Rate Rider for Disposition of Deferral/Variance Accounts (2012) - effective until January 31, 2014 | AA55: Service Charge for onsite interrogation of interval meter due to customer phone line failure - required weekly until line repaired $ 6 | AL55: Orillia Power Distribution Corporation | AM55: Orillia Power Distribution Corporation | AO55: INTERMEDIATE USERS | AP55: kW
A56: INTERMEDIATE WITH SELF GENERATION | I56: Rate Rider for Disposition of Deferral/Variance Accounts (2012) - effective until June 30, 2014 | AA56: Service Layout - Commercial | AL56: Oshawa PUC Networks Inc. | AM56: Oshawa PUC Networks Inc. | AO56: INTERMEDIATE WITH SELF GENERATION | AP56: kW
A57: LARGE USE | I57: Rate Rider for Disposition of Deferral/Variance Accounts (2013) - Applicable only to Wholesale Market Participants - effective until April 30, 2015 | AA57: Service Layout - ResidentiaI | AL57: Ottawa River Power Corporation | AM57: Ottawa River Power Corporation | AO57: LARGE USE | AP57: kW
A58: LARGE USE - 3TS | I58: Rate Rider for Disposition of Deferral/Variance Accounts (2013) - effective until April 30, 2014 | AA58: Special Billing Service (sub-metering charge per meter) | AL58: Parry Sound Power Corporation | AM58: Parry Sound Power Corporation | AO58: LARGE USE - 3TS | AP58: kW
A59: LARGE USE - FORD ANNEX | I59: Rate Rider for Disposition of Deferral/Variance Accounts (2013) - effective until April 30, 2015 | AA59: Special meter reads | AL59: Peterborough Distribution Incorporated | AM59: Peterborough Distribution Incorporated | AO59: LARGE USE - FORD ANNEX | AP59: kW
A60: LARGE USE - REGULAR | I60: Rate Rider for Disposition of Deferral/Variance Accounts (2013) - effective until April 30, 2015 - not applicable to Wholesale Market Participants | AA60: Specific Charge for Access to the Power Poles - $/pole/year | AL60: PowerStream Inc. | AM60: PowerStream Inc. | AO60: LARGE USE - REGULAR | AP60: kW
A61: LARGE USE > 5000 KW | I61: Rate Rider for Disposition of Deferral/Variance Accounts (2013) - effective until April 30, 2017 | AA61: Specific Charge for Bell Canada Access to the Power Poles – per pole/year | AL61: PUC Distribution Inc. | AM61: PUC Distribution Inc. | AO61: LARGE USE > 5000 KW | AP61: kW
A62: microFIT | I62: Rate Rider for Disposition of Deferral/Variance Accounts (2013) - effective until August 31, 2014 | AA62: Switching for company maintenance – Charge based on Time and Materials | AL62: Renfrew Hydro Inc. | AM62: Renfrew Hydro Inc. | AO62: microFIT | AP62: $
A63: RESIDENTIAL | I63: Rate Rider for Disposition of Deferral/Variance Accounts (2013) - effective until December 31, 2014 | AA63: Temporary Service – Install & remove – overhead – no transformer | AL63: Rideau St. Lawrence Distribution Inc. | AM63: Rideau St. Lawrence Distribution Inc. | AO63: RESIDENTIAL | AP63: kWh
A64: RESIDENTIAL - HENSALL | I64: Rate Rider for Disposition of Deferral/Variance Accounts (2013) - effective until May 31, 2014 | AA64: Temporary Service – Install & remove – overhead – with transformer | AL64: Sioux Lookout Hydro Inc. | AM64: Sioux Lookout Hydro Inc. | AO64: RESIDENTIAL - HENSALL | AP64: kWh
A65: RESIDENTIAL - HIGH DENSITY [R1] | I65: Rate Rider for Disposition of Deferral/Variance Accounts (2014) - effective until December 31, 2015 | AA65: Temporary Service – Install & remove – underground – no transformer | AL65: St. Thomas Energy Inc. | AM65: St. Thomas Energy Inc. | AO65: RESIDENTIAL - HIGH DENSITY [R1] | AP65: kWh
A66: RESIDENTIAL - LOW DENSITY [R2] | I66: Rate Rider for Disposition of Deferred PILs Variance Account 1562 - effective until March 31, 2016 | AA66: Temporary service install & remove – overhead – no transformer | AL66: Thunder Bay Hydro Electricity Distribution Inc. | AM66: Thunder Bay Hydro Electricity Distribution Inc. | AO66: RESIDENTIAL - LOW DENSITY [R2] | AP66: kWh
A67: RESIDENTIAL - MEDIUM DENSITY [R1] | I67: Rate Rider for Disposition of Deferred PILs Variance Account 1562 (2012) - effective until April 30, 2015 | AA67: Temporary Service Install & Remove – Overhead – With Transformer | AL67: Tillsonburg Hydro Inc. | AM67: Tillsonburg Hydro Inc. | AO67: RESIDENTIAL - MEDIUM DENSITY [R1] | AP67: kWh
A68: RESIDENTIAL - NORMAL DENSITY [R2] | I68: Rate Rider for Disposition of Deferred PILs Variance Account 1562 (2012) - effective until April 30, 2016 | AA68: Temporary Service Install & Remove – Underground – No Transformer | AL68: Toronto Hydro-Electric System Limited | AM68: Toronto Hydro-Electric System Limited | AO68: RESIDENTIAL - NORMAL DENSITY [R2] | AP68: kWh
A69: RESIDENTIAL - TIME OF USE | I69: Rate Rider for Disposition of Deferred PILs Variance Account 1562 (2nd Installment - 2012) - effective until April 30, 2016 | AA69: Temporary service installation and removal – overhead – no transformer | AL69: Veridian Connections Inc. | AM69: Veridian Connections Inc. | AO69: RESIDENTIAL - TIME OF USE | AP69: kWh
A70: RESIDENTIAL - URBAN [UR] | I70: Rate Rider for Disposition of Deferred PILs Variance Account 1562 (per connection) (2012) - effective until April 30, 2015 | AA70: Temporary service installation and removal – overhead – with transformer | AL70: Wasaga Distribution Inc. | AM70: Wasaga Distribution Inc. | AO70: RESIDENTIAL - URBAN [UR] | AP70: kWh
A71: RESIDENTIAL REGULAR | I71: Rate Rider for Disposition of Deferred PILs Variance Account 1562 (per connection) (2012) - effective until April 30, 2016 | AA71: Temporary service installation and removal – underground – no transformer | AL71: Waterloo North Hydro Inc. | AM71: Waterloo North Hydro Inc. | AO71: RESIDENTIAL REGULAR | AP71: kWh
A72: RESIDENTIAL SUBURBAN | I72: Rate Rider for Disposition of Global Adjustment Sub-Account (2011) - effective until April 30, 2015 Applicable only for Non-RPP Customers | AL72: Welland Hydro-Electric System Corp. | AM72: Welland Hydro-Electric System Corp. | AO72: RESIDENTIAL SUBURBAN | AP72: kWh
A73: RESIDENTIAL SUBURBAN SEASONAL | I73: Rate Rider for Disposition of Global Adjustment Sub-Account (2011) - effective until April 30, 2016 Applicable only for Non-RPP Customers | AL73: Wellington North Power Inc. | AM73: Wellington North Power Inc. | AO73: RESIDENTIAL SUBURBAN SEASONAL | AP73: kWh
A74: RESIDENTIAL SUBURBAN YEAR ROUND | I74: Rate Rider for Disposition of Global Adjustment Sub-Account (2012) - effective until April 30, 2014 Applicable only for Non-RPP Customers | AL74: West Coast Huron Energy Inc. | AM74: West Coast Huron Energy Inc. | AO74: RESIDENTIAL SUBURBAN YEAR ROUND | AP74: kWh
A75: RESIDENTIAL URBAN | I75: Rate Rider for Disposition of Global Adjustment Sub-Account (2012) - effective until April 30, 2015 Applicable only for Non-RPP Customers | AL75: Westario Power Inc. | AM75: Westario Power Inc. | AO75: RESIDENTIAL URBAN | AP75: kWh
A76: RESIDENTIAL URBAN YEAR-ROUND | I76: Rate Rider for Disposition of Global Adjustment Sub-Account (2012) - effective until April 30, 2015 Applicatble only for Non-RPP Customers | AL76: Whitby Hydro Electric Corporation | AM76: Whitby Hydro Electric Corporation | AO76: RESIDENTIAL URBAN YEAR-ROUND | AP76: kWh
A77: SEASONAL RESIDENTIAL | I77: Rate Rider for Disposition of Global Adjustment Sub-Account (2012) - effective until April 30, 2016 Applicable only for Non-RPP Customers | AL77: Woodstock Hydro Services Inc. | AM77: Woodstock Hydro Services Inc. | AO77: SEASONAL RESIDENTIAL | AP77: kWh
A78: SEASONAL RESIDENTIAL - HIGH DENSITY [R3] | I78: Rate Rider for Disposition of Global Adjustment Sub-Account (2012) - effective until January 31, 2014. Applicable only for Non-RPP Customers | AO78: SEASONAL RESIDENTIAL - HIGH DENSITY [R3] | AP78: kWh
A79: SEASONAL RESIDENTIAL - NORMAL DENSITY [R4] | I79: Rate Rider for Disposition of Global Adjustment Sub-Account (2012) - effective until June 30, 2014 Applicable only for Non-RPP Customers | AO79: SEASONAL RESIDENTIAL - NORMAL DENSITY [R4] | AP79: kWh
A80: SENTINEL LIGHTING | I80: Rate Rider for Disposition of Global Adjustment Sub-Account (2012) Applicable only for Non-RPP Customers - effective until August 31, 2014 | AO80: SENTINEL LIGHTING | AP80: kW
A81: SMALL COMMERCIAL AND USL - PER CONNECTION | I81: Rate Rider for Disposition of Global Adjustment Sub-Account (2012) Applicable only to Non-RPP Customers - effective until August 31, 2014 | AO81: SMALL COMMERCIAL AND USL - PER CONNECTION | AP81: kWh
A82: SMALL COMMERCIAL AND USL - PER METER | I82: Rate Rider for Disposition of Global Adjustment Sub-Account (2013) - effective until April 30, 2014 Applicable only for Non-RPP Customers | AO82: SMALL COMMERCIAL AND USL - PER METER | AP82: kWh
A83: STANDARD A GENERAL SERVICE AIR ACCESS | I83: Rate Rider for Disposition of Global Adjustment Sub-Account (2013) - effective until April 30, 2015 Applicable only for Non-RPP Customers | AO83: STANDARD A GENERAL SERVICE AIR ACCESS | AP83: kWh
A84: STANDARD A GENERAL SERVICE ROAD/RAIL | I84: Rate Rider for Disposition of Global Adjustment Sub-Account (2013) - effective until April 30, 2015 Applicable only for Non-RPP Customers and excluding Wholesale Market Participants | AO84: STANDARD A GENERAL SERVICE ROAD/RAIL | AP84: kWh
A85: STANDARD A GRID CONNECTED | I85: Rate Rider for Disposition of Global Adjustment Sub-Account (2013) - effective until April 30, 2017 Applicable only for Non-RPP Customers | AO85: STANDARD A GRID CONNECTED | AP85: kWh
A86: STANDARD A RESIDENTIAL AIR ACCESS | I86: Rate Rider For Disposition of Global Adjustment Sub-Account (2013) - effective until August 31, 2014 Applicable only for Non-RPP Customers | AO86: STANDARD A RESIDENTIAL AIR ACCESS | AP86: kWh
A87: STANDARD A RESIDENTIAL ROAD/RAIL | I87: Rate Rider for Disposition of Global Adjustment Sub-Account (2013) - effective until December 31, 2014 Applicable only for Non-RPP Customers | AO87: STANDARD A RESIDENTIAL ROAD/RAIL | AP87: kWh
A88: STANDBY - GENERAL SERVICE 1,000 - 5,000 KW | I88: Rate Rider for Disposition of Global Adjustment Sub-Account (2013) - effective until May 31, 2014 Applicable only for Non-RPP Customers | AO88: STANDBY - GENERAL SERVICE 1,000 - 5,000 KW | AP88: kW
A89: STANDBY - GENERAL SERVICE 50 - 1,000 KW | I89: Rate Rider for Disposition of Global Adjustment Sub-Account (2014) - effective until December 31, 2014. Applicable only for Non-RPP - Class B Customers | AO89: STANDBY - GENERAL SERVICE 50 - 1,000 KW | AP89: kW
A90: STANDBY - LARGE USE | I90: Rate Rider for Disposition of Global Adjustment Sub-Account (2014) - effective until December 31, 2014. Applicable only for Non-RPP Customers | AO90: STANDBY - LARGE USE | AP90: kW
A91: STANDBY DISTRIBUTION SERVICE | I91: Rate Rider for Disposition of Global Adjustment Sub-Account (2014) - effective until December 31, 2014. Applicable only for Non-RPP Customers - Class A Customers | AO91: STANDBY DISTRIBUTION SERVICE | AP91: kW
A92: STANDBY POWER | I92: Rate Rider for Disposition of Global Adjustment Sub-Account (2014) - effective until December 31, 2014. Applicable only for Non-RPP Customers - Interval Metered | AO92: STANDBY POWER | AP92: kW
A93: STANDBY POWER - APPROVED ON AN INTERIM BASIS | I93: Rate Rider for Disposition of Global Adjustment Sub-Account (2014) - effective until December 31, 2014. Applicable only for Non-RPP Customers - Non Interval Metered | AO93: STANDBY POWER - APPROVED ON AN INTERIM BASIS | AP93: kW
A94: STANDBY POWER GENERAL SERVICE 1,500 TO 4,999 KW | I94: Rate Rider for Disposition of Global Adjustment Sub-Account (2014) - effective until December 31, 2015. Applicable only for Non-RPP Customers. | AO94: STANDBY POWER GENERAL SERVICE 1,500 TO 4,999 KW | AP94: kW
A95: STANDBY POWER GENERAL SERVICE 50 TO 1,499 KW | I95: Rate Rider for Disposition of Post Retirement Actuarial Gain - effective until March 31, 2025 | AO95: STANDBY POWER GENERAL SERVICE 50 TO 1,499 KW | AP95: kW
A96: STANDBY POWER GENERAL SERVICE LARGE USE | I96: Rate Rider for Disposition of Residual Hisotrical Smart Meter Costs - effective until April 30, 2015 | AO96: STANDBY POWER GENERAL SERVICE LARGE USE | AP96: kW
A97: STREET LIGHTING | I97: Rate Rider for Disposition of Residual Hisotrical Smart Meter Costs - effective until April 30, 2017 | AO97: STREET LIGHTING | AP97: kW
A98: SUB TRANSMISSION [ST] | I98: Rate Rider for Disposition of Residual Historical Smart Meter Costs - effective until April 30, 2014 | AO98: SUB TRANSMISSION [ST] | AP98: kW
A99: UNMETERED SCATTERED LOAD | I99: Rate Rider for Disposition of Residual Historical Smart Meter Costs - effective until April 30, 2016 | AO99: UNMETERED SCATTERED LOAD | AP99: kWh
A100: URBAN GENERAL SERVICE DEMAND BILLED (50 KW AND ABOVE) [UGD] | I100: Rate Rider for Disposition of Residual Historical Smart Meter Costs - effective until August 31, 2014 | AO100: URBAN GENERAL SERVICE DEMAND BILLED (50 KW AND ABOVE) [UGD] | AP100: kW
A101: URBAN GENERAL SERVICE ENERGY BILLED (LESS THAN 50 KW) [UGE] | I101: Rate Rider for Disposition of Residual Historical Smart Meter Costs - effective until August 31, 2015 | AO101: URBAN GENERAL SERVICE ENERGY BILLED (LESS THAN 50 KW) [UGE] | AP101: kWh
A102: WESTPORT SEWAGE TREATMENT PLANT | I102: Rate Rider for Disposition of Residual Historical Smart Meter Costs - effective until December 31, 2014 | AO102: WESTPORT SEWAGE TREATMENT PLANT | AP102: kW
A103: YEAR-ROUND RESIDENTIAL - R2 | I103: Rate Rider for Disposition of Residual Historical Smart Meter Costs – effective until December 31, 2014 | AO103: YEAR-ROUND RESIDENTIAL - R2 | AP103: kWh
I104: Rate Rider for Disposition of Residual Historical Smart Meter Costs - effective until December 31, 2015
I105: Rate Rider for Disposition of Residual Historical Smart Meter Costs - effective until December 31, 2016
I106: Rate Rider for Disposition of Residual Historical Smart Meter Costs - effective until October 31, 2014
I107: Rate Rider for Disposition of Residual Historical Smart Meter Costs - effective until September 30, 2014
I108: Rate Rider for Disposition of Residual Historical Smart Meter Costs - Non-Interval Metered - effective until April 30, 2014
I109: Rate Rider for Disposition of Residual Historical Smart Meter Costs 2 - in effect until the effective date of the next cost of service-based rate order
I110: Rate Rider for Disposition of Residual Historical Smart Meter Costs 3 - in effect until the effective date of the next cost of service-based rate order
I111: Rate Rider for Disposition of Residual Incremental Historical Smart Meter Costs - effective until August 31, 2015
I112: Rate Rider for Disposition of Stranded Meter costs - effective until April 30, 2015
I113: Rate Rider for Disposition of Stranded Meter Costs - effective until April 30, 2016
I114: Rate Rider for Disposition of Stranded Meter Costs - effective until April 30, 2017
I115: Rate Rider for Global Adjustment Sub Account Disposition - effective until April 30, 2016 Applicable only for Non RPP Customers
I116: Rate Rider for Global Adjustment Sub-Account Disposition (2014) - effective until April 28, 2016 Applicable only for Non-RPP Customers
I117: Rate Rider for Global Adjustment Sub-Account Disposition (2014) - effective until April 30, 2015 Applicable only for Non-RPP Customers
I118: Rate Rider for Global Adjustment Sub-Account Disposition (2014) - effective until December 30, 2015 Applicable only for Non-RPP Customers
I119: Rate Rider for Global Adjustment Sub-Account Disposition (2014) - effective until December 31, 2014 Applicable only for Non-RPP Customers
I120: Rate Rider for Global Adjustment Sub-Account Disposition (2014) - effective until December 31, 2015 Applicable only for Non-RPP Customers
I121: Rate Rider for Global Adjustment Sub-Account Disposition Applicable only for Non-RPP Customers - effective until April 30, 2015
I122: Rate Rider for Incremental Capital - Distribution Volumetric - effective until April 30, 2016
I123: Rate Rider for Incremental Capital - Service Charge - effective until April 30, 2016
I124: Rate Rider for Incremental Capital (2012) - effective until April 30, 2015
I125: Rate Rider for Lost Revenue Adjustment Mechanism Variance Account (LRAMVA) Recovery (2012 CDM Activities) - effective until April 30, 2015
I126: Rate Rider for Recover of Residual Historical Smart meter Costs - effective until June 30, 2014
I127: Rate Rider for Recovery of CGAAP/CWIP Differential - in effect until December 31, 2016
I128: Rate Rider for Recovery of Foregone Revenue - effective until April 30, 2015
I129: Rate Rider for Recovery of Forgone Revenue - effective until April 30, 2015
I130: Rate Rider for Recovery of Forgone Revenue - effective until December 31, 2014
I131: Rate Rider for Recovery of Green Energy Act related costs - effective until December 31, 2014
I132: Rate Rider for Recovery of Incremental Capital (2013) - in effect until the effective date of the next cost of service-based rate order
I133: Rate Rider for Recovery of Incremental Capital (2013) - in effect until the effective date of the next cost of service-based rate order
I134: Rate Rider for Recovery of Incremental Capital (2013) (per connection) - in effect until the effective date of the next cost of service-based rate order
I135: Rate Rider for Recovery of Incremental Capital (2013) (per connection)- in effect until the effective date of the next cost of service-based rate order
I136: Rate Rider for Recovery of Incremental Capital Costs
I137: Rate Rider for Recovery of Incremental Capital Costs - effective until April 30, 2015
I138: Rate Rider for Recovery of Incremental Capital Module Costs (2014) - in effect until the effective date of the next cost of service-based rate order
I139: Rate Rider for Recovery of Incremental Capital Module Costs (2014) - in effect until the effective date of the next cost of service-based rate order
I140: Rate Rider for Recovery of Lost Revenue Adjustment Mechanism ( LRAM)/Shared Savings Mechanism (SSM) (2012) - effective until August 31, 2014
I141: Rate Rider for Recovery of Lost Revenue Adjustment Mechanism (2013) - effective until December 31, 2014
I142: Rate Rider for Recovery of Lost Revenue Adjustment Mechanism (LRAM) - effective until April 30, 2016
I143: Rate Rider for Recovery of Lost Revenue Adjustment Mechanism (LRAM) (pre-2011 CDM Activities) - effective until April 30, 2015
I144: Rate Rider for Recovery of Lost Revenue Adjustment Mechanism (LRAM) (pre-2011 CDM Activities) (2013) - effective until April 30, 2015
I145: Rate Rider for Recovery of Lost Revenue Adjustment Mechanism (LRAM)/Shared Savings
I146: Rate Rider for Recovery of Lost Revenue Adjustment Mechanism (LRAM)/Shared Savings Mechanism (SSM) - effective until December 31, 2018 and applicable in the service area excluding the former service areas of Clinton Power and West Perth Power
I147: Rate Rider for Recovery of Lost Revenue Adjustment Mechanism (LRAM)/Shared Savings Mechanism (SSM) - effective until December 31, 2014 and applicable in the service area excluding the former service areas of Clinton Power and West Perth Power
I148: Rate Rider for Recovery of Lost Revenue Adjustment Mechanism (LRAM)/Shared Savings Mechanism (SSM) - effective until December 31, 2014 and applicable only in the former service area of Clinton Power
I149: Rate Rider for Recovery of Lost Revenue Adjustment Mechanism (LRAM)/Shared Savings Mechanism (SSM) - effective until December 31, 2014 and applicable only in the former service area of West Perth Power
I150: Rate Rider for Recovery of Lost Revenue Adjustment Mechanism (LRAM)/Shared Savings Mechanism (SSM) - effective until December 31, 2014 and applicable in the service area excluding the former service area of Clinton Power
I151: Rate Rider for Recovery of Lost Revenue Adjustment Mechanism (LRAM)/Shared Savings Mechanism (SSM) - effective until March 31, 2016
I152: Rate Rider for Recovery of Lost Revenue Adjustment Mechanism (LRAM)/Shared Savings Mechanism (SSM) (2012) - effective until August 31, 2014
I153: Rate Rider for Recovery of Lost Revenue Adjustment Mechanism (LRAM)/Shared Savings Mechanism (SSM) Recovery - effective until April 30, 2015
I154: Rate Rider for Recovery of Lost Revenue Adjustment Mechanism Variance Account (LRAMVA) (2014) - effective until April 30, 2015
I155: Rate Rider for Recovery of Residual Historical Smart Meter Costs - effective July 1, 2012 - April 30, 2016
I156: Rate Rider for Recovery of Smart Meter Incremental Revenue Requirement - effective until the date of the next cost of service-based rate order
I157: Rate Rider for Recovery of Smart Meter Incremental Revenue Requirement - effective until the effective date of the next cost of service-based rate order, or October 31, 2017, whichever occurs earlier
I158: Rate Rider for Recovery of Smart Meter Incremental Revenue Requirement - in effect until the effective date of the next cost of service-based rate order
I159: Rate Rider for Recovery of Smart Meter Incremental Revenue Requirement - Non-Interval Metered - in effect until the effective date of the next cost of service-based rate order
I160: Rate Rider for Recovery of Smart Meter Incremental Revenue Requirements - in effect until the effective date of the next cost of service application
I161: Rate Rider for Recovery of Smart Meter Stranded Assets - effective until April 30, 2016
I162: Rate Rider for Recovery of Storm Damage Costs - effective until August 31, 2017
I163: Rate Rider for Recovery of Stranded Assets - effective until April 30, 2016
I164: Rate Rider for Recovery of Stranded Meter Assets - effective July 1, 2012 - April 30, 2016
I165: Rate Rider for Recovery of Stranded Meter Assets – effective until April 30, 2015
I166: Rate Rider for Recovery of Stranded Meter Assets - effective until April 30, 2016
I167: Rate Rider for Recovery of Stranded Meter Assets - effective until April 30, 2017
I168: Rate Rider for Recovery of Stranded Meter Assets - effective until August 31, 2015
I169: Rate Rider for Recovery of Stranded Meter Assets - effective until August 31, 2017
I170: Rate Rider for Recovery of Stranded Meter Assets - effective until December 31, 2014
I171: Rate Rider for Recovery of Stranded Meter Assets - effective until December 31, 2015
I172: Rate Rider for Recovery of Stranded Meter Assets - effective until June 30, 2016
I173: Rate Rider for Recovery of Stranded Meter Assets - effective until March 31, 2016
I174: Rate Rider for Recovery of Stranded Meter Assets - effective until May 31, 2014
I175: Rate Rider for Reversal of Deferral/Variance Account Disposition (2011) - effective until April 30, 2015
I176: Rate Rider for Smart Meter Disposition - effective until April 30, 2016
I177: Rate Rider for Smart Meter Incremental Revenue Requirement - in effect until the effective date of the next cost of service-based rate order
I178: Rate Rider for Smart Metering Entity Charge - effective until October 31, 2018
I179: Rate Rider for Stranded Meter Cost Recovery - effective until April 30, 2017
I180: Rate Rider for Tax Change
I181: Rate Rider for Tax Change - effective until April 30, 2015
I182: Rate Rider for Tax Change (2014) - effective until April 30, 2015
I183: Retail Transmission Rate - Line and Transformation Connection Service Rate
I184: Retail Transmission Rate - Line and Transformation Connection Service Rate - (less than 1,000 kW)
I185: Retail Transmission Rate - Line and Transformation Connection Service Rate - Interval Metered
I186: Retail Transmission Rate - Line and Transformation Connection Service Rate - Interval Metered (1,000 to 4,999 kW)
I187: Retail Transmission Rate - Line and Transformation Connection Service Rate - Interval Metered (less than 1,000 kW)
I188: Retail Transmission Rate - Line and Transformation Connection Service Rate - Interval Metered < 1,000 kW
I189: Retail Transmission Rate - Line and Transformation Connection Service Rate FOR ALL SERVICE AREAS EXCEPT HENSALL
I190: Retail Transmission Rate - Line and Transformation Connection Service Rate - Interval Metered > 1,000 kW
I191: Retail Transmission Rate - Line Connection Service Rate
I192: Retail Transmission Rate - Network Service Rate
I193: Retail Transmission Rate - Network Service Rate - (less than 1,000 kW)
I194: Retail Transmission Rate - Network Service Rate - Interval Metered
I195: Retail Transmission Rate - Network Service Rate - Interval Metered (1,000 to 4,999 kW)
I196: Retail Transmission Rate - Network Service Rate - Interval Metered (less than 1,000 kW)
I197: Retail Transmission Rate - Network Service Rate - Interval Metered > 1,000 kW
I198: Retail Transmission Rate - Transformation Connection Service Rate
I199: Rider for Global Adjustment Sub-Account Disposition (2012) - effective until April 30, 2016 Applicable only for Non-RPP Customers
I200: Rural or Remote Electricity Rate Protection Charge (RRRP)
... 14 more rows

Sheet 29. Guelph RSVA Model
F3: Billed kWh for Non-RPP Customers | G3: Estimated kW for Non-RPP Customers | H3: No of Customers with Smart Meters (as per 2012 Year Book - IESO 9980 charge is calculated based on these numbers) | I3: 1590 Recovery Share Proportion* | J3: 1595 Recovery Share Proportion (2008) 1 | K3: 1595 Recovery Share Proportion (2009) 1 | L3: 1595 Recovery Share Proportion (2010) 1 | M3: 1595 Recovery Share Proportion (2011) 1 | N3: 1595 Recovery Share Proportion (2012) 1 | O3: 1568 LRAM Variance Account Class Allocation ($ amounts)
B4: Rate Class | C4: Unit | D4: Metered kWh | E4: Metered kW
B5: RESIDENTIAL | C5: $/kWh | D5: 378871008.5 | F5: 49400334.05 | G5: =IF(ISERROR(E5/D5*F5), 0, E5/D5*F5) -> 0 | H5: 47157 | J5: 0.380761258 | L5: 0.380761258 | N5: 0.380761258
B6: GENERAL SERVICE LESS THAN 50 KW | C6: $/kWh | D6: 148787703 | F6: 22271949.7 | G6: 0 | H6: 3778 | J6: 0.1014824616 | L6: 0.1014824616 | N6: 0.1014824616
B7: GENERAL SERVICE 50 TO 999 KW | C7: $/kW | D7: 392460715.2 | E7: 1028834.596 | F7: 392460715.2 | G7: 1028834.596 | J7: 0.2647916025 | L7: 0.2647916025 | N7: 0.2647916025
B8: GENERAL SERVICE 50 TO 999 KW - Wholesale Market Participant | C8: $/kW | D8: 7201234.63 | E8: 13157.28 | F8: 7201234.63 | G8: 13157.28 | J8: 0.0034 | L8: 0.0034 | N8: 0.0034
B9: GENERAL SERVICE 1,000 TO 4,999 KW | C9: $/kW | D9: 465120498.3 | E9: 1015195.897 | F9: 465120498.3 | G9: 1015195.897 | J9: 0.1434968765 | L9: 0.1434968765 | N9: 0.1434968765
B10: LARGE USE - Class A | C10: $/kW | D10: 271481475 | E10: 490511.9761 | F10: 271481475 | G10: 490511.9761 | J10: 0.1000966407 | L10: 0.1000966407 | N10: 0.1000966407
B11: UNMETERED SCATTERED LOAD | C11: $/kWh | D11: 2229301.05 | F11: 2229301.05 | G11: 0 | J11: 0.002093934267 | L11: 0.002093934267 | N11: 0.002093934267
B12: SENTINEL LIGHTING | C12: $/kW | D12: 88740.01882 | E12: 250.6914272 | F12: 335.6921414 | G12: 0.9483336058 | J12: 0.0001636277975 | L12: 0.0001636277975 | N12: 0.0001636277975
B13: STREET LIGHTING | C13: $/kW | D13: 9777748.298 | E13: 27446.70869 | F13: 9503966.748 | G13: 26678.18794 | J13: 0.003713598692 | L13: 0.003713598692 | N13: 0.003713598692
C15: Total | D15: =SUM(D5:D13) -> 1676018424 | E15: =SUM(E5:E13) -> 2575397.149 | F15: 1219669810 | G15: 2574378.885 | H15: =SUM(H5:H6) -> 50935 | I15: 0 | J15: 1 | K15: 0 | L15: 1 | M15: 0 | N15: 1 | O15: 0
B16: Total excluding WMP | D16: =D15-D8 -> 1668817189
B17: Total excluding WMP and Class A | D17: =D16-D10 -> 1397335714 | F17: =F15-F8-F10 -> 940987100.7
B18: ='[6]7. Allocating Def-Var Balances'!A15 -> Allocation of Group 1 Accounts (including Account 1568) | U18: Total RSVAs excluding 1589 GA | V18: 1589 GA | W18: Deferral/Variance Account Rate Rider | X18: Global Adjustment Rate Rider
D19: ='[6]7. Allocating Def-Var Balances'!C16 -> % of Total kWh | E19: ='[6]7. Allocating Def-Var Balances'!D16 -> % of Total non-RPP kWh | O19: ='[6]7. Allocating Def-Var Balances'!N16 -> 1595 (2008) | P19: ='[6]7. Allocating Def-Var Balances'!O16 -> 1595 (2009) | Q19: ='[6]7. Allocating Def-Var Balances'!P16 -> 1595 (2010) | R19: ='[6]7. Allocating Def-Var Balances'!Q16 -> 1595 (2011) | S19: ='[6]7. Allocating Def-Var Balances'!R16 -> 1595 (2012) | T19: ='[6]7. Allocating Def-Var Balances'!S16 -> 1568
B20: ='[6]7. Allocating Def-Var Balances'!A17 -> Rate Class | G20: ='[6]7. Allocating Def-Var Balances'!F17 -> 1550 | H20: ='[6]7. Allocating Def-Var Balances'!G17 -> 1551 | I20: ='[6]7. Allocating Def-Var Balances'!H17 -> 1580 | J20: ='[6]7. Allocating Def-Var Balances'!I17 -> 1584 | K20: ='[6]7. Allocating Def-Var Balances'!J17 -> 1586 | L20: ='[6]7. Allocating Def-Var Balances'!K17 -> 1588 | M20: ='[6]7. Allocating Def-Var Balances'!L17 -> 1589 | N20: ='[6]7. Allocating Def-Var Balances'!M17 -> 1590
B22: ='[6]7. Allocating Def-Var Balances'!A19 -> RESIDENTIAL | D22: ='[6]7. Allocating Def-Var Balances'!C19 -> 0.2260542027 | E22: ='[6]7. Allocating Def-Var Balances'!D19 -> 0.04050303912 | G22: =$G$32/$D$15*D5 -> 3991.235232 | H22: =H32/H15*H5 -> 59086.0736 | I22: =$I$32/$D$16*D5 -> -216896.3201 | J22: =$J$32/$D$15*D5 -> 114335.7796 | K22: =$K$32/$D$15*D5 -> -27328.97481 | L22: =$L$32/$D$16*D5 -> 195182.5659 | M22: =$M$32/$F$17*F5 -> 258151.9486 | N22: ='[6]7. Allocating Def-Var Balances'!M19 -> 0 | O22: =$O$32*J5 -> -443.0719803 | P22: ='[6]7. Allocating Def-Var Balances'!O19 -> 0 | Q22: =$Q$32*L5 -> -350.7057158 | R22: ='[6]7. Allocating Def-Var Balances'!Q19 -> 0 | S22: =$S$32*N5 -> 639644.5322 | T22: ='[6]7. Allocating Def-Var Balances'!S19 -> 0 | U22: =SUM(G22:L22)+SUM(N22:T22) -> 767221.1139 | V22: =M22 -> 258151.9486 | W22: =U22/D5 -> 0.002025019325 | X22: =V22/F5 -> 0.005225712611
B23: ='[6]7. Allocating Def-Var Balances'!A20 -> GENERAL SERVICE LESS THAN 50 KW | D23: ='[6]7. Allocating Def-Var Balances'!C20 -> 0.08877450321 | E23: ='[6]7. Allocating Def-Var Balances'!D20 -> 0.01826063867 | G23: =$G$32/$D$15*D6 -> 1567.411359 | H23: =H32/H15*H6 -> 4733.702018 | I23: =$I$32/$D$16*D6 -> -85178.08048 | J23: =$J$32/$D$15*D6 -> 44901.18702 | K23: =$K$32/$D$15*D6 -> -10732.45325 | L23: =$L$32/$D$16*D6 -> 76650.79933 | M23: =$M$32/$F$17*F6 -> 116386.8084 | N23: ='[6]7. Allocating Def-Var Balances'!M20 -> 0 | O23: =$O$32*J6 -> -118.0898379 | P23: ='[6]7. Allocating Def-Var Balances'!O20 -> 0 | Q23: =$Q$32*L6 -> -93.47190288 | R23: ='[6]7. Allocating Def-Var Balances'!Q20 -> 0 | S23: =$S$32*N6 -> 170481.372 | T23: ='[6]7. Allocating Def-Var Balances'!S20 -> 0 | U23: =SUM(G23:L23)+SUM(N23:T23) -> 202212.3763 | V23: =M23 -> 116386.8084 | W23: =U23/D6 -> 0.001359066457 | X23: =V23/F6 -> 0.005225712611
B24: ='[6]7. Allocating Def-Var Balances'!A21 -> GENERAL SERVICE 50 TO 999 KW | D24: ='[6]7. Allocating Def-Var Balances'!C21-D25 -> 0.2341625304 | E24: ='[6]7. Allocating Def-Var Balances'!D21-E25 -> 0.3225716126 | G24: =$G$32/$D$15*D7 -> 4134.396665 | I24: =$I$32/$D$16*D7 -> -224676.1642 | J24: 118436.8844 | K24: -28309.23654 | L24: =$L$32/$D$16*D7 -> 202183.5604 | M24: 2050886.909 | N24: ='[6]7. Allocating Def-Var Balances'!M21 -> 0 | O24: -308.1241519 | P24: ='[6]7. Allocating Def-Var Balances'!O21 -> 0 | Q24: -243.8901714 | R24: ='[6]7. Allocating Def-Var Balances'!Q21 -> 0 | S24: 444825.9826 | T24: ='[6]7. Allocating Def-Var Balances'!S21 -> 0 | U24: 516043.409 | V24: 2050886.909 | W24: =U24/E7 -> 0.501580537 | X24: =V24/G7 -> 1.993407801
B25: GENERAL SERVICE 50 TO 999 KW - Wholesale Market Participant | D25: =D8/D15 -> 0.004296632142 | E25: =E8/E15 -> 0.005108835353 | G25: 75.86175962 | J25: 2173.190233 | K25: -519.4442314 | O25: -3.956402343 | Q25: -3.13161964 | S25: 5711.692994 | U25: 7434.212734 | W25: =U25/E8 -> 0.5650265658 | X25: =V25/G8 -> 0
B26: ='[6]7. Allocating Def-Var Balances'!A22 -> GENERAL SERVICE 1,000 TO 4,999 KW | D26: ='[6]7. Allocating Def-Var Balances'!C22 -> 0.2775151464 | E26: ='[6]7. Allocating Def-Var Balances'!D22 -> 0.3813495213 | G26: 4899.834716 | I26: =$I$32/$D$16*D9 -> -266272.4839 | J26: 140364.1703 | K26: -33550.3802 | L26: =$L$32/$D$16*D9 -> 239615.6219 | M26: 2430586.054 | N26: ='[6]7. Allocating Def-Var Balances'!M22 -> 0 | O26: -166.9798172 | P26: ='[6]7. Allocating Def-Var Balances'!O22 -> 0 | Q26: -132.1698932 | R26: ='[6]7. Allocating Def-Var Balances'!Q22 -> 0 | S26: 241061.7953 | T26: ='[6]7. Allocating Def-Var Balances'!S22 -> 0 | U26: 325819.4085 | V26: 2430586.054 | W26: =U26/E9 -> 0.3209424009 | X26: =V26/G9 -> 2.394203977
B27: LARGE USE - Class A | D27: ='[6]7. Allocating Def-Var Balances'!C23 -> 0.1619800064 | E27: ='[6]7. Allocating Def-Var Balances'!D23 -> 0.2225860415 | G27: 2859.934922 | I27: =$I$32/$D$16*D10 -> -155417.8905 | J27: 81927.7416 | K27: -19582.68177 | L27: =$L$32/$D$16*D10 -> 139858.8166 | N27: ='[6]7. Allocating Def-Var Balances'!M23 -> 0 | O27: -116.4772305 | P27: ='[6]7. Allocating Def-Var Balances'!O23 -> 0 | Q27: -92.19547234 | R27: ='[6]7. Allocating Def-Var Balances'!Q23 -> 0 | S27: 168153.3181 | T27: ='[6]7. Allocating Def-Var Balances'!S23 -> 0 | U27: 217590.5662 | W27: =U27/E10 -> 0.4435988862 | X27: =V27/G10 -> 0
B28: ='[6]7. Allocating Def-Var Balances'!A24 -> UNMETERED SCATTERED LOAD | D28: ='[6]7. Allocating Def-Var Balances'!C24 -> 0.00133011727 | E28: ='[6]7. Allocating Def-Var Balances'!D24 -> 0.001827790629 | G28: 23.48468132 | I28: =$I$32/$D$16*D11 -> -1276.231708 | J28: 672.7589806 | K28: -160.8054216 | L28: =$L$32/$D$16*D11 -> 1148.466601 | M28: 11649.68661 | N28: ='[6]7. Allocating Def-Var Balances'!M24 -> 0 | O28: -2.436601895 | P28: ='[6]7. Allocating Def-Var Balances'!O24 -> 0 | Q28: -1.928648728 | R28: ='[6]7. Allocating Def-Var Balances'!Q24 -> 0 | S28: 3517.620496 | T28: ='[6]7. Allocating Def-Var Balances'!S24 -> 0 | U28: 3920.928378 | V28: 11649.68661 | W28: =U28/D11 -> 0.001758815113 | X28: =V28/F11 -> 0.005225712611
B29: ='[6]7. Allocating Def-Var Balances'!A25 -> SENTINEL LIGHTING | D29: ='[6]7. Allocating Def-Var Balances'!C25 -> 5.294692323e-05 | E29: ='[6]7. Allocating Def-Var Balances'!D25 -> 2.752319837e-07 | G29: 0.9348360833 | I29: =$I$32/$D$16*D12 -> -50.80194341 | J29: 26.77998317 | K29: -6.40105388 | L29: =$L$32/$D$16*D12 -> 45.71609911 | M29: 1.754230657 | N29: ='[6]7. Allocating Def-Var Balances'!M25 -> 0 | O29: -0.1904051181 | P29: ='[6]7. Allocating Def-Var Balances'!O25 -> 0 | Q29: -0.1507117719 | R29: ='[6]7. Allocating Def-Var Balances'!Q25 -> 0 | S29: 274.879925 | T29: ='[6]7. Allocating Def-Var Balances'!S25 -> 0 | U29: 290.7667292 | V29: 1.754230657 | W29: =U29/E12 -> 1.159859084 | X29: =V29/G12 -> 1.849803325
B30: ='[6]7. Allocating Def-Var Balances'!A26 -> STREET LIGHTING | D30: ='[6]7. Allocating Def-Var Balances'!C26 -> 0.005833914567 | E30: ='[6]7. Allocating Def-Var Balances'!D26 -> 0.007792245629 | G30: 103.0041693 | I30: =$I$32/$D$16*D13 -> -5597.571674 | J30: 2950.731117 | K30: -705.2950238 | L30: =$L$32/$D$16*D13 -> 5037.191971 | M30: 49664.99889 | N30: ='[6]7. Allocating Def-Var Balances'!M26 -> 0 | O30: -4.321320755 | P30: ='[6]7. Allocating Def-Var Balances'!O26 -> 0 | Q30: -3.420464294 | R30: ='[6]7. Allocating Def-Var Balances'!Q26 -> 0 | S30: 6238.510481 | T30: ='[6]7. Allocating Def-Var Balances'!S26 -> 0 | U30: 8018.829256 | V30: 49664.99889 | W30: =U30/E13 -> 0.292159958 | X30: =V30/G13 -> 1.861633144
B32: ='[6]7. Allocating Def-Var Balances'!A28 -> 0 | D32: =SUM(D22:D31) -> 1 | E32: =SUM(E22:E30) -> 1 | G32: ='[6]7. Allocating Def-Var Balances'!F29 -> 17656.09834 | H32: ='[6]7. Allocating Def-Var Balances'!G29 -> 63819.77561 | I32: ='[6]7. Allocating Def-Var Balances'!H29 -> -955365.5446 | J32: ='[6]7. Allocating Def-Var Balances'!I29 -> 505789.2232 | K32: ='[6]7. Allocating Def-Var Balances'!J29 -> -120895.6723 | L32: ='[6]7. Allocating Def-Var Balances'!K29 -> 859722.7389 | M32: ='[6]7. Allocating Def-Var Balances'!L29 -> 4917328.159 | N32: ='[6]7. Allocating Def-Var Balances'!M29 -> 0 | O32: ='[6]7. Allocating Def-Var Balances'!N29 -> -1163.647748 | P32: ='[6]7. Allocating Def-Var Balances'!O29 -> 0 | Q32: ='[6]7. Allocating Def-Var Balances'!P29 -> -921.0646 | R32: ='[6]7. Allocating Def-Var Balances'!Q29 -> 0 | S32: ='[6]7. Allocating Def-Var Balances'!R29 -> 1679909.704 | T32: ='[6]7. Allocating Def-Var Balances'!S29 -> 0 | U32: =SUM(U22:U30) -> 2048551.611 | V32: =SUM(V22:V30) -> 4917328.159

Sheet 30. Guelph Bill Impacts
B1: Bill Impacts | T1: 1
B4: Customer Class: | D4: RESIDENTIAL
B6: TOU / non-TOU: | D6: TOU
D8: Consumption | F8: 100 | G8: kWh
F10: Current Board-Approved | J10: Proposed | N10: Impact
D11: Charge Unit | F11: Rate | G11: Volume | H11: Charge | J11: Rate | K11: Volume | L11: Charge | N11: $ Change | O11: % Change
F12: ($) | H12: ($) | J12: ($) | L12: ($)
B13: Monthly Service Charge | D13: Monthly | F13: 14.3 | G13: 1 | H13: =G13*F13 -> 14.3 | J13: 14.5 | K13: 1 | L13: =K13*J13 -> 14.5 | N13: =L13-H13 -> 0.2 | O13: =IF((H13)=0,"",(N13/H13)) -> 0.01398601399
B14: Green Energy Act Plan Funding Adder - effective April 1, 2014 until March 31, 2015 | D14: Monthly | F14: =0.15 -> 0.15 | G14: 1 | H14: =G14*F14 -> 0.15 | J14: 0.15 | K14: 1 | L14: =K14*J14 -> 0.15 | N14: =L14-H14 -> 0 | O14: =IF((H14)=0,"",(N14/H14)) -> 0
B15: Rate Rider for Recovery of Stranded Meter Assets - effective until March 31, 2016 | D15: Monthly | F15: 0.73 | G15: 1 | H15: 0.73 | J15: 0.73 | K15: 1 | L15: =K15*J15 -> 0.73 | N15: =L15-H15 -> 0 | O15: =IF((H15)=0,"",(N15/H15)) -> 0
B16: Rate Rider for Disposition of Post Retirement Actuarial Gain - effective until March 31, 2025 | D16: Monthly | F16: -0.18 | G16: 1 | H16: -0.18 | J16: -0.18 | K16: 1 | L16: -0.18 | N16: 0 | O16: 0
G17: 1 | H17: 0 | K17: 1 | L17: 0 | N17: 0
G18: 1 | H18: 0 | K18: 1 | L18: 0 | N18: 0
B19: Distribution Volumetric Rate | D19: per kWh | F19: 0.0174 | G19: =$F8 -> 100 | H19: 1.74 | J19: 0.0176 | K19: =$F8 -> 100 | L19: 1.76 | N19: 0.02 | O19: 0.01149425287
B20: Smart Meter Disposition Rider | G20: =$F$8 -> 100 | H20: 0 | K20: =$F$8 -> 100 | L20: 0 | N20: 0
B21: LRAM & SSM Rate Rider | D21: per kWh | F21: 0.0003 | G21: =$F8 -> 100 | H21: 0.03 | J21: 0.0003 | K21: =$F8 -> 100 | L21: 0.03 | N21: 0 | O21: 0
G22: 100 | H22: 0 | K22: 100 | L22: 0 | N22: 0
G23: 100 | H23: 0 | K23: 100 | L23: 0 | N23: 0
G24: 100 | H24: 0 | K24: 100 | L24: 0 | N24: 0
G25: 100 | H25: 0 | K25: 100 | L25: 0 | N25: 0
G26: 100 | H26: 0 | K26: 100 | L26: 0 | N26: 0
G27: 100 | H27: 0 | K27: 100 | L27: 0 | N27: 0
G28: 100 | H28: 0 | K28: 100 | L28: 0 | N28: 0
B29: Sub-Total A (excluding pass through) | H29: =SUM(H13:H28) -> 16.77 | L29: =SUM(L13:L28) -> 16.99 | N29: 0.22 | O29: 0.01311866428
B30: Deferral/Variance Account Disposition Rate Rider | D30: per kWh | F30: -0.0006 | G30: =$F8 -> 100 | H30: =G30*F30 -> -0.06 | J30: 0.002 | K30: =$F8 -> 100 | L30: =K30*J30 -> 0.2 | N30: 0.26 | O30: -4.333333333
B31: Rate Rider for Disposition of Deferred PILs Variance Account 1562 | D31: per kWh | F31: 0.0007 | G31: =$F8 -> 100 | H31: 0.07 | J31: 0.0007 | K31: =$F8 -> 100 | L31: 0.07 | N31: 0 | O31: 0
G32: =$F$8 -> 100 | H32: 0 | K32: =$F$8 -> 100 | L32: 0 | N32: 0
G33: =$F$8 -> 100 | H33: 0 | K33: =$F$8 -> 100 | L33: 0 | N33: 0
B34: Low Voltage Service Charge | G34: =$F8 -> 100 | H34: 0 | K34: =$F8 -> 100 | L34: 0 | N34: 0
B35: Line Losses on Cost of Power | D35: per kWh | F35: =IF(ISBLANK(D6)=TRUE, 0, IF(D6="TOU", 0.64*$F45+0.18*$F46+0.18*$F47, IF(AND(D6="non-TOU", G49>0), F49,F48))) -> 0.09246 | G35: =$F8*(1+$F64)-$F8 -> 2.09 | H35: 0.1932414 | J35: =0.64*$F45+0.18*$F46+0.18*$F47 -> 0.09246 | K35: =$F8*(1+$J64)-$F8 -> 2.09 | L35: 0.1932414 | N35: 0 | O35: 0
B36: Smart Meter Entity Charge | D36: Monthly | F36: 0.79 | G36: 1 | H36: 0.79 | J36: 0.79 | K36: 1 | L36: 0.79 | N36: 0
B37: Sub-Total B - Distribution (includes Sub-Total A) | H37: =SUM(H30:H36)+H29 -> 17.7632414 | L37: =SUM(L30:L36)+L29 -> 18.2432414 | N37: 0.48 | O37: =IF((H37)=0,"",(N37/H37)) -> 0.02702209519
B38: RTSR - Network | D38: per kWh | F38: 0.0072 | G38: =F8*(1+F64) -> 102.09 | H38: =G38*F38 -> 0.735048 | J38: 0.0078 | K38: =F8*(1+J64) -> 102.09 | L38: =K38*J38 -> 0.796302 | N38: 0.061254 | O38: 0.08333333333
B39: RTSR - Line and Transformation Connection | D39: per kWh | F39: 0.0053 | G39: =G38 -> 102.09 | H39: =G39*F39 -> 0.541077 | J39: 0.0058 | K39: =K38 -> 102.09 | L39: =K39*J39 -> 0.592122 | N39: 0.051045 | O39: 0.09433962264
B40: Sub-Total C - Delivery (including Sub-Total B) | H40: =SUM(H37:H39) -> 19.0393664 | L40: =SUM(L37:L39) -> 19.6316654 | N40: 0.592299 | O40: 0.03110917599
B41: Wholesale Market Service Charge (WMSC) | D41: per kWh | F41: 0.0044 | G41: =G39 -> 102.09 | H41: =G41*F41 -> 0.449196 | J41: 0.0044 | K41: =K39 -> 102.09 | L41: =K41*J41 -> 0.449196 | N41: 0 | O41: 0
B42: Rural and Remote Rate Protection (RRRP) | D42: per kWh | F42: 0.0012 | G42: =G39 -> 102.09 | H42: 0.122508 | J42: 0.0013 | K42: =K39 -> 102.09 | L42: 0.132717 | N42: 0.010209 | O42: 0.08333333333
B43: Standard Supply Service Charge | D43: Monthly | F43: 0.25 | G43: 1 | H43: 0.25 | J43: 0.25 | K43: 1 | L43: 0.25 | N43: 0 | O43: 0
B44: Debt Retirement Charge (DRC) | D44: per kWh | F44: 0.007 | G44: =F8 -> 100 | H44: 0.7 | J44: 0.007 | K44: =F8 -> 100 | L44: 0.7 | N44: 0 | O44: 0
B45: TOU - Off Peak | D45: per kWh | F45: 0.075 | G45: =0.64*$F8 -> 64 | H45: 4.8 | J45: 0.075 | K45: =G45 -> 64 | L45: 4.8 | N45: 0 | O45: 0
B46: TOU - Mid Peak | D46: per kWh | F46: 0.112 | G46: =0.18*$F8 -> 18 | H46: 2.016 | J46: 0.112 | K46: =G46 -> 18 | L46: 2.016 | N46: 0 | O46: 0
B47: TOU - On Peak | D47: per kWh | F47: 0.135 | G47: =0.18*$F8 -> 18 | H47: 2.43 | J47: 0.135 | K47: =G47 -> 18 | L47: 2.43 | N47: 0 | O47: 0
B48: Energy - RPP - Tier 1 | D48: per kWh | F48: 0.086 | G48: =IF(AND($T$1=1, F8>=600), 600, IF(AND($T$1=1, AND(F8<600, F8>=0)), F8, IF(AND($T$1=2, F8>=1000), 1000, IF(AND($T$1=2, AND(F8<1000, F8>=0)), F8)))) -> 100 | H48: =G48*F48 -> 8.6 | J48: 0.086 | K48: =G48 -> 100 | L48: =K48*J48 -> 8.6 | N48: 0 | O48: 0
B49: Energy - RPP - Tier 2 | D49: per kWh | F49: 0.101 | G49: =IF(AND($T$1=1, F8>=600), F8-600, IF(AND($T$1=1, AND(F8<600, F8>=0)), 0, IF(AND($T$1=2, F8>=1000), F8-1000, IF(AND($T$1=2, AND(F8<1000, F8>=0)), 0)))) -> 0 | H49: =G49*F49 -> 0 | J49: 0.101 | K49: =G49 -> 0 | L49: =K49*J49 -> 0 | N49: 0
B51: Total Bill on TOU (before Taxes) | H51: =SUM(H41:H47,H40) -> 29.8070704 | L51: =SUM(L41:L47,L40) -> 30.4095784 | N51: =L51-H51 -> 0.602508 | O51: =IF((H51)=0,"",(N51/H51)) -> 0.02021359335
B52: HST | F52: 0.13 | H52: =H51*F52 -> 3.874919152 | J52: 0.13 | L52: =L51*J52 -> 3.953245192 | N52: 0.07832604 | O52: 0.02021359335
B53: Total Bill (including HST) | H53: =H51+H52 -> 33.68198955 | L53: =L51+L52 -> 34.36282359 | N53: 0.68083404 | O53: 0.02021359335
B54: Ontario Clean Energy Benefit 1 | H54: =ROUND(-H53*10%,2) -> -3.37 | L54: =ROUND(-L53*10%,2) -> -3.44 | N54: -0.07 | O54: 0.02077151335
B55: Total Bill on TOU (including OCEB) | H55: =H53+H54 -> 30.31198955 | L55: =L53+L54 -> 30.92282359 | N55: 0.61083404 | O55: 0.0201515654
B57: Total Bill on RPP (before Taxes) | H57: =SUM(H48:H49,H40,H41:H44) -> 29.1610704 | L57: =SUM(L48:L49,L40,L41:L44) -> 29.7635784 | N57: =L57-H57 -> 0.602508 | O57: =IF((H57)=0,"",(N57/H57)) -> 0.02066138148
B58: HST | F58: 0.13 | H58: =H57*F58 -> 3.790939152 | J58: 0.13 | L58: =L57*J58 -> 3.869265192 | N58: =L58-H58 -> 0.07832604 | O58: =IF((H58)=0,"",(N58/H58)) -> 0.02066138148
B59: Total Bill (including HST) | H59: =H57+H58 -> 32.95200955 | L59: =L57+L58 -> 33.63284359 | N59: =L59-H59 -> 0.68083404 | O59: =IF((H59)=0,"",(N59/H59)) -> 0.02066138148
B60: Ontario Clean Energy Benefit 1 | H60: =ROUND(-H59*10%,2) -> -3.3 | L60: =ROUND(-L59*10%,2) -> -3.36 | N60: =L60-H60 -> -0.06 | O60: =IF((H60)=0,"",(N60/H60)) -> 0.01818181818
B61: Total Bill on RPP (including OCEB) | H61: =SUM(H59:H60) -> 29.65200955 | L61: =SUM(L59:L60) -> 30.27284359 | N61: =L61-H61 -> 0.62083404 | O61: =IF((H61)=0,"",(N61/H61)) -> 0.02093733441
B64: Loss Factor (%) | F64: 0.0209 | J64: 0.0209
A66: 1 Applicable to eligible customers only. Refer to the Ontario Clean Energy Benefit Act, 2010.
B68: Bill Impacts
B71: Customer Class: | D71: RESIDENTIAL
B73: TOU / non-TOU: | D73: TOU
D75: Consumption | F75: 250 | G75: kWh
F77: Current Board-Approved | J77: Proposed | N77: Impact
D78: Charge Unit | F78: Rate | G78: Volume | H78: Charge | J78: Rate | K78: Volume | L78: Charge | N78: $ Change | O78: % Change
F79: ($) | H79: ($) | J79: ($) | L79: ($)
B80: Monthly Service Charge | D80: Monthly | F80: 14.3 | G80: 1 | H80: =G80*F80 -> 14.3 | J80: 14.5 | K80: 1 | L80: =K80*J80 -> 14.5 | N80: =L80-H80 -> 0.2 | O80: =IF((H80)=0,"",(N80/H80)) -> 0.01398601399
B81: Green Energy Act Plan Funding Adder - effective April 1, 2014 until March 31, 2015 | D81: Monthly | F81: =0.15 -> 0.15 | G81: 1 | H81: =G81*F81 -> 0.15 | J81: 0.15 | K81: 1 | L81: =K81*J81 -> 0.15 | N81: =L81-H81 -> 0 | O81: =IF((H81)=0,"",(N81/H81)) -> 0
B82: Rate Rider for Recovery of Stranded Meter Assets - effective until March 31, 2016 | D82: Monthly | F82: 0.73 | G82: 1 | H82: 0.73 | J82: 0.73 | K82: 1 | L82: =K82*J82 -> 0.73 | N82: =L82-H82 -> 0 | O82: =IF((H82)=0,"",(N82/H82)) -> 0
B83: Rate Rider for Disposition of Post Retirement Actuarial Gain - effective until March 31, 2025 | D83: Monthly | F83: -0.18 | G83: 1 | H83: -0.18 | J83: -0.18 | K83: 1 | L83: -0.18 | N83: 0 | O83: 0
G84: 1 | H84: 0 | K84: 1 | L84: 0 | N84: 0
G85: 1 | H85: 0 | K85: 1 | L85: 0 | N85: 0
B86: Distribution Volumetric Rate | D86: per kWh | F86: 0.0174 | G86: =$F75 -> 250 | H86: 4.35 | J86: 0.0176 | K86: =$F75 -> 250 | L86: 4.4 | N86: 0.05 | O86: 0.01149425287
B87: Smart Meter Disposition Rider | G87: =$F$8 -> 100 | H87: 0 | K87: =$F$8 -> 100 | L87: 0 | N87: 0
B88: LRAM & SSM Rate Rider | D88: per kWh | F88: 0.0003 | G88: =$F75 -> 250 | H88: 0.075 | J88: 0.0003 | K88: =$F75 -> 250 | L88: 0.075 | N88: 0 | O88: 0
G89: 100 | H89: 0 | K89: 100 | L89: 0 | N89: 0
G90: 100 | H90: 0 | K90: 100 | L90: 0 | N90: 0
G91: 100 | H91: 0 | K91: 100 | L91: 0 | N91: 0
G92: 100 | H92: 0 | K92: 100 | L92: 0 | N92: 0
G93: 100 | H93: 0 | K93: 100 | L93: 0 | N93: 0
G94: 100 | H94: 0 | K94: 100 | L94: 0 | N94: 0
G95: 100 | H95: 0 | K95: 100 | L95: 0 | N95: 0
B96: Sub-Total A (excluding pass through) | H96: =SUM(H80:H95) -> 19.425 | L96: =SUM(L80:L95) -> 19.675 | N96: 0.25 | O96: 0.01287001287
B97: Deferral/Variance Account Disposition Rate Rider | D97: per kWh | F97: -0.0006 | G97: =$F75 -> 250 | H97: =G97*F97 -> -0.15 | J97: 0.002 | K97: =$F75 -> 250 | L97: =K97*J97 -> 0.5 | N97: 0.65 | O97: -4.333333333
B98: Rate Rider for Disposition of Deferred PILs Variance Account 1562 | D98: per kWh | F98: 0.0007 | G98: =$F75 -> 250 | H98: 0.175 | J98: 0.0007 | K98: =$F75 -> 250 | L98: 0.175 | N98: 0 | O98: 0
G99: =$F$8 -> 100 | H99: 0 | K99: =$F$8 -> 100 | L99: 0 | N99: 0
G100: =$F$8 -> 100 | H100: 0 | K100: =$F$8 -> 100 | L100: 0 | N100: 0
B101: Low Voltage Service Charge | G101: =$F75 -> 250 | H101: 0 | K101: =$F75 -> 250 | L101: 0 | N101: 0
B102: Line Losses on Cost of Power | D102: per kWh | F102: =IF(ISBLANK(D73)=TRUE, 0, IF(D73="TOU", 0.64*$F112+0.18*$F113+0.18*$F114, IF(AND(D73="non-TOU", G116>0), F116,F115))) -> 0.09246 | G102: =$F75*(1+$F131)-$F75 -> 5.225 | H102: 0.4831035 | J102: =0.64*$F112+0.18*$F113+0.18*$F114 -> 0.09246 | K102: =$F75*(1+$J131)-$F75 -> 5.225 | L102: 0.4831035 | N102: 0 | O102: 0
B103: Smart Meter Entity Charge | D103: Monthly | F103: 0.79 | G103: 1 | H103: 0.79 | J103: 0.79 | K103: 1 | L103: 0.79 | N103: 0
B104: Sub-Total B - Distribution (includes Sub-Total A) | H104: =SUM(H97:H103)+H96 -> 20.7231035 | L104: =SUM(L97:L103)+L96 -> 21.6231035 | N104: 0.9 | O104: =IF((H104)=0,"",(N104/H104)) -> 0.0434297884
B105: RTSR - Network | D105: per kWh | F105: 0.0072 | G105: =F75*(1+F131) -> 255.225 | H105: =G105*F105 -> 1.83762 | J105: 0.0078 | K105: =F75*(1+J131) -> 255.225 | L105: =K105*J105 -> 1.990755 | N105: 0.153135 | O105: 0.08333333333
B106: RTSR - Line and Transformation Connection | D106: per kWh | F106: 0.0053 | G106: =G105 -> 255.225 | H106: =G106*F106 -> 1.3526925 | J106: 0.0058 | K106: =K105 -> 255.225 | L106: =K106*J106 -> 1.480305 | N106: 0.1276125 | O106: 0.09433962264
B107: Sub-Total C - Delivery (including Sub-Total B) | H107: =SUM(H104:H106) -> 23.913416 | L107: =SUM(L104:L106) -> 25.0941635 | N107: 1.1807475 | O107: 0.04937594445
B108: Wholesale Market Service Charge (WMSC) | D108: per kWh | F108: 0.0044 | G108: =G106 -> 255.225 | H108: =G108*F108 -> 1.12299 | J108: 0.0044 | K108: =K106 -> 255.225 | L108: =K108*J108 -> 1.12299 | N108: 0 | O108: 0
B109: Rural and Remote Rate Protection (RRRP) | D109: per kWh | F109: 0.0012 | G109: =G106 -> 255.225 | H109: 0.30627 | J109: 0.0013 | K109: =K106 -> 255.225 | L109: 0.3317925 | N109: 0.0255225 | O109: 0.08333333333
B110: Standard Supply Service Charge | D110: Monthly | F110: 0.25 | G110: 1 | H110: 0.25 | J110: 0.25 | K110: 1 | L110: 0.25 | N110: 0 | O110: 0
B111: Debt Retirement Charge (DRC) | D111: per kWh | F111: 0.007 | G111: =F75 -> 250 | H111: 1.75 | J111: 0.007 | K111: =F75 -> 250 | L111: 1.75 | N111: 0 | O111: 0
B112: TOU - Off Peak | D112: per kWh | F112: 0.075 | G112: =0.64*$F75 -> 160 | H112: 12 | J112: 0.075 | K112: =G112 -> 160 | L112: 12 | N112: 0 | O112: 0
B113: TOU - Mid Peak | D113: per kWh | F113: 0.112 | G113: =0.18*$F75 -> 45 | H113: 5.04 | J113: 0.112 | K113: =G113 -> 45 | L113: 5.04 | N113: 0 | O113: 0
B114: TOU - On Peak | D114: per kWh | F114: 0.135 | G114: =0.18*$F75 -> 45 | H114: 6.075 | J114: 0.135 | K114: =G114 -> 45 | L114: 6.075 | N114: 0 | O114: 0
